{"text_format":"2","workbook":"xlsx","n_sheets":4,"sheets":["종합","2018","2019","2020"],"not_rendered":{"charts":0,"images":0,"macros":0,"external_links":0,"defined_names":3,"comments":0,"pivot_tables":0},"unopened":[],"bounds":{"document_bytes":16777216,"sheet_cells":100000,"run_cost":"one","rows_first":2000,"rows_last":500,"rows_between":2000,"halvings":0,"cell_chars":16384,"cell_head_chars":4096},"cells_cut":0,"cells_raw":0,"read":"whole","date_system":"1900"}

{"sheet":"종합","index":0,"n_rows":29,"n_cols":12,"rows_kept":29,"cut":false,"hidden":false,"merged":[]}
[null,"2018년",null,null,null,"2019년",null,null,null,"2020년"]
[null,"등록자본부","등록자부서","건수",null,"등록자본부","등록자부서","건수",null,"등록자본부","등록자부서","건수"]
[null,"미래기술연구소","기술전략실",{"$f":"COUNTIF('2018'!L$2:L$175,종합!C3)","v":1},null,"미래전략연구소","신사업연구실",{"$f":"COUNTIF('2019'!L$2:L$202,종합!G3)","v":11},null,"에너지신사업본부","화력O&M사업그룹(신사업)",{"$f":"COUNTIF('2020'!K$2:K$208,종합!K3)","v":3}]
[null,"미래기술연구소","미래기술연구소",{"$f":"COUNTIF('2018'!L$2:L$175,종합!C4)","v":20},null,"미래전략연구소","원자력연구실",{"$f":"COUNTIF('2019'!L$2:L$202,종합!G4)","v":14},null,"에너지신사업본부","건설사업그룹",{"$f":"COUNTIF('2020'!K$2:K$208,종합!K4)","v":9}]
[null,"에너지신사업본부","기계배관기술그룹(신사업)",{"$f":"COUNTIF('2018'!L$2:L$175,종합!C5)","v":2},null,"에너지신사업본부","건설사업그룹",{"$f":"COUNTIF('2019'!L$2:L$202,종합!G5)","v":9},null,"에너지신사업본부","기계배관환경기술실",{"$f":"COUNTIF('2020'!K$2:K$208,종합!K5)","v":1}]
[null,"에너지신사업본부","신사업개발처",{"$f":"COUNTIF('2018'!L$2:L$175,종합!C6)","v":1},null,"에너지신사업본부","신사업개발처",{"$f":"COUNTIF('2019'!L$2:L$202,종합!G6)","v":1},null,"에너지신사업본부","신재생사업그룹",{"$f":"COUNTIF('2020'!K$2:K$208,종합!K6)","v":2}]
[null,"에너지신사업본부","전기계측기술그룹(신사업)",{"$f":"COUNTIF('2018'!L$2:L$175,종합!C7)","v":5},null,"에너지신사업본부","신재생사업그룹",{"$f":"COUNTIF('2019'!L$2:L$202,종합!G7)","v":3},null,"에너지신사업본부","신사업개발처",{"$f":"COUNTIF('2020'!K$2:K$208,종합!K7)","v":1}]
[null,"에너지신사업본부","토목건축기술그룹(신사업)",{"$f":"COUNTIF('2018'!L$2:L$175,종합!C8)","v":2},null,"에너지신사업본부","화력O&M사업그룹(신사업)",{"$f":"COUNTIF('2019'!L$2:L$202,종합!G8)","v":2},null,"원자력본부","PSA&PSR사업그룹",{"$f":"COUNTIF('2020'!K$2:K$208,종합!K8)","v":21}]
[null,"에너지신사업본부","환경기술그룹(신사업)",{"$f":"COUNTIF('2018'!L$2:L$175,종합!C9)","v":1},null,"원자력본부","PSA&PSR사업그룹",{"$f":"COUNTIF('2019'!L$2:L$202,종합!G9)","v":27},null,"원자력본부","원전안전센터",{"$f":"COUNTIF('2020'!K$2:K$208,종합!K9)","v":5}]
[null,"원자력본부","계측제어기술그룹(원자력)",{"$f":"COUNTIF('2018'!L$2:L$175,종합!C10)","v":3},null,"원자력본부","국내건설사업그룹",{"$f":"COUNTIF('2019'!L$2:L$202,종합!G10)","v":8},null,"원자력본부","기계배관기술실",{"$f":"COUNTIF('2020'!K$2:K$208,종합!K10)","v":7}]
[null,"원자력본부","기계기술그룹(원자력)",{"$f":"COUNTIF('2018'!L$2:L$175,종합!C11)","v":8},null,"원자력본부","기계배관기술실",{"$f":"COUNTIF('2019'!L$2:L$202,종합!G11)","v":8},null,"원자력본부","전기계측기술실",{"$f":"COUNTIF('2020'!K$2:K$208,종합!K11)","v":10}]
[null,"원자력본부","배관기술그룹(원자력)",{"$f":"COUNTIF('2018'!L$2:L$175,종합!C12)","v":7},null,"원자력본부","미래성장신사업그룹",{"$f":"COUNTIF('2019'!L$2:L$202,종합!G12)","v":4},null,"원자력본부","토건환경기술실",{"$f":"COUNTIF('2020'!K$2:K$208,종합!K12)","v":9}]
[null,"원자력본부","사업관리기술그룹(원자력)",{"$f":"COUNTIF('2018'!L$2:L$175,종합!C13)","v":7},null,"원자력본부","사업관리기술실",{"$f":"COUNTIF('2019'!L$2:L$202,종합!G13)","v":6},null,"원자력본부","원전O＆M사업그룹",{"$f":"COUNTIF('2020'!K$2:K$208,종합!K13)","v":15}]
[null,"원자력본부","안전성평가기술그룹(원자력)",{"$f":"COUNTIF('2018'!L$2:L$175,종합!C14)","v":8},null,"원자력본부","원자력기술실",{"$f":"COUNTIF('2019'!L$2:L$202,종합!G14)","v":8},null,"원자력본부","사후관리사업그룹",{"$f":"COUNTIF('2020'!K$2:K$208,종합!K14)","v":2}]
[null,"원자력본부","안전성평가연구기술그룹",{"$f":"COUNTIF('2018'!L$2:L$175,종합!C15)","v":5},null,"원자력본부","원전O＆M사업그룹",{"$f":"COUNTIF('2019'!L$2:L$202,종합!G15)","v":6},null,"원자력본부","해외사업그룹",{"$f":"COUNTIF('2020'!K$2:K$208,종합!K15)","v":16}]
[null,"원자력본부","원자력기술그룹(원자력)",{"$f":"COUNTIF('2018'!L$2:L$175,종합!C16)","v":15},null,"원자력본부","원전안전센터",{"$f":"COUNTIF('2019'!L$2:L$202,종합!G16)","v":3},null,"원자력본부","미래성장신사업그룹",{"$f":"COUNTIF('2020'!K$2:K$208,종합!K16)","v":5}]
[null,"원자력본부","원자력사업처",{"$f":"COUNTIF('2018'!L$2:L$175,종합!C17)","v":1},null,"원자력본부","전기계측기술실",{"$f":"COUNTIF('2019'!L$2:L$202,종합!G17)","v":8},null,"원자력본부","국내건설사업그룹",{"$f":"COUNTIF('2020'!K$2:K$208,종합!K17)","v":9}]
[null,"원자력본부","원전사후관리사업그룹",{"$f":"COUNTIF('2018'!L$2:L$175,종합!C18)","v":3},null,"원자력본부","토건환경기술실",{"$f":"COUNTIF('2019'!L$2:L$202,종합!G18)","v":6},null,"원자력본부","원자력기술실",{"$f":"COUNTIF('2020'!K$2:K$208,종합!K18)","v":7}]
[null,"원자력본부","원전안전센터",{"$f":"COUNTIF('2018'!L$2:L$175,종합!C19)","v":3},null,"원자력본부","해외사업그룹",{"$f":"COUNTIF('2019'!L$2:L$202,종합!G19)","v":11},null,"원자력본부","사업관리기술실",{"$f":"COUNTIF('2020'!K$2:K$208,종합!K19)","v":6}]
[null,"원자력본부","재료기술그룹(원자력)",{"$f":"COUNTIF('2018'!L$2:L$175,종합!C20)","v":5},null,"원자로설계개발단","계측제어설계그룹",{"$f":"COUNTIF('2019'!L$2:L$202,종합!G20)","v":14},null,"원자로설계개발단","안전해석그룹",{"$f":"COUNTIF('2020'!K$2:K$208,종합!K20)","v":19}]
[null,"원자력본부","재료연구기술그룹",{"$f":"COUNTIF('2018'!L$2:L$175,종합!C21)","v":6},null,"원자로설계개발단","기계설계그룹",{"$f":"COUNTIF('2019'!L$2:L$202,종합!G21)","v":15},null,"원자로설계개발단","유체계통설계그룹",{"$f":"COUNTIF('2020'!K$2:K$208,종합!K21)","v":6}]
[null,"원자력본부","전기기술그룹(원자력)",{"$f":"COUNTIF('2018'!L$2:L$175,종합!C22)","v":7},null,"원자로설계개발단","신기술사업그룹",{"$f":"COUNTIF('2019'!L$2:L$202,종합!G22)","v":5},null,"원자로설계개발단","계측제어설계그룹",{"$f":"COUNTIF('2020'!K$2:K$208,종합!K22)","v":9}]
[null,"원자력본부","토목건축기술그룹(원자력)",{"$f":"COUNTIF('2018'!L$2:L$175,종합!C23)","v":11},null,"원자로설계개발단","안전해석그룹",{"$f":"COUNTIF('2019'!L$2:L$202,종합!G23)","v":24},null,"원자로설계개발단","기계설계그룹",{"$f":"COUNTIF('2020'!K$2:K$208,종합!K23)","v":13}]
[null,"원자로설계개발단","계측제어설계그룹",{"$f":"COUNTIF('2018'!L$2:L$175,종합!C24)","v":8},null,"원자로설계개발단","원자로안전점검실",{"$f":"COUNTIF('2019'!L$2:L$202,종합!G24)","v":1},null,"원자로설계개발단","신기술사업그룹",{"$f":"COUNTIF('2020'!K$2:K$208,종합!K24)","v":5}]
[null,"원자로설계개발단","기계설계그룹",{"$f":"COUNTIF('2018'!L$2:L$175,종합!C25)","v":20},null,"원자로설계개발단","유체계통설계그룹",{"$f":"COUNTIF('2019'!L$2:L$202,종합!G25)","v":7},null,"원자로설계개발단","원자로안전점검실",{"$f":"COUNTIF('2020'!K$2:K$208,종합!K25)","v":3}]
[null,"원자로설계개발단","안전해석그룹",{"$f":"COUNTIF('2018'!L$2:L$175,종합!C26)","v":15},null,"합계",null,{"$f":"SUM(H3:H25)","v":201},null,"전력기술원","원자력연구실",{"$f":"COUNTIF('2020'!K$2:K$208,종합!K26)","v":12}]
[null,"원자로설계개발단","원자로사업개발처",{"$f":"COUNTIF('2018'!L$2:L$175,종합!C27)","v":1},{"$nulls":5},"전력기술원","신사업연구실",{"$f":"COUNTIF('2020'!K$2:K$208,종합!K27)","v":4}]
[null,"원자로설계개발단","유체계통설계그룹",{"$f":"COUNTIF('2018'!L$2:L$175,종합!C28)","v":9},{"$nulls":5},"전력기술원","디지털융합실",{"$f":"COUNTIF('2020'!K$2:K$208,종합!K28)","v":8}]
[null,"합계",null,{"$f":"SUM(D3:D28)","v":174},{"$nulls":5},"합계",null,{"$f":"SUM(L3:L28)","v":207}]

{"sheet":"2018","index":1,"n_rows":202,"n_cols":27,"rows_kept":202,"cut":false,"hidden":true,"merged":[]}
[null,"논문제목(국문)","논문제목(영문)","논문파일명","논문등록일","논문발표일","논문구분","발표유형",null,"등록자","등록자본부","등록자부서","감수자","논문발표처","발표기관","논문승인현황"]
[1,"Talus(애추) 구간 사면 대책 설계 및 시공사례","The design and costruction case of talus area","Talus 지역에서의 설계 및 시공사례(지반환경공학회) Ver20.hwp","2018.02.20","2018.03.12","논문","국내학술지",null,"채종훈","에너지신사업본부","토목건축기술그룹(신사업)","맹창환(29606  토목건축기술그룹(신사업)),유승훈(44915  토목건축기술그룹(신사업))","국내","한국지반환경공학회","[발표신청서] 본부장 결재완료",{"$f":"S2&K2&N2","v":"3에너지신사업본부국내"},null,{"$f":"DAY(V2)","v":3},null,{"$f":"LEFT(F2,4)","v":"2018"},{"$f":"RIGHT(Y2,2)","v":"03"},{"$f":"RIGHT(F2,2)","v":"12"},null,{"$f":"LEFT(F2,7)","v":"2018.03"},null,{"$f":"K2&LEFT(H2,3)","v":"에너지신사업본부국내학"}]
[2,"확률론적 부지응답해석에 대한 고찰과 전용프로그램 PSHAKE 개발","Development of Program PSHAKE for Probabilistic Site Response Analysis","2018 봄 정기학술대회 발표논문_한승룡 2018-03-06.hwp","2018.03.13","2018.03.23","논문","국내학술발표",null,"한승룡","미래기술연구소","미래기술연구소","서춘교(42351  미래기술연구소),오영진(38317  미래기술연구소)","국내","한국지진공학회 학술발표논문집","[발표신청서] 본부장 결재완료","3미래기술연구소국내",null,3,null,"2018","03","23",null,"2018.03",null,"미래기술연구소국내학"]
[3,"피동형 주제어실 공기조화계통 적용성 검토","Review for the Application of a Passive Main Control Room HVAC System","피동형 주제어실 공기조화계통 적용성 검토 2.doc","2018.03.29","2018.03.31","논문","사내전력기술지",null,"하동균","원자력본부","기계기술그룹(원자력)","김재학(28798  기계기술그룹(원자력)),추재호(27375  기계기술그룹(원자력))","사내","사내전력기술지","[발표신청서] 본부장 결재완료","3원자력본부사내",null,3,null,"2018","03","31",null,"2018.03",null,"원자력본부사내전"]
[4,"안전 및 비안전 소프트제어기 통합설계 방안","Integrated Design Solution of Safety and Non-safety Soft Control","논문.pdf","2018.03.27","2018.03.30","논문","사내전력기술지",null,"김영수","원자력본부","계측제어기술그룹(원자력)","김준곤(27958  계측제어기술그룹(원자력)),박재혁(20215  계측제어기술그룹(원자력))","사내","전력기술지","[발표신청서] 본부장 결재완료","3원자력본부사내",null,3,null,"2018","03","30",null,"2018.03",null,"원자력본부사내전"]
[5,"ANSYS를 이용한 시공단계해석","Construction Sequence Analysis using ANSYS Programe","전력기술지_2018춘계_시공단계해석_2.docx","2018.03.30","2018.03.30","논문","사내전력기술지",null,"김영훈","원자력본부","토목건축기술그룹(원자력)","김봉래(42728  토목건축기술그룹(원자력)),김창규(29592  토목건축기술그룹(원자력))","사내","2018년도 춘계전력기술지","[발표신청서] 본부장 결재완료","3원자력본부사내",null,3,null,"2018","03","30",null,"2018.03",null,"원자력본부사내전"]
[6,"APR1400 피로감시시스템 자동주기계수 모듈 개발","Development of Automated Cycle Counting Algorithms for APR1400 Fatigue Monitoring System","2018년 춘계 전력기술지 논문(APR1400 FMS ACCS 개발).doc","2018.04.02","2018.03.30","논문","사내전력기술지",null,"민지홍","원자로설계개발단","안전해석그룹","강선예(23774  기계설계그룹),박준수(31698  원자로안전점검실)","사내","2018년 추계 전력기술지","[발표신청서] 본부장 결재완료","3원자로설계개발단사내",null,3,null,"2018","03","30",null,"2018.03",null,"원자로설계개발단사내전"]
[7,"부하목록 및 기기목록 관리","Electrical Load List and Equipment List For Electrical Design of Power Plant","부하 및 기기목록 관리.docx","2018.03.30","2018.03.30","논문","사내전력기술지",null,"이영준","에너지신사업본부","전기계측기술그룹(신사업)","김현우(22478  전기계측기술그룹(신사업)),박범수(28951  전기계측기술그룹(신사업))","사내","사내전력기술지","[발표신청서] 본부장 결재대기","3에너지신사업본부사내",null,3,null,"2018","03","30",null,"2018.03",null,"에너지신사업본부사내전"]
[8,"RC 전단벽의 선형 및 비선형 동적 해석에 따른 지진 응답","Seismic Responses from Linear and Nonlinear Dynamic Analysis of RC Shear Walls","ASME_PVP_2018_Revised Paper_감수의견반영.pdf","2018.04.10","2018.04.02","논문","해외학술발표",null,"김도연","원자력본부","토목건축기술그룹(원자력)","김봉래(42728  토목건축기술그룹(원자력)),문일환(25991  원자력사업처)","해외","Proceedings of the ASME 2018 Pressure Vessels & Piping Conference","[발표신청서] 본부장 결재완료","4원자력본부해외",null,4,null,"2018","04","02",null,"2018.04",null,"원자력본부해외학"]
[9,"PGSFR BOP 안전계통 고온배관 구조건전성 평가절차 개발","Structural Integrity Assessment Procedure Development for High Temperature Pipes of PGSFR BOP Safety System","소듐냉각고속로 고온배관 적용을 위한 응력평가 절차 개발.docx","2018.04.02","2018.04.03","논문","사내전력기술지",null,"오영진","미래기술연구소","미래기술연구소","양경진(41173  배관기술그룹(원자력)),오창균(38324  재료연구기술그룹)","사내","전력기술지","[발표신청서] 본부장 결재완료","4미래기술연구소사내",null,4,null,"2018","04","03",null,"2018.04",null,"미래기술연구소사내전"]
[10,"원자력 발전설비의 건전성평가 및 관리","Integrity Evaluation and Aging Management of Nuclear Power Plants","2018 대한기계학회 재료 및 파괴부문 학술대회 초록(김현수).doc","2018.03.09","2018.04.12","논문","국내학술발표",null,"김현수","원자력본부","재료연구기술그룹","박흥배(28775  미래기술연구소),오영진(38317  미래기술연구소)","국내","대한기계학회 재료 및 파괴부문 춘계학술대회","[발표신청서] 본부장 결재완료","4원자력본부국내",null,4,null,"2018","04","12",null,"2018.04",null,"원자력본부국내학"]
[11,"압력 및 열 하중을 받는 원자로용기 노즐의 유한요소모델에 따른 응력강도 비교분석 연구","Comparative Study for Stress Intensity of Reactor Vessel Nozzle varying Finite Element Model subjected to Pressure and Thermal Loading","초록(한전기술 신희재).docx","2018.03.15","2018.04.11","논문","국내학술발표",null,"신희재","원자력본부","재료연구기술그룹","남일권(34355  배관기술그룹(원자력)),오영진(38317  미래기술연구소)","국내","대한기계학회 재료 및 파괴부문 춘계학술대회","[발표신청서] 본부장 결재완료","4원자력본부국내",null,4,null,"2018","04","11",null,"2018.04",null,"원자력본부국내학"]
[12,"안전등급 1 배관의 열응력 평가에 대한 기술적 고찰","Technical Review on Thermal Stress Evaluation for Nuclear Class 1 Piping","KSME 재파 (한전기술 오창균).docx","2018.03.13","2018.04.12","논문","국내학술발표",null,"오창균","원자력본부","재료연구기술그룹","남일권(34355  배관기술그룹(원자력)),오영진(38317  미래기술연구소)","국내","대한기계학회 재료 및 파괴부문 춘계학술대회 논문집","[발표신청서] 본부장 결재완료","4원자력본부국내",null,4,null,"2018","04","12",null,"2018.04",null,"원자력본부국내학"]
[13,"구조물-지반-구조물 상호작용을 고려한 원자력 파워블럭의 매개변수 지진응답 해석","Parametric Seismic Response Analyses of a Nuclear Power Block Considering Structure-Soil-Structure Interaction","전력기술지(2018상반기)_서춘교(R3).docx","2018.04.09","2018.04.09","논문","사내전력기술지",null,"서춘교","미래기술연구소","미래기술연구소","김도연(41231  토목건축기술그룹(원자력)),한승룡(43272  미래기술연구소)","사내","전력기술지","[발표신청서] 본부장 결재완료","4미래기술연구소사내",null,4,null,"2018","04","09",null,"2018.04",null,"미래기술연구소사내전"]
[14,"저합금강 복합관통균열 배관에 대한 불안정하중 예측","Instability Moment Predictions for Low Alloy Steel Complex Through-wall Cracked Pipes","ASINCO-12  Instability Moment Predictions for Low Alloy Steel Complex Through-wall Cracked Pipes 20180322-사내감수반영.docx","2018.04.09","2018.04.16","논문","해외학술발표",null,"오영진","미래기술연구소","미래기술연구소","신희재(41837  재료연구기술그룹),한승룡(43272  미래기술연구소)","해외","The 12th International Workshop on the Integrity of Nuclear Components","[발표신청서] 본부장 결재완료","4미래기술연구소해외",null,4,null,"2018","04","16",null,"2018.04",null,"미래기술연구소해외학"]
[15,"SPACE 코드의 정렬 및 비정렬격자 기반 다차원 열수력해법","Multi-dimensional hydraulic solver using structured and unstructured meshes for the system thermal hydraulic code, SPACE","manuscript.docx","2018.04.12","2018.04.15","논문","SCI저널자료",null,"박찬억","원자로설계개발단","안전해석그룹","김은기(31254  유체계통설계그룹),허진(33316  유체계통설계그룹)","해외","Nuclear Technology","[발표신청서] 본부장 결재완료","4원자로설계개발단해외",null,4,null,"2018","04","15",null,"2018.04",null,"원자로설계개발단SCI"]
[16,"국내원전 종합설계사업의 LOE(Level Of Effort) 업무에 대한 고찰 및 개선방안","LOE(Level Of Effort) Analysis and its Improvement Method of Domestic Nuclear Powerplant Engineering Project","(검수완료_전성현_2018-04-20)2018년_국내원전의 LOE 고찰 및 개선방안_최종.docx","2018.04.27","2018.04.24","논문","사내전력기술지",null,"박충열","원자력본부","사업관리기술그룹(원자력)","전성현(09525  사업관리기술그룹(원자력)),정인철(20578  사업관리기술그룹(원자력))","사내","사내전력기술지","[발표신청서] 본부장 결재완료","4원자력본부사내",null,4,null,"2018","04","24",null,"2018.04",null,"원자력본부사내전"]
[17,"내장형 제어봉구동장치 구동시험","Dry Run Test of the In-Vessel CEDM","paper_9_사외감수.docx","2018.01.08","2018.04.25","논문","해외학술발표",null,"박진석","원자로설계개발단","기계설계그룹","김인용(34318  기계설계그룹),정장규(32876  유체계통설계그룹)","해외","IEEE International Magnetics Conference 2018","[발표신청서] 본부장 결재완료","4원자로설계개발단해외",null,4,null,"2018","04","25",null,"2018.04",null,"원자로설계개발단해외학"]
[18,"내장형 제어봉구동장치 구동시험","Dry run test of the in-vessel CEDM","manuscript8-사외감수.doc","2018.02.27","2018.04.25","논문","SCI저널자료",null,"박진석","원자로설계개발단","기계설계그룹","김인용(34318  기계설계그룹),이병진(32344  사업책임자실(원자로))","해외","IEEE Transactions on Magnetics","[발표신청서] 본부장 결재완료","4원자로설계개발단해외",null,4,null,"2018","04","25",null,"2018.04",null,"원자로설계개발단SCI"]
[19,"변압기 돌입전류 저감을 위한 차단기 위상제어(Point-on-Wave) 개폐 방식 적용 검토","A Study to Mitigate Magnetic Inrush Current in Power Transformer by Point-on-Wave application","2018 춘계논문(강민표, 이전용) - 변압기 돌입전류 저감을 위한 차단기 위상제어(Point-on-Wave) 스위칭 방식 적용 검토.docx","2018.04.04","2018.04.30","논문","사내전력기술지",null,"이전용","원자력본부","전기기술그룹(원자력)","강인수(25924  전기기술그룹(원자력)),유승윤(25452  전기기술그룹(원자력))","사내","전력기술지","[발표신청서] 본부장 결재완료","4원자력본부사내",null,4,null,"2018","04","30",null,"2018.04",null,"원자력본부사내전"]
[20,"안전등급1 배관의 환경피로해석","Environmental Fatigue Analysis for Safety Class 1 Piping","전력기술지_2018_안전등급1 배관의 환경피로해석.pdf","2018.02.28","2018.04.30","논문","사내전력기술지",null,"이대건","원자력본부","배관기술그룹(원자력)","이건석(37884  배관기술그룹(원자력)),조성호(39187  배관기술그룹(원자력))","사내","전력기술지","[발표신청서] 본부장 결재완료","4원자력본부사내",null,4,null,"2018","04","30",null,"2018.04",null,"원자력본부사내전"]
[21,"원자로냉각재 pH 제어 전략","pH Control Strategies of Reactor Coolant for PWR Plants","전력기술지 (원자로냉각재 pH 제어 전략).doc","2018.04.09","2018.04.30","논문","사내전력기술지",null,"천양호","원자로설계개발단","유체계통설계그룹","김종수(33797  기계설계그룹),유완(32203  기계설계그룹)","사내","전력기술지","[발표신청서] 본부장 결재완료","4원자로설계개발단사내",null,4,null,"2018","04","30",null,"2018.04",null,"원자로설계개발단사내전"]
[22,"원전 건설운영허가 취득 후 안전성분석보고서 변경내용 사례분석 및 반영절차","Case analysis and revision procedure of change notifications of Safety Analysis Report after construction permit or operating license of nuclear power plant.","[전력기술지 기고용] 원전 건설운영허가 취득 후 안전성분석보고서 변경내용 사례분석 및 반영절차_춘계논문_김종헌(51217).docx","2018.04.05","2018.04.30","논문","사내전력기술지",null,"김종헌","원자력본부","원자력기술그룹(원자력)","송덕빈(30194  원자력기술그룹(원자력)),정혁(25674  원자력기술그룹(원자력))","사내","전력기술지","[발표신청서] 본부장 결재완료","4원자력본부사내",null,4,null,"2018","04","30",null,"2018.04",null,"원자력본부사내전"]
[23,"주증기계통 종합진동평가프로그램(CVAP) 적용방안","Technical Review of Application of CVAP (Comprehensive Vibration Assessment Program) for Mainsteam System (MS)","[기술보고] 주증기계통 CVAP 적용방안 (Rev.A).doc","2018.04.02","2018.04.30","논문","사내전력기술지",null,"서정환","원자력본부","기계기술그룹(원자력)","김광추(26366  기계기술그룹(원자력)),전창빈(21469  원전O&amp;M사업그룹)","사내","전력기술지","[발표신청서] 본부장 결재완료","4원자력본부사내",null,4,null,"2018","04","30",null,"2018.04",null,"원자력본부사내전"]
[24,"화력 발전소 대규모 사면에서의 보강/ 보호 사례 및 설계방안","The Case Study and Design Method of a Large-Scale Slope Protection and Reinforcement on a Thermal Power Plant","화력 발전소 대규모 사면에서의 보강 보호 사례 및 설계방안 2018 전력기술지 기술보고.pdf","2018.03.27","2018.04.30","논문","사내전력기술지",null,"채종훈","에너지신사업본부","토목건축기술그룹(신사업)","맹창환(29606  토목건축기술그룹(신사업)),백승경(38259  토목건축기술그룹(신사업))","사내","전력기술지","[발표신청서] 본부장 결재완료","4에너지신사업본부사내",null,4,null,"2018","04","30",null,"2018.04",null,"에너지신사업본부사내전"]
[25,"원전 매설배관 부식결함 검사기술에서의 변수 및 간섭인자","Variable and Interference of Inspection Techniques for Corrosion Detection of NPP’s Buried Pipe","CSSK 2018 춘계 초록-임부택-침식부식-구두.doc","2018.04.16","2018.05.11","논문","국내학술발표",null,"임부택","원자력본부","재료연구기술그룹","박진석(26933  재료연구기술그룹),황경모(24584  재료연구기술그룹)","국내","2018년도 한국부식방식학회 춘계학술대회 초록집","[발표신청서] 본부장 결재완료","5원자력본부국내",null,5,null,"2018","05","11",null,"2018.05",null,"원자력본부국내학"]
[26,"정지저출력 화재 PSA에서의 화재발생빈도 정량화","Estimation of Fire Frequencies in LPSD fire PRA","Estimation of Ignition Frequencies in LPSD fire PRA.docx","2018.06.05","2018.05.11","논문","해외학술발표",null,"강태욱","원자력본부","안전성평가연구기술그룹","김동규(35188  안전성평가연구기술그룹),김재갑(28553  안전성평가연구기술그룹)","해외","Probabilistic Safety Assesment and Management","[발표신청서] 본부장 결재완료","5원자력본부해외",null,5,null,"2018","05","11",null,"2018.05",null,"원자력본부해외학"]
[27,"최근 국내 원전의 배관감육 사례 분석","Analyses for Recent Pipe Wall Thinning Events of Korean NPPs","(황경모) 최근 배관감육 사례 분석.doc","2018.04.17","2018.05.11","논문","국내학술발표",null,"황경모","원자력본부","재료연구기술그룹","박진석(26933  재료연구기술그룹),박흥배(28775  미래기술연구소)","국내","2018년도 한국부식방식학회 춘계학술대회 논문집","[발표신청서] 본부장 결재완료","5원자력본부국내",null,5,null,"2018","05","11",null,"2018.05",null,"원자력본부국내학"]
[28,"GMRS 작성을 위한 확률론적 부지응답해석 고찰","Challenges on Probabilistic Site Response Analysis for the Generation of GMRS in Korea","한국원자력학회 학술발표 논문_한승룡_초안 2018-03-19.doc","2018.03.19","2018.05.18","논문","국내학술발표",null,"한승룡","미래기술연구소","미래기술연구소","서춘교(42351  미래기술연구소),이대영(26359  미래기술연구소)","국내","2018 한국원자력학회 춘계 학술발표회","[발표신청서] 본부장 결재완료","5미래기술연구소국내",null,5,null,"2018","05","18",null,"2018.05",null,"미래기술연구소국내학"]
[29,"가변트립 접근법을 이용한 발전소보호계통 의사트립 저감 기법","Spurious Trip Reduction Methodology for the Plant Protection System Using a Variable Trip Approach","2018년 춘계원자력학회 논문_사내감수용.doc","2018.03.15","2018.05.17","논문","국내학술발표",null,"이창재","원자로설계개발단","계측제어설계그룹","김항배(33832  계측제어설계그룹),장영우(47602  원자로안전점검실)","국내","한국원자력학회","[발표신청서] 본부장 결재완료","5원자로설계개발단국내",null,5,null,"2018","05","17",null,"2018.05",null,"원자로설계개발단국내학"]
[30,"구조물-지반-구조물 상호작용을 고려한 원자력 파워블럭의 지진응답해석","Seismic Analyses of a Nuclear Power Block Considering Structure-Soil-Structure Interaction","원자력학회발표논문_SSSI(서춘교).doc","2018.03.22","2018.05.17","논문","국내학술발표",null,"서춘교","미래기술연구소","미래기술연구소","김도연(41231  토목건축기술그룹(원자력)),한승룡(43272  미래기술연구소)","국내","춘계한국원자력학회 학술대회","[발표신청서] 본부장 결재대기","5미래기술연구소국내",null,5,null,"2018","05","17",null,"2018.05",null,"미래기술연구소국내학"]
[31,"단일 공통원인고장 기본사건 모델을 위한 데이터 분석","Data analysis for a Global Common Cause Failure Event","Data analysis for a Global Common Cause Failure Event_KNS_20180312.docx","2018.03.14","2018.05.16","논문","국내학술발표",null,"최진태","원자력본부","안전성평가연구기술그룹","김남철(39777  안전성평가연구기술그룹),나두완(50858  안전성평가연구기술그룹)","국내","한국원자력학회","[발표신청서] 본부장 결재완료","5원자력본부국내",null,5,null,"2018","05","16",null,"2018.05",null,"원자력본부국내학"]
[32,"복합건물 침수위험 재평가","Reassessment to prevent Flooding Hazard in the CPB","2018춘계학술발표회 논문.doc","2018.03.13","2018.05.17","논문","국내학술발표",null,"장근백","원자력본부","배관기술그룹(원자력)","김대수(27227  배관기술그룹(원자력)),박정수(20076  원자력기술그룹(원자력))","국내","한국원자력학회 2018춘계학술발표회지","[발표신청서] 본부장 결재완료","5원자력본부국내",null,5,null,"2018","05","17",null,"2018.05",null,"원자력본부국내학"]
[33,"성능예측으로 평가되는 원자력발전소 내 모터구동 플렉서블 웨지 게이트 밸브의 역 운전여유도 방지 및 개선","Prevention and improvement of negative operational margin for motor-operated flexible wedge gate valves evaluated via performance prediction in nuclear power plants","(20180312)Prevention and improvement of negative operational margin for motor-operated flexible wedge gate valves evaluated via performance prediction in nuclear power plants.docx","2018.03.14","2018.05.17","논문","국내학술발표",null,"오태경","원자력본부","안전성평가연구기술그룹","김봉환(18391  안전성평가연구기술그룹),장진아(39127  안전성평가연구기술그룹)","국내","2018 춘계원자력학회","[발표신청서] 본부장 결재완료","5원자력본부국내",null,5,null,{"$f":"LEFT(F34,4)","v":"2018"},"05",{"$f":"RIGHT(F34,2)","v":"17"},null,{"$f":"LEFT(F34,7)","v":"2018.05"},null,{"$f":"K34&LEFT(H34,3)","v":"원자력본부국내학"}]
[34,"원전의 설계초과지진에 대한 미국 및 일본의 평가 방법론 연구","A study on Beyond Design Basis Earthquake Evaluation Methodology of the U.S and Japan","Evaluation of BDBE-송정국(KEPCO-ENC)_20180314.doc","2018.03.14","2018.05.17","논문","국내학술발표",null,"송정국","원자력본부","안전성평가연구기술그룹","이동원(37382  안전성평가연구기술그룹),전상호(43721  안전성평가연구기술그룹)","국내","한국원자력학회","[발표신청서] 본부장 결재완료","5원자력본부국내",null,5,null,"2018","05","17",null,"2018.05",null,"원자력본부국내학"]
[35,"정지저출력 운전중 신뢰도보증프로그램에 의한 중요대상기기 평가방법","A methodology for Reliability Assurance Program in Low Power Shutdown Probabilistic Safety Assessment","2018 춘계원자력학회 - LPSD RAP.pdf","2018.03.14","2018.05.17","논문","국내학술발표",null,"김재갑","원자력본부","안전성평가연구기술그룹","김광추(26366  기계기술그룹(원자력)),김기수(36086  안전성평가연구기술그룹)","국내","2018 춘계원자력학회","[발표신청서] 본부장 결재완료","5원자력본부국내",null,5,null,"2018","05","17",null,"2018.05",null,"원자력본부국내학"]
[36,"항공기 충돌시 항공유류의 분산으로 인한 광역화재","Large External Fire due to Diepersal of Jet Fuel during Aircraft Impact","Large External Fire_2018 원자력학회.pdf","2018.03.08","2018.05.18","논문","국내학술발표",null,"문일환","원자력본부","토목건축기술그룹(원자력)","유성호(23603  토목건축기술그룹(원자력)),한승룡(43272  미래기술연구소)","국내","Transactions of the Korean Nuclear Society Spring Meeting","[발표신청서] 본부장 결재완료","5원자력본부국내",null,5,null,"2018","05","18",null,"2018.05",null,"원자력본부국내학"]
[37,"APR1400 사용후연료 저장조 간의 이송을 위한 사용후연료이송기기 개발 및 적용","Development and Application of a Spent Fuel Transfer Device between spent fuel storage pools in APR 1400 NPPs","Development and Application of a SFTD.doc","2018.04.10","2018.06.04","논문","해외학술발표",null,"김성환","원자로설계개발단","기계설계그룹","백종만(31837  기계설계그룹),이대희(32293  기계설계그룹)","해외","Proceedings of the 12th International Conference of the Croatian Nuclear Society","[발표신청서] 본부장 결재완료","6원자로설계개발단해외",null,6,null,"2018","06","04",null,"2018.06",null,"원자로설계개발단해외학"]
[38,"OASIS-32D 캐스크 내 붕괴열 분포 해석","Evaluation of Decay Heat Distribution in the OASIS-32D Cask","Paper_Decay Heat Distribution in the OASIS-32D.docx","2018.04.04","2018.05.31","논문","국내학술발표",null,"김용일","원자로설계개발단","안전해석그룹","","국내","한국방사성폐기물학회 2018 춘계학술발표회","[발표신청서] 본부장 결재완료","5원자로설계개발단국내",null,5,null,"2018","05","31",null,"2018.05",null,"원자로설계개발단국내학"]
[39,"원자력 파워블럭에 대한 구조물-지반-구조물 상호작용을 고려한 매개변수 지진응답해석","Parametric Seismic Response Analyses of Nuclear Power Block Considering Structure-Soil-Structure Interaction","지진공학회학술지논문_R1.hwp","2018.05.04","2018.05.31","논문","국내학술지",null,"서춘교","미래기술연구소","미래기술연구소","김도연(41231  토목건축기술그룹(원자력)),한승룡(43272  미래기술연구소)","국내","한국지진공학회지","[발표신청서] 본부장 결재완료","5미래기술연구소국내",null,5,null,"2018","05","31",null,"2018.05",null,"미래기술연구소국내학"]
[40,"항공기 충돌 후 항공유 분산으로 인한 외부 광역화재 평가","Large External Fire Assessment due to Dispersal of Jet Fuel after Aircraft Impact","학술대회 논문_항공기 충돌 후 항공유 분산으로 인한 외부 광영화재 평가_Final.hwp","2018.04.09","2018.05.31","논문","국내학술발표",null,"문일환","원자력본부","토목건축기술그룹(원자력)","김재희(15667  미래기술연구소),박창선(45172  원자력기술그룹(원자력))","국내","2018년도 한국강구조학회 정기총회 및 학술대회","[발표신청서] 본부장 결재대기","5원자력본부국내",null,5,null,"2018","05","31",null,"2018.05",null,"원자력본부국내학"]
[41,"중앙집중식 방사성폐기물처리설비 설계","Design of Centralized Radioactive Waste Disposal Facility","Design of Centralized Radioactive Waste Disposal Facility.docx","2018.05.31","2018.06.21","논문","해외학술발표",null,"김영환","원자력본부","원자력기술그룹(원자력)","박정수(20076  원자력기술그룹(원자력)),신무갑(40754  원자력기술그룹(원자력))","해외","EPRI International Low-Level Waste Conference","[발표신청서] 본부장 결재완료","6원자력본부해외",null,6,null,"2018","06","21",null,"2018.06",null,"원자력본부해외학"]
[42,"RG법을 이용한 화력발전소 비상발전기 용량 산정에 대한 고찰","Consideration of capacity calculation of emergency generator","RG법을 이용한 화력발전소 비상발전기 용량 산정에 대한 고찰.docx","2018.06.18","2018.06.29","논문","사내전력기술지",null,"신지훈","원자력본부","전기기술그룹(원자력)","박범수(28951  전기계측기술그룹(신사업)),윤병선(34612  전기계측기술그룹(신사업))","사내","전력기술지","[발표신청서] 본부장 결재완료","6원자력본부사내",null,6,null,"2018","06","29",null,"2018.06",null,"원자력본부사내전"]
[43,"계기용 감지관 기술기준 해석 및 설계","Analysis and design of Instrument Sensing Line for Nuclear Power Plant","계기용감지관 기술기준 해석.pdf","2018.06.14","2018.06.29","논문","사내전력기술지",null,"예우","원자력본부","계측제어기술그룹(원자력)","강창호(24186  계측제어기술그룹(원자력)),정환용(29828  계측제어기술그룹(원자력))","사내","전력기술지","[발표신청서] 본부장 결재완료","6원자력본부사내",null,6,null,"2018","06","29",null,"2018.06",null,"원자력본부사내전"]
[44,"설계초과지진시 배관계 건전성 평가 방법론 검토","Review of Evaluation Method for Piping System under Beyond Design Basis Earthquake","전력기술지_설계초과지진_이대영 (R1).docx","2018.06.29","2018.06.29","논문","사내전력기술지",null,"이대영","미래기술연구소","미래기술연구소","서춘교(42351  미래기술연구소),한승룡(43272  미래기술연구소)","사내","전력기술지","[발표신청서] 본부장 결재완료","6미래기술연구소사내",null,6,null,"2018","06","29",null,"2018.06",null,"미래기술연구소사내전"]
[45,"원전 제어계통 모델링도구 개발과 설계적용성 검증","Development of Control System Modeling Tool for Nuclear Power Plants and Its Validation for Design Applicability","2018-06-08 전력기술지_제어계통 모델링도구 개발과 설계적용성 검증.docx","2018.06.19","2018.06.29","논문","사내전력기술지",null,"정시채","원자로설계개발단","안전해석그룹","김항배(33832  계측제어설계그룹),서종태(31897  안전해석그룹)","사내","전력기술지","[발표신청서] 본부장 결재완료","6원자로설계개발단사내",null,6,null,"2018","06","29",null,"2018.06",null,"원자로설계개발단사내전"]
[46,"원자력발전소의 국내 위험물안전관리법 적용해설","Application of the Safety Control of Dangerous Substances Act in the Nuclear Power Plants","전력기술지_백선혜.docx","2018.07.06","2018.06.30","논문","사내전력기술지",null,"백선혜","원자력본부","기계기술그룹(원자력)","백운황(27912  기계기술그룹(원자력)),장철호(25813  기계기술그룹(원자력))","사내","2018년 전력기술지","[발표신청서] 본부장 결재완료","6원자력본부사내",null,6,null,"2018","06","30",null,"2018.06",null,"원자력본부사내전"]
[47,"설계기준초과사고시 중앙집중식 사용후핵연료 중간저장시설의 방사성핵종 누출영향평가","The Safety Assessment of Central Spent Fuel Intrim Storage on Beyond DBA","[전력기술지] 사용후핵연료 중간저장시설 핵종 누출 영향평가.hwp","2018.07.06","2018.06.30","논문","사내전력기술지",null,"이동진","원자력본부","원전사후관리사업그룹","권용범(28937  원전사후관리사업그룹),손동빈(49673  원전사후관리사업그룹)","사내","전력기술지","[발표신청서] 본부장 결재대기","6원자력본부사내",null,6,null,"2018","06","30",null,"2018.06",null,"원자력본부사내전"]
[48,"원전 매설배관의 부식결함탐상을 위한 비접촉 간접검사 기술개발","Development of Noncontact Indirect Inspection Technology for Detection of Corrosion Defect in Buired Piping of Nuclear Power Plants","CSSK 2018 춘계 초록 - 김재원-부식방식 시뮬레이션-구두.doc","2018.07.06","2018.05.10","논문","국내학술발표",null,"김재원","미래기술연구소","미래기술연구소","정규석(22402  재료연구기술그룹),황경모(24584  재료연구기술그룹)","국내","한국부식방식학회 춘계학술대회","[발표신청서] 본부장 결재완료","5미래기술연구소국내",null,5,null,"2018","05","10",null,"2018.05",null,"미래기술연구소국내학"]
[49,"APR1400 국내외 원전건설 적정공기에 대한 고찰","Construction duration study on APR1400 Model in Domestic and Overseas","APR1400 국내외 원전건설 적정공기 산정(R2).hwp","2018.06.27","2018.07.15","논문","사내전력기술지",null,"이재학","원자력본부","사업관리기술그룹(원자력)","김병주(18951  사업관리기술그룹(원자력)),홍순원(24952  사업관리기술그룹(원자력))","사내","전력기술지","[발표신청서] 본부장 결재완료","7원자력본부사내",null,7,null,"2018","07","15",null,"2018.07",null,"원자력본부사내전"]
[50,"면진설계가 적용된 NPP의 MS Interface의 배관계통에 대한 내진해석방법 연구","A STUDY ON THE SEISMIC ANALYSIS METHOD FOR MS INTERFACE PIPING SYSTEM IN A BASE-ISOLATED NPP","2018 하계 전력기술지_김대수.pdf","2018.06.29","2018.07.17","논문","사내전력기술지",null,"김대수","원자력본부","배관기술그룹(원자력)","이건석(37884  배관기술그룹(원자력)),조성호(39187  배관기술그룹(원자력))","사내","2018 하계 전력기술지","[발표신청서] 본부장 결재완료","7원자력본부사내",null,7,null,"2018","07","17",null,"2018.07",null,"원자력본부사내전"]
[51,"케스케이드 제어 기법을 적용한 제어계통 알고리즘의 동적응답특성 분석","Analysis on Dynamic Response Characteristics of Cascade Control Algorithm Applied in Control Systems","케스케이드 제어 기법을 적용한 제어계통 알고리즘의 동적응답특성 분석.hwp","2018.07.02","2018.07.20","논문","사내전력기술지",null,"안명훈","원자로설계개발단","계측제어설계그룹","김항배(33832  계측제어설계그룹),백승민(33878  계측제어설계그룹)","사내","2018 하계 전력기술지","[발표신청서] 본부장 결재완료","7원자로설계개발단사내",null,7,null,"2018","07","20",null,"2018.07",null,"원자로설계개발단사내전"]
[52,"기능성 시멘트 복합체의 특성 평가를 위한 미세역학적 기반 계층적 해석 모델","A Micromechanics-based hierarchical computational model to predict functional behaviors of electrified cementitious composites","WCCM2018_Extended Summary_R1.pdf","2018.05.09","2018.07.23","논문","해외학술발표",null,"김봉래","원자력본부","토목건축기술그룹(원자력)","김도연(41231  토목건축기술그룹(원자력)),김창규(29592  토목건축기술그룹(원자력))","해외","Proceedings of 13th World Congress on Computational Mechanics (WCCM XIII)","[발표신청서] 본부장 결재완료","7원자력본부해외",null,7,null,"2018","07","23",null,"2018.07",null,"원자력본부해외학"]
[53,"발전소 초기전원가압을 위한 접지망 건전성 분석","Analysis of Integrity of Ground Grid of Generating Station for Initial Energization","초기전원가압시 접지망 건전성 분석.docx","2018.07.06","2018.07.31","논문","사내전력기술지",null,"유재석","원자력본부","전기기술그룹(원자력)","이원희(30784  원전O&amp;M사업그룹),최창혁(23575  전기기술그룹(원자력))","사내","사내전력기술지(하계)","[발표신청서] 본부장 결재완료","7원자력본부사내",null,7,null,"2018","07","31",null,"2018.07",null,"원자력본부사내전"]
[54,"분기관 입구의 음향진동 해석 방법","Acoustic Vibration Analysis on Closed Side Branch Piping Inlet","분기관_음향진동_전력기술_2018.doc","2018.06.11","2018.07.31","논문","사내전력기술지",null,"전창빈","원자력본부","배관기술그룹(원자력)","서정환(38266  기계기술그룹(원자력)),이아람(37398  기계기술그룹(원자력))","사내","전력기술지","[발표신청서] 본부장 결재완료","7원자력본부사내",null,7,null,"2018","07","31",null,"2018.07",null,"원자력본부사내전"]
[55,"에너지전환 주요 이슈 및 발전원별 경제성","Issues on Energy Transition and Levelized Cost of Electricity","논문_에너지전환 이슈 및 발전원별 발전원가(LCOE)_180621 감수용.docx","2018.07.06","2018.07.31","논문","사내전력기술지",null,"김민철","원자력본부","사업관리기술그룹(원자력)","박기조(25001  사업관리기술그룹(원자력)),이제성(22904  사업관리기술그룹(원자력))","사내","전력기술지","[발표신청서] 본부장 결재완료","7원자력본부사내",null,7,null,"2018","07","31",null,"2018.07",null,"원자력본부사내전"]
[56,"원자로냉각재 유동혼합율에 따른 이차계통의 열제거 이상 사건 평가","Evaluation of Abnormal Heat Removal Events by the Secondary System with the Flow Mixing Rate of Reactor Coolant","원자로냉각재 유동혼합율에 따른 이차계통의 열제거 이상 사건 평가.docx","2018.07.19","2018.07.31","논문","사내전력기술지",null,"김경련","원자로설계개발단","안전해석그룹","장호철(34098  유체계통설계그룹),최철진(33131  안전해석그룹)","사내","전력기술지","[발표신청서] 본부장 결재완료","7원자로설계개발단사내",null,7,null,"2018","07","31",null,"2018.07",null,"원자로설계개발단사내전"]
[57,"원전 안전등급 1 배관의 온도구배 열응력 평가에 대한 기술적 고찰","Technical Review on Temperature Gradient Thermal Stress Evaluation for Nuclear Class 1 Piping","KSME (안전등급 1 배관의 온도구배 열응력 평가에 대한 기술적 고찰) R1.pdf","2018.07.30","2018.07.31","논문","국내학술지",null,"오창균","원자력본부","재료연구기술그룹","남일권(34355  배관기술그룹(원자력)),박상윤(43929  배관기술그룹(원자력))","국내","대한기계학회 논문집A","[발표신청서] 본부장 결재완료","7원자력본부국내",null,7,null,"2018","07","31",null,"2018.07",null,"원자력본부국내학"]
[58,"인공지능 로직 및 조기경보시스템 적용","Application of Artificial Intelligent Logic and Early Alarm System","인공지능 로직 및 조기경보시스템 적용(2018-하계).doc","2018.06.25","2018.07.31","논문","사내전력기술지",null,"유충희","에너지신사업본부","전기계측기술그룹(신사업)","김우순(20252  전기계측기술그룹(신사업)),반두현(26639  전기계측기술그룹(신사업))","사내","전력기술지","[발표신청서] 본부장 결재완료","7에너지신사업본부사내",null,7,null,"2018","07","31",null,"2018.07",null,"에너지신사업본부사내전"]
[59,"초임계 CO2 발전사이클을 적용한 복합화력발전소 성능분석","Performance Analysis of Combined Cycle Power Plant using Supercritical CO2 Power Cycle","2018년하계 기술논문_초임계 이산화탄소 발전사이클을 적용한 복합화력발전소 성능분석180604.doc","2018.06.27","2018.07.31","논문","사내전력기술지",null,"박종민","미래기술연구소","미래기술연구소","김명석(22226  미래기술연구소),조성필(36882  환경기술그룹(신사업))","사내","2018년도 전력기술지","[발표신청서] 본부장 결재완료","7미래기술연구소사내",null,7,null,"2018","07","31",null,"2018.07",null,"미래기술연구소사내전"]
[60,"면진시스템을 포함한 원전시설물을 위한 신규 한국 설계기준","New Korean Design Code for the Nuclear Power Facilities with Seismic Isolation Systems","TINCE2018_(Sanghoon LEE)_Rev1.docx","2018.07.18","2018.08.29","논문","해외학술발표",null,"이상훈","미래기술연구소","기술전략실","김학철(17176  기술전략실),서규민(16808  기술전략실)","해외","TINCE 2018","[발표신청서] 본부장 결재완료","8미래기술연구소해외",null,8,null,"2018","08","29",null,"2018.08",null,"미래기술연구소해외학"]
[61,"항공기 충돌시 항공유의 분산에 의한 광역화재의 영향","Effects of Large Fire due to Dispersal of Jet Fuel during Aircraft Impact","TINCE2018_Jet Fuel Dispersion_Ilhwan Moon.docx","2018.06.19","2018.08.30","논문","해외학술발표",null,"문일환","원자력본부","원자력사업처","이영석(20333  미래기술연구소),한승룡(43272  미래기술연구소)","해외","TINCE(Technical Innovation in Nuclear Civil Engineering) 2018","[발표신청서] 본부장 결재완료","8원자력본부해외",null,8,null,"2018","08","30",null,"2018.08",null,"원자력본부해외학"]
[62,"원자력발전소의 형상관리를 위한 실(Room)기반 데이터베이스 구축에 관한 연구 - 설계요건 및 형상정보를 중심으로","Establishment of Room Based Database for Configuration Management - Focusing on the Design Requirement and Facility Configuration Information","신재섭_원자력발전소 형상관리를 위한 실기반 데이터베이스 구축.pdf","2018.07.12","2018.09.01","논문","국내학술지",null,"신재섭","원자력본부","토목건축기술그룹(원자력)","서영달(34524  토목건축기술그룹(원자력)),이상배(16669  사업책임자실(원자력))","국내","한국건설관리학회 논문집","[발표신청서] 본부장 결재완료","9원자력본부국내",null,9,null,"2018","09","01",null,"2018.09",null,"원자력본부국내학"]
[63,"열수력분석결과를 활용한 정지저출력 2단계 PSA의 PDS와 CET 개발방법론","The methodology of Plant Damage State and Containment Event Tree development in the Low Power Shutdown Probabilistic Safety Assessment Level 2 using T/H analysis code","PSAM14-논문(LPSD L2 PSA,사내논문감수완료).pdf","2018.04.13","2018.09.16","논문","해외학술발표",null,"김재갑","원자력본부","안전성평가기술그룹(원자력)","김광추(26366  기계기술그룹(원자력)),최진태(42795  안전성평가기술그룹(원자력))","해외","PSAM14","[발표신청서] 본부장 결재완료","9원자력본부해외",null,9,null,"2018","09","16",null,"2018.09",null,"원자력본부해외학"]
[64,"ASME SEC. XI를 적용한 배관용접부 응력산출 및 결함평가","Stress Calculation and Evaluation of Flaw in Piping Welds Based on ASME SEC. XI","ASME SEC. XI_원)배관_책임_박상윤.doc","2018.10.04","2018.09.28","논문","사내전력기술지",null,"박상윤","원자력본부","배관기술그룹(원자력)","남일권(34355  배관기술그룹(원자력)),원윤호(28907  배관기술그룹(원자력))","사내","사내전력기술지","[발표신청서] 본부장 결재완료","9원자력본부사내",null,9,null,"2018","09","28",null,"2018.09",null,"원자력본부사내전"]
[65,"관리기준공정표 통합방안 검토","Review of Integration Plan for Integrated Project Schedule","전력기술지논문-관리기준공정표통합방안검토(Rev.H)_최종.doc","2018.09.18","2018.09.28","논문","사내전력기술지",null,"윤성진","원자력본부","사업관리기술그룹(원자력)","권태중(18428  사업관리기술그룹(원자력)),박종효(21557  사업관리기술그룹(원자력))","사내","사내전력기술지","[발표신청서] 본부장 결재완료",{"$f":"S66&K66&N66","v":"9원자력본부사내"},null,{"$f":"DAY(V66)","v":9},null,{"$f":"LEFT(F66,4)","v":"2018"},{"$f":"RIGHT(Y66,2)","v":"09"},{"$f":"RIGHT(F66,2)","v":"28"},null,{"$f":"LEFT(F66,7)","v":"2018.09"},null,{"$f":"K66&LEFT(H66,3)","v":"원자력본부사내전"}]
[66,"SMART 급수계통 열성층화현상 평가","Evaluation of Potential Thermal Stratification for SMART Feedwater System","전력기술지_기술보고.doc","2018.09.20","2018.09.30","논문","사내전력기술지",null,"서광희","원자력본부","기계기술그룹(원자력)","차상중(29953  기계기술그룹(원자력))","사내","전력기술지","[발표신청서] 본부장 결재완료","9원자력본부사내",null,9,null,"2018","09","30",null,"2018.09",null,"원자력본부사내전"]
[67,"부분충수운전 배제 설계개념","A Design Concept to Avoid Mid-Loop Operation","전력기술지논문(진공충수)-제출.doc","2018.09.27","2018.09.30","논문","사내전력기술지",null,"고용상","원자로설계개발단","유체계통설계그룹","김도현(31048  유체계통설계그룹),김종민(31328  기계설계그룹)","사내","사내 전력기술지","[발표신청서] 본부장 결재완료","9원자로설계개발단사내",null,9,null,"2018","09","30",null,"2018.09",null,"원자로설계개발단사내전"]
[68,"안전해석에 사용되는 계산 코드 실행 및 민감도분석 자동화 소프트웨어 개발","Automation software development of calculation code execution and sensitivity analysis for safety analysis","2018_추계_전력기술지_김동은.doc","2018.09.27","2018.09.30","논문","사내전력기술지",null,"김동은","원자로설계개발단","안전해석그룹","백승민(33878  계측제어설계그룹),최철진(33131  안전해석그룹)","사내","전력기술지 2018 추계","[발표신청서] 본부장 결재완료","9원자로설계개발단사내",null,9,null,"2018","09","30",null,"2018.09",null,"원자로설계개발단사내전"]
[69,"조명계통 고조파 특성 검토","A study on Harmonic analysis at the lighting system","조명계통 고조파 특성 분석-r1.docx","2018.09.20","2018.09.30","논문","사내전력기술지",null,"최기열","원자력본부","전기기술그룹(원자력)","강인수(25924  전기기술그룹(원자력)),임경주(26505  전기기술그룹(원자력))","사내","전력기술지","[발표신청서] 본부장 결재완료","9원자력본부사내",null,9,null,"2018","09","30",null,"2018.09",null,"원자력본부사내전"]
[70,"APR1400 원전에 대한 제어계통 공통원인고장 평가","CONTROL STSTEM SOFTWARE COMMON CAUSE FAILURE ANALYSIS FOR APR1400","CSCCF Analysis for APR1400.doc","2018.06.26","2018.10.01","논문","해외학술발표",null,"박종철","원자로설계개발단","안전해석그룹","김항배(33832  계측제어설계그룹),최철진(33131  안전해석그룹)","해외","2018 Pacific Basin Nuclear Conference (PBNC)","[발표신청서] 본부장 결재완료","10원자로설계개발단해외",null,10,null,"2018","10","01",null,"2018.10",null,"원자로설계개발단해외학"]
[71,"APR1400 최초호기인 신고리3호기 건설 및 시운전 경험","Construction and Commissioning Experience of the First APR1400, Shin-Kori unit 3","PBNC2018_Full Paper_rev01.doc","2018.06.19","2018.10.01","논문","해외학술발표",null,"서종태","원자로설계개발단","안전해석그룹","김은기(31254  유체계통설계그룹),최철진(33131  안전해석그룹)","해외","PBNC (Pacific Basin Nuclear Conference) 2018","[발표신청서] 본부장 결재완료","10원자로설계개발단해외",null,10,null,"2018","10","01",null,"2018.10",null,"원자로설계개발단해외학"]
[72,"방사성 오염 및 폐기물 발생 최소화를 위한 APR1400 설계 개선","APR1400 Design Enhancement for Minimization of Contamination and Radwaste Generation","2018 ANS-APR1400 Design for Minimization of Contamination and Radwaste Generation.doc","2018.06.25","2018.10.01","논문","해외학술발표",null,"강상호","원자력본부","원자력기술그룹(원자력)","이승기(29298  원자력기술그룹(원자력)),허석환(16646  사업책임자실(원자력))","해외","Americal Nuclear Society, Pacific Basic Nuclear Conference - 2018 PBNC","[발표신청서] 본부장 결재완료","10원자력본부해외",null,10,null,"2018","10","01",null,"2018.10",null,"원자력본부해외학"]
[73,"안전주입계통 역지밸브의 열과도 현상에 대한 연구","A STUDY ON THERMAL TRANSIENT PHENOMENA FOR CHECK VALVE OF SAFETY INJECTION SYSTEM","A STUDY ON THERMAL TRANSIENT PHENOMENA FOR CHECK VALVE OF SAFETY INJECTION SYSTEM.pdf","2018.07.27","2018.10.01","논문","해외학술발표",null,"김일환","원자로설계개발단","유체계통설계그룹","김은기(31254  유체계통설계그룹),최철진(33131  안전해석그룹)","해외","2018 Pacific Basin Nuclear Conference","[발표신청서] 본부장 결재완료","10원자로설계개발단해외",null,10,null,"2018","10","01",null,"2018.10",null,"원자로설계개발단해외학"]
[74,"철근콘크리트 전단벽의 선형 및 비선형 응답 비교","Comparison of Linear and Nonlinear Responses of RC Shear Wall","철근콘크리트 전단벽의 선형 및 비선형 응답 비교.pdf","2018.09.20","2018.10.01","논문","사내전력기술지",null,"김도연","원자력본부","토목건축기술그룹(원자력)","강주형(36963  토목건축기술그룹(원자력)),김봉래(42728  토목건축기술그룹(원자력))","사내","전력기술지","[발표신청서] 본부장 결재대기","10원자력본부사내",null,10,null,"2018","10","01",null,"2018.10",null,"원자력본부사내전"]
[75,"풍력발전 설비 뇌격시 서지 해석","Surge Analysis of Lightning Stroke on Wind Power","풍력발전_뇌격시_서지해석.doc","2018.08.31","2018.10.01","논문","사내전력기술지",null,"강경두","미래기술연구소","미래기술연구소","김근성(25901  전기계측기술그룹(신사업)),여경규(30696  전기계측기술그룹(신사업))","사내","전력기술지","[발표신청서] 본부장 결재완료","10미래기술연구소사내",null,10,null,"2018","10","01",null,"2018.10",null,"미래기술연구소사내전"]
[76,"원자력발전소의 공동매트기초에 대한 시공단계해석","Construction Sequence Analysis of Common Basemat in NPP","CONSTRUCTION SEQUENCE ANALYSIS OF COMMON BASEMAT IN NPP_R0.docx","2018.07.03","2018.10.03","논문","해외학술발표",null,"이현호","원자력본부","토목건축기술그룹(원자력)","김대중(26669  토목건축기술그룹(원자력)),조훈인(27743  토목건축기술그룹(원자력))","해외","2018 Pacific Basin Nuclear Conference","[발표신청서] 본부장 결재완료","10원자력본부해외",null,10,null,"2018","10","03",null,"2018.10",null,"원자력본부해외학"]
[77,"무선통신 원전적용에 대한 EMI/RFI 규제요건 고찰","Consideration of EMI/RFI Regulatory Requirements for Nuclear Power Plant Applications of Wireless Communication","전력기술지 2018년 추계논문 무선통신 적용에 대한 RFI 규제요건 고찰.doc","2018.09.28","2018.10.12","논문","사내전력기술지",null,"송이철","원자력본부","원전안전센터","김익재(37109  원전안전센터),왕찬식(30414  원전안전센터)","사내","한기 전력기술지","[발표신청서] 본부장 결재완료","10원자력본부사내",null,10,null,"2018","10","12",null,"2018.10",null,"원자력본부사내전"]
[78,"iPOWER 발전소보호계통의 트립 알고리즘 설계","The trip algorithm design of plant protection system in iPOWER","Trip_algorithm_design_of_PPS_in_iPOWER_KNS.pdf","2018.08.23","2018.10.24","논문","국내학술발표",null,"김영글","원자로설계개발단","계측제어설계그룹","김항배(33832  계측제어설계그룹),백승민(33878  계측제어설계그룹)","국내","한국원자력학회","[발표신청서] 본부장 결재완료","10원자로설계개발단국내",null,10,null,"2018","10","24",null,"2018.10",null,"원자로설계개발단국내학"]
[79,"개인의 성격 특성 요소가 원자력발전소 운전원에게 미치는 영향","Effects of Personality Traits on Human Operators in Nuclear Power Plants","Effects of Personality Traits on Human Operators in NPPs_KNS.pdf","2018.08.24","2018.10.24","논문","국내학술발표",null,"김태진","원자로설계개발단","계측제어설계그룹","김항배(33832  계측제어설계그룹),백승민(33878  계측제어설계그룹)","국내","한국원자력학회","[발표신청서] 본부장 결재대기","10원자로설계개발단국내",null,10,null,"2018","10","24",null,"2018.10",null,"원자로설계개발단국내학"]
[80,"원자력 발전소 시험기기에 대한 내진성능 케이스 분석","Case experience on Seismic Testing of a device of Nuclear Power Plant","Case experience on Seismic Testing of a device of Nuclear Power Plant.docx","2018.08.28","2018.10.24","논문","국내학술발표",null,"정재훈","원자력본부","안전성평가기술그룹(원자력)","송정국(34531  안전성평가기술그룹(원자력)),이동원(37382  안전성평가기술그룹(원자력))","국내","한국원자력학회","[발표신청서] 본부장 결재완료","10원자력본부국내",null,10,null,"2018","10","24",null,"2018.10",null,"원자력본부국내학"]
[81,"원전 배관 두께 측정 데이터의 확률론적 신뢰도 분석 방법","Probabilistic Reliability Analysis Method of Pipe Thickness Measurement Data in Nuclear Power Plants Piping","논문 1. (윤훈) 한국부식방식학회 논문 초록f.docx","2018.09.06","2018.10.24","논문","국내학술발표",null,"윤훈","원자력본부","재료기술그룹(원자력)","박흥배(28775  미래기술연구소),오창균(38324  재료기술그룹(원자력))","국내","한국부식방식학회 추계학술대회","[발표신청서] 본부장 결재완료","10원자력본부국내",null,10,null,"2018","10","24",null,"2018.10",null,"원자력본부국내학"]
[82,"지진취약도분석을 위한 ACI코드와 EPRI 보고서의 콘크리트 앵커 강도비교","The Comparison of Embedded Anchors Strength between ACI Code and EPRI Report","논문초안_ASH_180823.docx","2018.08.28","2018.10.24","논문","국내학술발표",null,"안수현","원자력본부","안전성평가기술그룹(원자력)","송정국(34531  안전성평가기술그룹(원자력)),이동원(37382  안전성평가기술그룹(원자력))","국내","한국원자력학회","[발표신청서] 본부장 결재완료","10원자력본부국내",null,10,null,"2018","10","24",null,"2018.10",null,"원자력본부국내학"]
[83,"3D 유한요소법을 이용한 원전 매설배관 부식결함 탐상기술 개발","Development of Technology for Detection of Corrosion Defects in Buried Pipes of Nuclear Power Plants with 3D FEM","CSSK 2018 추계 초록 - 김재원-부식방식 시뮬레이션-구두.doc","2018.09.12","2018.10.25","논문","국내학술발표",null,"김재원","미래기술연구소","미래기술연구소","오창균(38324  재료기술그룹(원자력)),황경모(24584  재료기술그룹(원자력))","국내","한국부식방식학회 추계학술대회","[발표신청서] 본부장 결재완료","10미래기술연구소국내",null,10,null,"2018","10","25",null,"2018.10",null,"미래기술연구소국내학"]
[84,"APR+ 고유노심보호계통(ICOPS) SW 개발 및 검증","In-Core Protection System (ICOPS) Software Development and Verification for APR+","Icops_2018.doc","2018.10.29","2018.10.25","논문","국내학술발표",null,"김창호","원자로설계개발단","계측제어설계그룹","김항배(33832  계측제어설계그룹),장영우(47602  원자로안전점검실)","국내","Transactions of the Korean Nuclear Society Autumn Meeting","[발표신청서] 주관부서 부서장 결재대기","10원자로설계개발단국내",null,10,null,"2018","10","25",null,"2018.10",null,"원자로설계개발단국내학"]
[85,"APR+ 원전 적용을 위한 개선된 일체형원자로상부구조물 설계","Advanced Integrated Head Assembly Design for APR+ Nuclear Power Plants","2018.07.30_2018_추계_원자력학회_원종상.doc","2018.08.13","2018.10.25","논문","국내학술발표",null,"원종상","원자로설계개발단","기계설계그룹","이대희(32293  기계설계그룹),전성환(32758  사업책임자실(원자로))","국내","한국원자력학회 2018년도 추계 학술발표회","[발표신청서] 본부장 결재완료","10원자로설계개발단국내",null,10,null,"2018","10","25",null,"2018.10",null,"원자로설계개발단국내학"]
[86,"ASME/ANS 요건 2009 대비 2013 변경부분에 대한 침수 PRA 적용 방안","Application Method of ASME/ANS RA-Sb-2013 compared with 2009 for Flooding PRA","99__Application Method of ASMEANS RA-Sb-2013 compared with 2009 for Flooding PRA_R1.doc","2018.08.23","2018.10.25","논문","국내학술발표",null,"손현준","원자력본부","안전성평가기술그룹(원자력)","김동욱(36107  안전성평가기술그룹(원자력)),박병탁(30069  안전성평가기술그룹(원자력))","국내","한국원자력학회","[발표신청서] 본부장 결재완료","10원자력본부국내",null,10,null,"2018","10","25",null,"2018.10",null,"원자력본부국내학"]
[87,"MAAP 5.04 버전의 MCCI에 대한 원자로건물 모델 개선사항","Containment Model Enhancements for MCCI in MAAP 5.04","draft_20180820_KNS논문.doc","2018.08.21","2018.10.25","논문","국내학술발표",null,"조성민","원자력본부","원자력기술그룹(원자력)","김재갑(28553  안전성평가기술그룹(원자력)),신상우(40761  원자력기술그룹(원자력))","국내","2018 한국원자력학회 추계학술발표회","[발표신청서] 본부장 결재완료","10원자력본부국내",null,10,null,"2018","10","25",null,"2018.10",null,"원자력본부국내학"]
[88,"MAAP5를 이용한 OPR100 냉각기능상실사고 시 사용후연료저장조 거동 분석","Analysis of Behavior of SFP in Case of LOSFPC Accident Using MAAP5 Code in Pressurized Light Water Reactor (OPR1000)","[논문]MAAP5 TLOSFPC 분석 최종본.doc","2018.08.27","2018.10.25","논문","국내학술발표",null,"이대형","미래기술연구소","미래기술연구소","김병선(27847  미래기술연구소),이태화(43089  미래기술연구소)","국내","2018 추계학술발표회","[발표신청서] 본부장 결재완료","10미래기술연구소국내",null,10,null,"2018","10","25",null,"2018.10",null,"미래기술연구소국내학"]
[89,"MAAP5코드를 이용한 가압경수로 원자로외벽냉각 및 냉각수 노내 주입시 노심용융물 노내 억류능력 분석","In-Vessel Retention Analysis for Pressurized Light Water Reactors with In-Vessel Injection and External Reactor Vessel Cooling using MAAP5 Code","2018 KNS 추계논문-이정성.doc","2018.08.20","2018.10.25","논문","국내학술발표",null,"이정성","원자력본부","원자력기술그룹(원자력)","문재승(43906  원자력기술그룹(원자력)),조성민(37942  원자력기술그룹(원자력))","국내","한국원자력학회 추계학술발표회","[발표신청서] 본부장 결재완료","10원자력본부국내",null,10,null,"2018","10","25",null,"2018.10",null,"원자력본부국내학"]
[90,"OPR1000 가동원전 원자로상부구조물 개선방안","A Reactor Head Package Upgrade Applicable to OPR1000 Operating Nuclear Power Plants","2018_추계원자력학회_초안_2018_07_27.doc","2018.08.10","2018.10.25","논문","국내학술발표",null,"오혁성","원자로설계개발단","기계설계그룹","김인용(34318  기계설계그룹),유성식(33996  사업책임자실(원자로))","국내","추계 원자력학회","[발표신청서] 본부장 결재완료","10원자로설계개발단국내",null,10,null,"2018","10","25",null,"2018.10",null,"원자로설계개발단국내학"]
[91,"PCCS 모델에서의 pH 및 요오드 재휘발 평가","Evaluation of pH and Iodine Re-evolution on the Conceptual design for PCCS","Evaluation of pH and Iodine Re-evolution on the Conceptual design for PCCS.docx","2018.08.24","2018.10.25","논문","국내학술발표",null,"방진솔","원자력본부","원자력기술그룹(원자력)","안효철(44406  원자력기술그룹(원자력)),이동수(41342  원자력기술그룹(원자력))","국내","원자력학회 학술발표","[발표신청서] 본부장 결재완료","10원자력본부국내",null,10,null,"2018","10","25",null,"2018.10",null,"원자력본부국내학"]
[92,"Thrust Uncertainty Method(TUM)를 이용한 원자력발전소 모터구동 게이트 밸브의 운전여유도 개선","Operational margin improvement of motor operated gate valves using Thrust Uncertainty Method(TUM) in nuclear power plants","(20180820)Operational margin improvement of motor operated gate valves using Thrust Uncertainty Method(TUM) in nuclear power plants.docx","2018.08.23","2018.10.25","논문","국내학술발표",null,"이제욱","원자력본부","안전성평가기술그룹(원자력)","김현철(41668  안전성평가기술그룹(원자력)),장진아(39127  안전성평가기술그룹(원자력))","국내","2018 추계 원자력학회","[발표신청서] 본부장 결재완료","10원자력본부국내",null,10,null,"2018","10","25",null,"2018.10",null,"원자력본부국내학"]
[93,"발전소보호계통 온도불확실도 계산 방법론 개선","Improvement of Temperature Uncertainty Calculation Methodology for the Plant Protection System","2018년 추계원자력학회 논문.doc","2018.08.20","2018.10.25","논문","국내학술발표",null,"이창재","원자로설계개발단","계측제어설계그룹","김항배(33832  계측제어설계그룹),장영우(47602  원자로안전점검실)","국내","Korean Nuclear Society","[발표신청서] 본부장 결재완료","10원자로설계개발단국내",null,10,null,"2018","10","25",null,"2018.10",null,"원자로설계개발단국내학"]
[94,"사고조건에서 사용후핵연료 캐스크(OASIS-32D) 열성능해석에 대한 연구","A Study on Thermal Performance for the OASIS-32D Spent Nuclear Fuel Cask under Severe Fire Accident Conditions","2018 원자력학회 CASK 사고조건에서 열성능해석 연구.doc","2018.08.22","2018.10.25","논문","국내학술발표",null,"박재형","원자로설계개발단","유체계통설계그룹","안준기(32108  기계설계그룹),허진(33316  유체계통설계그룹)","국내","한국원자력학회","[발표신청서] 본부장 결재완료","10원자로설계개발단국내",null,10,null,"2018","10","25",null,"2018.10",null,"원자로설계개발단국내학"]
[95,"원자력발전소 공기구동 게이트 밸브의 성능예측결과와 정적진단시험 결과의 요구쓰러스트 비교","Required torque comparison of the performance prediction and static diagnostic test for air-operated valves in NPP","(20180907)Required torque comparison of the performance prediction and static diagnostic test for air-operated valves in NPP.docx","2018.09.11","2018.10.25","논문","국내학술발표",null,"김봉환","원자력본부","안전성평가기술그룹(원자력)","김현철(41668  안전성평가기술그룹(원자력)),이제욱(37912  안전성평가기술그룹(원자력))","국내","2018 원자력학회 추계학술발표회","[발표신청서] 본부장 결재완료","10원자력본부국내",null,10,null,"2018","10","25",null,"2018.10",null,"원자력본부국내학"]
[96,"원자력발전소의 부품 품질등급 및 안전등급 분류 개선방안","The Improvement in Safety and Quality Classification of Parts Used in Nuclear Power Plant Applications","The Improvement in Safety and Quality Classification of Parts Used in Nuclear Power Plant Applications.doc","2018.07.25","2018.10.25","논문","국내학술발표",null,"류문영","원자력본부","원전안전센터","김형석(26262  기계기술그룹(원자력)),서성제(30643  원전안전센터),송이철(17759  원전안전센터)","국내","Transactions of the Korean Nuclear Society Autumn Meeting","[발표신청서] 본부장 결재완료","10원자력본부국내",null,10,null,"2018","10","25",null,"2018.10",null,"원자력본부국내학"]
[97,"원전 매설배관 간접검사 기술에서의 분해능 고찰","Study on Resolution of Indirect Inspection Techniques for Coating Defects of NPP’s Buried Pipe","CSSK 2018 추계 초록-임부택-침식부식-구두.doc","2018.10.17","2018.10.25","논문","국내학술발표",null,"임부택","원자력본부","재료기술그룹(원자력)","박진석(26933  재료기술그룹(원자력)),황경모(24584  재료기술그룹(원자력))","국내","2018년도 한국부식방식학회 추계학술대회 초록집","[발표신청서] 본부장 결재완료","10원자력본부국내",null,10,null,{"$f":"LEFT(F98,4)","v":"2018"},"10",{"$f":"RIGHT(F98,2)","v":"25"},null,{"$f":"LEFT(F98,7)","v":"2018.10"},null,{"$f":"K98&LEFT(H98,3)","v":"원자력본부국내학"}]
[98,"유량조절을 위한 오리피스 조정에 대한 연구","A Study on Adjusting Method for Orifices for Flow Balancing","A Study on Adjusting Method for CVCS Letdown Orifices - author CHOI Jungdae.docx","2018.08.23","2018.10.25","논문","국내학술발표",null,"최정대","원자로설계개발단","원자로사업개발처","박종섭(31682  유체계통설계그룹),정장규(32876  유체계통설계그룹)","국내","한국원자력학회","[발표신청서] 본부장 결재완료","10원자로설계개발단국내",null,10,null,"2018","10","25",null,"2018.10",null,"원자로설계개발단국내학"]
[99,"정지저출력 운전의 Risk 감소를 위한 RCS 비상주입의 효과","The effectiveness of emergency injection to RCS for risk reduction in Low Power and Shutdown Operation","Microsoft Word - 2018 추계원자력학회 - LPSD 설계최적화 (감수전).pdf","2018.08.23","2018.10.25","논문","국내학술발표",null,"한덕성","원자력본부","안전성평가기술그룹(원자력)","김기수(36086  안전성평가기술그룹(원자력)),최진태(42795  안전성평가기술그룹(원자력))","국내","2018 추계 원자력 학회","[발표신청서] 본부장 결재완료","10원자력본부국내",null,10,null,"2018","10","25",null,"2018.10",null,"원자력본부국내학"]
[100,"철근콘크리트 전단벽의 비선형 동적 응답","Nonlinear Dynamic Response of RC Shear Wall","한국원자력학회_2018추계학술발표회.pdf","2018.08.22","2018.10.25","논문","국내학술발표",null,"김도연","원자력본부","토목건축기술그룹(원자력)","강주형(36963  토목건축기술그룹(원자력)),김봉래(42728  토목건축기술그룹(원자력))","국내","한국원자력학회 2018추계학술발표회","[발표신청서] 본부장 결재완료","10원자력본부국내",null,10,null,"2018","10","25",null,"2018.10",null,"원자력본부국내학"]
[101,"침수완화 운전원 조치를 고려한 내부 침수사건 시나리오 영향 평가","Impact of Applying Flood Mitigating Actions to Internal Flooding Scenarios","Considering Flood Mitigation Actions for Internal Flooding PSA.docx","2018.08.23","2018.10.25","논문","국내학술발표",null,"손진식","원자력본부","안전성평가기술그룹(원자력)","나두완(50858  안전성평가기술그룹(원자력)),박병탁(30069  안전성평가기술그룹(원자력))","국내","한국원자력학회","[발표신청서] 본부장 결재완료","10원자력본부국내",null,10,null,"2018","10","25",null,"2018.10",null,"원자력본부국내학"]
[102,"포화증기의 직접접촉 응축현상에 대한 수치해석 연구","Numerical Study on Direct Contact Condensation Phenomenon of  Saturated Steam","A Feasibility Study on the of Direct Contact Condensation Phenomenon Using Computational Fluid Dynamics (2018-08-02,이근우).doc","2018.08.15","2018.10.25","논문","국내학술발표",null,"이근우","원자로설계개발단","유체계통설계그룹","김경련(42869  안전해석그룹),김은기(31254  유체계통설계그룹)","국내","한국원자력학회 추계학술대회","[발표신청서] 본부장 결재완료","10원자로설계개발단국내",null,10,null,"2018","10","25",null,"2018.10",null,"원자로설계개발단국내학"]
[103,"CHECWORKS와 ToSPACE 프로그램의 배관감육 해석결과 비교","Comparison of Wall Thinning Analysis Results between CHECWORKS and ToSPACE","(황경모) ToSPACE & CHECWORKS 비교.docx","2018.10.01","2018.10.26","논문","국내학술지",null,"황경모","원자력본부","재료기술그룹(원자력)","노희영(23781  재료기술그룹(원자력)),박흥배(28775  미래기술연구소)","국내","한국부식방식학회","[발표신청서] 본부장 결재완료","10원자력본부국내",null,10,null,"2018","10","26",null,"2018.10",null,"원자력본부국내학"]
[104,"MAAP 5 코드를 이용한 가압경수로 원자로건물 피동냉각계통 성능평가","Performance Assessment of Passive Containment Cooling System Using MAAP 5 Code in Pressurized Light Water Reactor","Performance Assessment of Passive Containment Cooling System Using MAAP 5 Code in Pressurized Light Water Reactor.doc","2018.08.21","2018.10.26","논문","국내학술발표",null,"곽수민","원자력본부","원자력기술그룹(원자력)","김병조(43603  원자력기술그룹(원자력)),문재승(43906  원자력기술그룹(원자력))","국내","원자력학회 학술발표회 논문집","[발표신청서] 본부장 결재완료","10원자력본부국내",null,10,null,"2018","10","26",null,"2018.10",null,"원자력본부국내학"]
[105,"MAAP code를 이용한 PWR에서 산소고갈시 PAR 성능저하 분석","Analysis of PAR Performance Degradation due to Oxygen Starvation in PWR Using MAAP Code","2018 추계 원자력학회 논문(오훈구) final.docx","2018.08.23","2018.10.26","논문","국내학술발표",null,"오훈구","원자력본부","원자력기술그룹(원자력)","이정성(42041  원자력기술그룹(원자력)),조성민(37942  원자력기술그룹(원자력))","국내","2018 추계원자력학회 학술발표회","[발표신청서] 본부장 결재완료","10원자력본부국내",null,10,null,"2018","10","26",null,"2018.10",null,"원자력본부국내학"]
[106,"원전 배관감육관리를 위한 ToSPACE 프로그램 개발","Development of ToSPACE for Pipe Wall Thinning Management in Nuclear Power Plants","(WJNST)-Development of ToSPACE(KMHwang)181011(F).docx","2018.10.21","2018.10.26","논문","SCI저널자료",null,"황경모","원자력본부","재료기술그룹(원자력)","김광추(26366  기계기술그룹(원자력)),박흥배(28775  미래기술연구소)","해외","World Journal of Nuclear Science and Technology","[발표신청서] 본부장 결재완료","10원자력본부해외",null,10,null,"2018","10","26",null,"2018.10",null,"원자력본부SCI"]
[107,"원전기기의 확률론적 건전성 평가 현황","Current Status on Integrity Evaluation using Probabilistic Fracture Mechanics for Nuclear Power Plant Components","원전기기의 확률론적 건전성 평가 현황_박홍선(확장초록).docx","2018.10.08","2018.10.26","논문","국내학술발표",null,"박홍선","원자로설계개발단","기계설계그룹","김인용(34318  기계설계그룹),이대희(32293  기계설계그룹)","국내","한국정밀공학회 2018년도 추계학술대회논문집","[발표신청서] 본부장 결재완료","10원자로설계개발단국내",null,10,null,"2018","10","26",null,"2018.10",null,"원자로설계개발단국내학"]
[108,"지연된 원자로정지 조건에서의 증기발생기 방출 혹은 안전밸브의 부주의한 개방에서의 핵연료 건전성에 대한 연구","A Study on Fuel Integrity during an Inadvertent Opening of Steam Generator Relief or Safety Valves with Delayed Scram","AOO with Delayed Scram-KNS Autumn.doc","2018.08.13","2018.10.26","논문","국내학술발표",null,"이상섭","원자로설계개발단","안전해석그룹","최철진(33131  안전해석그룹),허진(33316  유체계통설계그룹)","국내","2018  원자력학회 추계 학술발표회","[발표신청서] 본부장 결재완료","10원자로설계개발단국내",null,10,null,"2018","10","26",null,"2018.10",null,"원자로설계개발단국내학"]
[109,"ANSI/HPS N13.1 (1999) 고찰 및 개선방안","The Study and Improvement in ANSI/HPS N13.1 (1999)","ANSI N13.1 (1999) 고찰 및 개선방안.docx","2018.09.27","2018.10.31","논문","사내전력기술지",null,"송지열","원자력본부","계측제어기술그룹(원자력)","이승태(26623  계측제어기술그룹(원자력)),조병수(24975  계측제어기술그룹(원자력))","사내","전력기술지","[발표신청서] 본부장 결재완료","10원자력본부사내",null,10,null,"2018","10","31",null,"2018.10",null,"원자력본부사내전"]
[110,"ASME Sec. III, NC/ND-3657 “시험한계” 배관설계요건 개발","Development of Test Limits for Piping Design in ASME Sec. III, NC/ND-3657","전력기술지_2018 추계(남일권).docx","2018.09.26","2018.10.31","논문","사내전력기술지",null,"남일권","원자력본부","배관기술그룹(원자력)","김현수(34348  재료기술그룹(원자력))","사내","2018년도 추계 전력기술지","[발표신청서] 본부장 결재완료","10원자력본부사내",null,10,null,"2018","10","31",null,"2018.10",null,"원자력본부사내전"]
[111,"OASIS-32D 임계해석에서 연소계산으로 인한 불확실도 비교분석","Comparison Analysis of the Uncertainty Due to Fuel Depletion in the Criticality Analysis for OASIS-32D","방사성폐기물학회 18추계 학술발표회 발표논문 한영태 감수용.docx","2018.09.04","2018.10.31","논문","국내학술발표",null,"한영태","원자로설계개발단","안전해석그룹","김형헌(31409  원자로안전점검실),서종태(31897  안전해석그룹)","국내","한국방사성폐기물학회","[발표신청서] 본부장 결재완료","10원자로설계개발단국내",null,10,null,"2018","10","31",null,"2018.10",null,"원자로설계개발단국내학"]
[112,"PLUS7연료장전 OASIS-32D 캐스크 장전곡선 생산을 위한 임계해석","Criticality Analysis for Generation of Loading Curve for OASIS-32D Cask with PLUS7 Fuel","2018추계 방사성폐기물학회 발표논문_배건영.docx","2018.09.04","2018.10.31","논문","국내학술발표",null,"배건영","원자로설계개발단","안전해석그룹","김형헌(31409  원자로안전점검실),서종태(31897  안전해석그룹)","국내","한국방사성폐기물학회","[발표신청서] 본부장 결재완료","10원자로설계개발단국내",null,10,null,"2018","10","31",null,"2018.10",null,"원자로설계개발단국내학"]
[113,"고압케이블 Shield Wire 접지 적정성 확인 방법 소개","Review of Shield Voltage induced on Shield Wire of Power Cables","2018년 추계전력기술지_초안_20180917.docx","2018.10.05","2018.10.31","논문","사내전력기술지",null,"박경원","원자력본부","전기기술그룹(원자력)","강인수(25924  전기기술그룹(원자력)),유승윤(25452  전기기술그룹(원자력))","사내","2018 추계 전력기술지","[발표신청서] 본부장 결재완료","10원자력본부사내",null,10,null,"2018","10","31",null,"2018.10",null,"원자력본부사내전"]
[114,"고에너지배관 파단에 의한 폭발파 평가방법론 개발","Development of Methodology for Blast Wave due to High-Energy Line Break","2018 전력기술지_고에너지배관 파단에 의한 폭발파 평가방법론 개발(초안).doc","2018.09.20","2018.10.31","논문","사내전력기술지",null,"이상규","원자력본부","원자력기술그룹(원자력)","구정서(34739  원자력기술그룹(원자력)),문재승(43906  원자력기술그룹(원자력)),윤진규(34783  원자력기술그룹(원자력))","사내","2018년도 추계 전력기술지","[발표신청서] 본부장 결재완료","10원자력본부사내",null,10,null,"2018","10","31",null,"2018.10",null,"원자력본부사내전"]
[115,"공정 중심의 리스크 평가 프로세스 개발에 관한 연구","A study on development of risk assessment focused on schedule","공정 중심의 리스크 평가 프로세스 개발에 관한 연구.hwp","2018.09.20","2018.10.31","논문","사내전력기술지",null,"김동우","원자력본부","사업관리기술그룹(원자력)","양재웅(20532  글로벌마케팅실),이경천(22853  사업관리기술그룹(원자력))","사내","전력기술지","[발표신청서] 본부장 결재완료","10원자력본부사내",null,10,null,"2018","10","31",null,"2018.10",null,"원자력본부사내전"]
[116,"낙하 자세에 따른 사용후핵연료 금속 캐스크 자유낙하 해석","A Free Drop Analyses of Spent Nuclear Fuel Metal Cask for Various Positions","Free Drop Analyses of Spent Nuclear Fuel Metal Cask for Various Positions.pdf","2018.09.04","2018.10.31","논문","국내학술발표",null,"임혜진","원자로설계개발단","기계설계그룹","이근우(44207  유체계통설계그룹),이대희(32293  기계설계그룹)","국내","한국방사성폐기물학회","[발표신청서] 본부장 결재완료","10원자로설계개발단국내",null,10,null,"2018","10","31",null,"2018.10",null,"원자로설계개발단국내학"]
[117,"방글라데시 전력 시장 현황 및 우리회사 진출방향","Review of Bangladesh Power Market and Methods to Enter the Market","방글라데시 전력 시장 현황 및 우리회사 진출방향_2018.09.18.doc","2018.09.21","2018.10.31","논문","사내전력기술지",null,"함정훈","에너지신사업본부","신사업개발처","윤동규(44038  신사업개발처),이재준(38391  신사업개발처)","사내","2018 추계 전력기술지","[발표신청서] 본부장 결재완료","10에너지신사업본부사내",null,10,null,"2018","10","31",null,"2018.10",null,"에너지신사업본부사내전"]
[118,"사용후핵연료 운반 저장 겸용 캐스크 OASIS-32D 임계해석에서 소수 액티나이드와 핵분열생성물의 연소도고려 효과 분석","Evaluation of Burnup Credit Effect of Minor Actinides and Fission Products in the Criticality Analysis of Spent Fuel Storage and Transportation Cask OASIS-32D","전력기술지2018추계 한영태 20180914-감수용.doc","2018.09.21","2018.10.31","논문","사내전력기술지",null,"한영태","원자로설계개발단","안전해석그룹","김형헌(31409  원자로안전점검실),서종태(31897  안전해석그룹)","사내","한국전력기술 전력기술지","[발표신청서] 본부장 결재완료","10원자로설계개발단사내",null,10,null,"2018","10","31",null,"2018.10",null,"원자로설계개발단사내전"]
[119,"원자로건물 피동안전계통 GA 개발","General Arrangement Development of  Reactor Containment Building for Passive Safety Systems","전력기술지-작성-초안-보완(0913)_2차.doc","2018.10.04","2018.10.31","논문","사내전력기술지",null,"김현정","원자력본부","배관기술그룹(원자력)","구진석(36063  배관기술그룹(원자력)),박수일(29999  배관기술그룹(원자력))","사내","사내전력기술지","[발표신청서] 본부장 결재완료","10원자력본부사내",null,10,null,"2018","10","31",null,"2018.10",null,"원자력본부사내전"]
[120,"저탄장 자연발화의 이론적 고찰","A Study on Theoretical for Spontaneous Ignition of Coal Stockpiles","저탄장 자연발화 이론적 고찰_2018 추계 전력기술지.doc","2018.09.28","2018.10.31","논문","사내전력기술지",null,"박이선","에너지신사업본부","기계배관기술그룹(신사업)","이승현(43036  기계배관기술그룹(신사업))","사내","전력기술지","[발표신청서] 본부장 결재완료","10에너지신사업본부사내",null,10,null,"2018","10","31",null,"2018.10",null,"에너지신사업본부사내전"]
[121,"중앙집중식 방사성폐기물 처리시설의 고체폐기물처리설비 경제성평가","The Economic Evaluation of Solid Radioactive Waste Treatment Units for Centralized Radioactive Waste Treatment Facility","The Economic Evaluation of Solid Radioactive Waste Treatment Units for Centralized Radioactive Waste Treatment Facility_KRS2018.docx","2018.08.31","2018.10.31","논문","국내학술발표",null,"최진규","원자력본부","원자력기술그룹(원자력)","나한정(36255  원자력기술그룹(원자력)),박정수(20076  원자력기술그룹(원자력))","국내","한국방사성폐기물학회","[발표신청서] 본부장 결재완료","10원자력본부국내",null,10,null,"2018","10","31",null,"2018.10",null,"원자력본부국내학"]
[122,"최적 계통 성능을 위한 펌프 및 밸브 선정","Selection of Pumps and Valves for Optimum System Performance","논문샘플_오대근.doc","2018.10.05","2018.10.31","논문","사내전력기술지",null,"오대근","원자력본부","원자력기술그룹(원자력)","김재열(40451  원자력기술그룹(원자력)),박평원(37824  원자력기술그룹(원자력))","사내","전력기술지","[발표신청서] 본부장 결재완료","10원자력본부사내",null,10,null,"2018","10","31",null,"2018.10",null,"원자력본부사내전"]
[123,"플랜트 계측기 유량보정에 대한 연구 및 유량값 오류 최소화를 위한 보정제한회로 설계","A study on the flow compensation of a plant’s instruments and design of the compensation limitation circuit to minimize errors","논문초안(윤창선)_감수요청(09.13).docx","2018.09.19","2018.10.31","논문","사내전력기술지",null,"윤창선","에너지신사업본부","전기계측기술그룹(신사업)","반두현(26639  전기계측기술그룹(신사업)),오흥일(36424  전기계측기술그룹(신사업))","사내","전력기술지","[발표신청서] 본부장 결재완료","10에너지신사업본부사내",null,10,null,"2018","10","31",null,"2018.10",null,"에너지신사업본부사내전"]
[124,"2단계 방사성폐기물 처리시설의 소화수 수용을 위한 최적 방안검토","Optimum Method for Accommodation of fire-fighting water in Control Building of 2nd LILW Disposal Facility","Optimum Method for Accommodation of fire-fighting water in Control","2018.09.03","2018.11.01","논문","국내학술발표","40754","신무갑","원자력본부","원자력기술그룹(원자력)","김은영(34753  원자력기술그룹(원자력)),박정수(20076  원자력기술그룹(원자력))","국내","방사성폐기물학회","[발표신청서] 본부장 결재완료","11원자력본부국내",null,11,null,"2018","11","01",null,"2018.11",null,"원자력본부국내학"]
[125,"OASIS-32D 캐스크 내 보강구조(RS) 및 열전달핀(HTF)의 차폐효과","Shielding Effects of Reinforcement Structure and Heat Transfer Fin in the OASIS-32D Cask","Paper_Shieding Effects of RS and HTF in the OASIS-32D.docx","2018.09.04","2018.11.01","논문","국내학술발표","31247","김용일","원자로설계개발단","안전해석그룹","김형헌(31409  원자로안전점검실),서종태(31897  안전해석그룹)","국내","2018 추계 방사성폐기물 학회","[발표신청서] 본부장 결재완료","11원자로설계개발단국내",null,11,null,"2018","11","01",null,"2018.11",null,"원자로설계개발단국내학"]
[126,"설계기준초과사고를 고려한 사용후핵연료 저장시설에 대한 연구","The study of spent nuclear fuel Storage facility to consider Beyond Design Basis Accident","The study of nuclear spent fuel storage facility to consider Beyond Design Basis Accident.docx","2018.09.12","2018.11.01","논문","국내학술발표","49673","손동빈","원자력본부","원전사후관리사업그룹","권용범(28937  원전사후관리사업그룹),윤형준(26822  원전사후관리사업그룹)","국내","한국방사성폐기물학회지","[발표신청서] 본부장 결재완료","11원자력본부국내",null,11,null,"2018","11","01",null,"2018.11",null,"원자력본부국내학"]
[127,"원전 격납건물 철거 공정 개발","Dismantling process development of the containment building of nuclear power plant","2018방폐학회(추계) 논문-원전 격납건물 철거 공정 개발(영문)-rev 1.docx","2018.09.27","2018.11.01","논문","국내학술발표","19319","양명덕","원자력본부","원전사후관리사업그룹","임재민(28472  사업관리기술그룹(원자력)),홍순원(24952  사업관리기술그룹(원자력))","국내","한국방사성폐기물학회","[발표신청서] 본부장 결재완료","11원자력본부국내",null,11,null,"2018","11","01",null,"2018.11",null,"원자력본부국내학"]
[128,"원전해체 사업일정 개발을 위한 주요 고려사항 고찰","Major Concerns of the Dismantling Projet Schedule Development of Nuclear Power Plant","방폐학회(추계) 논문_원전해체 공정표개발 시 주요 고려사항_180910_방폐학회제출(수정).docx","2018.10.09","2018.11.01","논문","국내학술발표","34871","이준희","원자력본부","사업관리기술그룹(원자력)","임재민(28472  사업관리기술그룹(원자력)),홍순원(24952  사업관리기술그룹(원자력))","국내","방사성폐기물학회 추계학술발표회","[발표신청서] 본부장 결재완료","11원자력본부국내",null,11,null,"2018","11","01",null,"2018.11",null,"원자력본부국내학"]
[129,"차압식 계측 유량의 편차 분석","Deviation Analysis of Flowrate Measured by Differential Pressure","Summary - Eunsuk Oh.pdf","2018.10.17","2018.11.14","논문","해외학술발표","44015","오은석","원자로설계개발단","계측제어설계그룹","김항배(33832  계측제어설계그룹),백승민(33878  계측제어설계그룹)","해외","ANS Winter Meeting & Expo","[발표신청서] 본부장 결재완료",{"$f":"S130&K130&N130","v":"11원자로설계개발단해외"},null,{"$f":"DAY(V130)","v":11},null,{"$f":"LEFT(F130,4)","v":"2018"},{"$f":"RIGHT(Y130,2)","v":"11"},{"$f":"RIGHT(F130,2)","v":"14"},null,{"$f":"LEFT(F130,7)","v":"2018.11"},null,{"$f":"K130&LEFT(H130,3)","v":"원자로설계개발단해외학"}]
[130,"석탄화력발전소 미세먼지 저감 기술","Technologies for Reducing Air Pollutant Emission in Coal-fired Power Plant","2018년 상반기 전력기술지 (미세먼지 관련).docx","2018.11.22","2018.11.16","논문","사내전력기술지","38488","장필우","에너지신사업본부","환경기술그룹(신사업)","양복연(34894  환경기술그룹(신사업)),이희준(39099  환경기술그룹(신사업))","사내","사내전력기술지","[발표신청서] 본부장 결재완료","11에너지신사업본부사내",null,11,null,"2018","11","16",null,"2018.11",null,"에너지신사업본부사내전"]
[131,"3D 유한요소법을 이용한 원전 매설배관 외부결함 위치 탐상기술","Development of Technology for Detection of Outside Defects in Buried Pipes of Nuclear Power Plants with 3D FEM","KPVP 요약논문 - 결함탐상.docx","2018.11.05","2018.11.22","논문","국내학술발표","51018","김재원","미래기술연구소","미래기술연구소","윤훈(37375  재료기술그룹(원자력)),황경모(24584  재료기술그룹(원자력))","국내","KPVP 2018년도 연차학술대회","[발표신청서] 본부장 결재완료","11미래기술연구소국내",null,11,null,"2018","11","22",null,"2018.11",null,"미래기술연구소국내학"]
[132,"APR1400 원전 주기기 재료요건 주요특징과 개선","The characteristics and improvement issues of material requirements for the RCS main components of APR1400 nuclear power plants","181008-KPVP 요약논문-유완 APR1400 주기기 재료특징과 개선-3.hwp","2018.10.22","2018.11.22","논문","국내학술발표","32203","유완","원자로설계개발단","기계설계그룹","허진(33316  유체계통설계그룹),황정기(33353  기계설계그룹)","국내","KPVP","[발표신청서] 본부장 결재완료","11원자로설계개발단국내",null,11,null,"2018","11","22",null,"2018.11",null,"원자로설계개발단국내학"]
[133,"ASME Code Case 코드등급 1 배관 피로해석 시 수명 및 응력구배인자 적용성 평가를 위한 다자검토 현황","Round Robin Results for Application of ASME Code Case(Life and Gradient Factors for Section III Piping Fatigue Analyses)","KPVP 요약논문 (수명 및 분포 계수) (감수요청).hwp","2018.11.01","2018.11.22","논문","국내학술발표","43878","김연정","원자로설계개발단","기계설계그룹","백종만(31837  기계설계그룹),이대희(32293  기계설계그룹)","국내","한국압력기기공학회 2018년도 연차학술대회","[발표신청서] 본부장 결재완료","11원자로설계개발단국내",null,11,null,"2018","11","22",null,"2018.11",null,"원자로설계개발단국내학"]
[134,"PGSFR 안전계통 고온배관 설계를 위한 구조건전성 평가절차 기술개발 방향 고찰","Planning Direction of Structural Integrity Assessment Procedure Development for PGSFR Safety Class High-temperature Piping","(양식) KPVP 요약논문 양식 - 고온배관.hwp","2018.11.07","2018.11.22","논문","국내학술발표","51018","김재원","미래기술연구소","미래기술연구소","김경수(42684  미래기술연구소),장각수(20349  원자력기술그룹(원자력))","국내","KPVP 2018년도 연차 학술대회","[발표신청서] 본부장 결재완료","11미래기술연구소국내",null,11,null,"2018","11","22",null,"2018.11",null,"미래기술연구소국내학"]
[135,"가동원전 Cold Head의 운영 및 교체","Maintenance and Replacement of Cold Head of Operating Nuclear Power Plants","KPVP 요약논문_Cold Head의 운영 및 교체.hwp","2018.10.25","2018.11.22","논문","국내학술발표","31277","김일곤","원자로설계개발단","기계설계그룹","유성식(33996  사업책임자실(원자로)),황정기(33353  기계설계그룹)","국내","KPVP","[발표신청서] 본부장 결재완료","11원자로설계개발단국내",null,11,null,"2018","11","22",null,"2018.11",null,"원자로설계개발단국내학"]
[136,"상부탑재형 노내계측기의 삽입/인출 해석 및 시험","Analysis and Test for Insertion/Withdrawal of Top Mounted In-Core Instrument","KPVP 연차학술대회 요약논문.hwp","2018.10.31","2018.11.22","논문","국내학술발표","41645","김철우","원자로설계개발단","기계설계그룹","김인용(34318  기계설계그룹),맹철수(21217  기계설계그룹)","국내","한국압력기기공학회","[발표신청서] 본부장 결재완료","11원자로설계개발단국내",null,11,null,"2018","11","22",null,"2018.11",null,"원자로설계개발단국내학"]
[137,"수조밀봉체의 연성해석 적용을 위한 영향인자에 관한 연구","A Study on the Influencing Factors for Coupled Analysis Application of Reactor Cavity Pool Seal Assembly","FSI을 이용한 밀봉체 해석절차에 대한 연구_r02.hwp","2018.10.24","2018.11.22","논문","국내학술발표","44103","이호중","원자로설계개발단","기계설계그룹","김인용(34318  기계설계그룹),이대희(32293  기계설계그룹)","국내","KPVP 2018년도 연차학술대회","[발표신청서] 본부장 결재완료","11원자로설계개발단국내",null,11,null,"2018","11","22",null,"2018.11",null,"원자로설계개발단국내학"]
[138,"압력유기굽힘을 고려한 밀림관의 균열열림변위 거동 평가","Evaluation on the Behavior of Crack Opening Displacement for Surge Line considering Pressure Induced Bending","KPVP_설계_박홍선.hwp","2018.10.31","2018.11.22","논문","국내학술발표","42987","박홍선","원자로설계개발단","기계설계그룹","김인용(34318  기계설계그룹),이대희(32293  기계설계그룹)","국내","한국압력기기공학회 학술대회논문집","[발표신청서] 본부장 결재완료","11원자로설계개발단국내",null,11,null,"2018","11","22",null,"2018.11",null,"원자로설계개발단국내학"]
[139,"원자로건물 배기 공기정화기 차폐해석 최적화","Optimization of the Shielding Analysis for the Containment Exhaust ACU","원자로건물 배기 공기정화기 차폐해석 최적화.hwp","2018.10.10","2018.11.22","논문","국내학술발표","30194","송덕빈","원자력본부","원자력기술그룹(원자력)","남기문(27801  원자력기술그룹(원자력)),이교민(43575  원자력기술그룹(원자력))","국내","대한방사선방어학회 2018 춘계학술발표회 논문요약집","[발표신청서] 본부장 결재완료","11원자력본부국내",null,11,null,"2018","11","22",null,"2018.11",null,"원자력본부국내학"]
[140,"원전 2차계통 배관 감육부위 예측 기계학습 적용을 위한 감육측정 데이터 전처리 방법 개발","Pre-processing Method of Thinning Measurement Data for Machine-Learning Application to Thinning Location Prediction","(양식) KPVP 요약논문 양식 - 배관감육.hwp","2018.11.07","2018.11.22","논문","국내학술발표","51018","김재원","미래기술연구소","미래기술연구소","김경수(42684  미래기술연구소),황경모(24584  재료기술그룹(원자력))","국내","KPVP 2018년도 연차학술대회","[발표신청서] 본부장 결재대기","11미래기술연구소국내",null,11,null,"2018","11","22",null,"2018.11",null,"미래기술연구소국내학"]
[141,"전열관의 부식용출 억제를 위한 MRPC 요건 개발","Development of MRPC Requirement for Suppression of Corrosion Release of Steam Generator Tube","181011-KPVP 요약논문-최민석-검토의견 반영.hwp","2018.10.24","2018.11.22","논문","국내학술발표","49393","최민석","원자로설계개발단","기계설계그룹","김일곤(31277  기계설계그룹),이대희(32293  기계설계그룹)","국내","KPVP","[발표신청서] 본부장 결재완료","11원자로설계개발단국내",null,11,null,"2018","11","22",null,"2018.11",null,"원자로설계개발단국내학"]
[142,"중수로 칼란드리아관-액체독물질노즐 접촉시기 예측에 대한 평가방법의 영향 검토","Effects of Assessment Method on Contact Time Prediction of Calandria Tube and LISS Nozzle of PHWR","(양식) KPVP 요약논문 양식-칼란드리아.hwp","2018.11.07","2018.11.22","논문","국내학술발표","51018","김재원","미래기술연구소","미래기술연구소","김경수(42684  미래기술연구소),윤훈(37375  재료기술그룹(원자력))","국내","KPVP 2018년도 연차학술대회","[발표신청서] 본부장 결재완료","11미래기술연구소국내",null,11,null,"2018","11","22",null,"2018.11",null,"미래기술연구소국내학"]
[143,"ASME Code 및 유한요소해석에 따른 응력확대계수 비교","Comparison for Stress Intensity Factors in accordance with ASME Code and Finite Element Analysis","ASME Code 및 유한요소해석에 따른 응력확대계수 비교 - 윤효섭.hwp","2018.11.01","2018.11.23","논문","국내학술발표","46986","윤효섭","원자로설계개발단","기계설계그룹","김종민(31335  기계설계그룹),이대희(32293  기계설계그룹)","국내","KPVP 2018년도 연차학술대회","[발표신청서] 본부장 결재완료","11원자로설계개발단국내",null,11,null,"2018","11","23",null,"2018.11",null,"원자로설계개발단국내학"]
[144,"가동원전의 압력-온도 제한곡선 평가방법론 개정영향 및 PTLR 소개","Effect of Rivised P-T Limits Methodology for Operating NPP and PTLR","가동원전의 압력-온도 제한곡선 평가방법론 개정영향 및 PTLR 소개.hwp","2018.10.26","2018.11.23","논문","국내학술발표","38775","김규완","원자로설계개발단","기계설계그룹","김종민(31335  기계설계그룹),유성식(33996  사업책임자실(원자로))","국내","KPVP 2018년도 연차학술대회","[발표신청서] 본부장 결재완료","11원자로설계개발단국내",null,11,null,"2018","11","23",null,"2018.11",null,"원자로설계개발단국내학"]
[145,"균열이 있는 배관의 열성층 하중 감소 영향 평가","Evaluation of thermal stratification load reduction on cracked pipe","2018_KPVP_김승현.docx","2018.10.30","2018.11.23","논문","국내학술발표","53441","김승현","원자로설계개발단","기계설계그룹","이대희(32293  기계설계그룹),이병철(34045  사업책임자실(원자로))","국내","한국압력기기공학회","[발표신청서] 본부장 결재완료","11원자로설계개발단국내",null,11,null,"2018","11","23",null,"2018.11",null,"원자로설계개발단국내학"]
[146,"배관계통 시간이력해석에서의 Rayleigh 감쇠계수 선정방법 평가","Evaluation on the Selection Method of Rayleigh Damping Coefficients for Piping System Time History Analysis","KPVP 요약논문(김정용).hwp","2018.10.31","2018.11.23","논문","국내학술발표","29983","김정용","원자로설계개발단","기계설계그룹","이대희(32293  기계설계그룹),이승욱(39053  기계설계그룹)","국내","한국압력기기공학회(KPVP) 2018년도 연차학술대회","[발표신청서] 본부장 결재완료","11원자로설계개발단국내",null,11,null,"2018","11","23",null,"2018.11",null,"원자로설계개발단국내학"]
[147,"원자로건물 구조건전성시험 개선 사례","An Improvement Case in Structural Integrity Test of Containment Building","KPVP_SIT개선사례_1030.hwp","2018.10.31","2018.11.23","논문","국내학술발표","49069","이성진","원자력본부","토목건축기술그룹(원자력)","김도연(41231  토목건축기술그룹(원자력)),김봉래(42728  토목건축기술그룹(원자력))","국내","KPVP 2018년도 연차학술대회","[발표신청서] 본부장 결재완료","11원자력본부국내",null,11,null,"2018","11","23",null,"2018.11",null,"원자력본부국내학"]
[148,"원자로용기 노즐부 구속효과를 고려한 압력-온도 제한곡선 평가","Evaluation of Pressure-Temperautre Limit Curve considering Reactor Vessel Nozzle Constraint Effect","KPVP_원자로용기 노즐부 구속효과를 고려한 압력-온도 제한곡선 평가.hwp","2018.10.26","2018.11.23","논문","국내학술발표","43043","이연주","원자로설계개발단","기계설계그룹","김종민(31335  기계설계그룹),이대희(32293  기계설계그룹)","국내","한국압력기기공학회(KPVP)","[발표신청서] 본부장 결재완료","11원자로설계개발단국내",null,11,null,"2018","11","23",null,"2018.11",null,"원자로설계개발단국내학"]
[149,"원전 배관두께 관리를 위한 최신코드 적용 타당성 검토","Validity of the Latest Code Application for Managing the Pipe Wall Thickness of Nuclear Power Plants","(황경모) KPVP 요약논문(최신코드 적용 타당성).hwp","2018.11.04","2018.11.23","논문","국내학술발표","24584","황경모","원자력본부","재료기술그룹(원자력)","노희영(23781  재료기술그룹(원자력)),박흥배(28775  미래기술연구소)","국내","K-PVP 연차학술대회","[발표신청서] 본부장 결재완료","11원자력본부국내",null,11,null,"2018","11","23",null,"2018.11",null,"원자력본부국내학"]
[150,"원자력발전소에 무선기술 적용 방법론","Application Methodology of Wireless Communication Technology for Nuclear Power Plants","전력기술지_원자력발전소에 무선기술 적용 방법론.pdf","2018.11.28","2018.11.29","논문","사내전력기술지","41652","김태진","원자로설계개발단","계측제어설계그룹","김항배(33832  계측제어설계그룹),한희환(33309  계측제어설계그룹)","사내","전력기술지","[발표신청서] 본부장 결재대기","11원자로설계개발단사내",null,11,null,"2018","11","29",null,"2018.11",null,"원자로설계개발단사내전"]
[151,"바이오매스 및 고형연료 보일러 과열기의 염소(Cl) 고온부식 현상","Chlorine Induced High Temperature Corrosion of Biomass or SRF fired Boiler Superheater","염소가스고온부식 20181022-final.doc","2018.11.07","2018.11.30","논문","사내전력기술지","38914","문홍일","에너지신사업본부","기계배관기술그룹(신사업)","강서상(19238  기계배관기술그룹(신사업)),안진세(28833  기계배관기술그룹(신사업))","사내","전력기술","[발표신청서] 본부장 결재완료","11에너지신사업본부사내",null,11,null,"2018","11","30",null,"2018.11",null,"에너지신사업본부사내전"]
[152,"iPOWER 피동안전계통 설계개념","Design Concept of the iPOWER Passive Safety Systems","기고문_iPOWER피동원전 설계특성 (2018 11 16).doc","2018.11.22","2018.11.30","논문","사내전력기술지","32152","오광석","원자로설계개발단","유체계통설계그룹","최한림(35024  안전해석그룹),허진(33316  유체계통설계그룹)","사내","사내 전력기술지","[발표신청서] 본부장 결재완료","11원자로설계개발단사내",null,11,null,"2018","11","30",null,"2018.11",null,"원자로설계개발단사내전"]
[153,"확률론적 분석 기반 고리 1호기 잔류방사능유도농도 평가","Evaluation of Derived Concentration Guideline Level for Kori Unit 1 Based on Probabilistic Analysis","확률론적 분석 기반 고리 1호기 잔류방사능유도농도(DCGL) 산출_rev0.docx","2018.11.22","2018.11.30","논문","사내전력기술지","43575","이교민","원자력본부","원자력기술그룹(원자력)","남기문(27801  원자력기술그룹(원자력)),이여종(20865  원자력기술그룹(원자력))","사내","2018 동계사내 전력기술지","[발표신청서] 본부장 결재완료","11원자력본부사내",null,11,null,"2018","11","30",null,"2018.11",null,"원자력본부사내전"]
[154,"수출형 원전 방사성폐기물 처리계통의 Best Available Techniques 수행을 위한 경제성평가 요소설정에 관한 고찰","The Study on Planning Factors of Economic Evaulation for Performing Best Available Techniques in Radwaste Treatment System of Overseas NPPs","수출형 원전 방사성폐기물 처리계통의 Best Available Techniques 수행을 위한 경제성평가 요소 설정에 관한 고찰.doc","2018.11.26","2018.11.30","논문","사내전력기술지","36255","나한정","원자력본부","원자력기술그룹(원자력)","박정수(20076  원자력기술그룹(원자력)),손동빈(49673  원전사후관리사업그룹)","사내","전력기술지","[발표신청서] 본부장 결재완료","11원자력본부사내",null,11,null,"2018","11","30",null,"2018.11",null,"원자력본부사내전"]
[155,"CFD 분석을 이용한 공기정화기 설계최적화","Optimization of Air Cleaning Unit with two Heating coil and two fans Using the CFD Analysis","(최종)CFD 분석을 이용한 보조기기(공기정화기) 설계최적화 대한 평가.docx","2018.11.27","2018.11.30","논문","사내전력기술지","42286","홍문표","원자력본부","기계기술그룹(원자력)","김동원(28539  기계기술그룹(원자력)),천상백(19976  기계기술그룹(원자력))","사내","전력기술지","[발표신청서] 본부장 결재완료","11원자력본부사내",null,11,null,"2018","11","30",null,"2018.11",null,"원자력본부사내전"]
[156,"CFD 분석을 이용한 가압기 공동 공기조화계통에 대한 평가","Evaluation of Pressurizer Cavity HVAC System Using the CFD Analysis","(감수요청)CFD 분석을 이용한 가압기 공동 공기조화계통에 대한 평가.docx","2018.11.28","2018.11.30","논문","사내전력기술지","42286","홍문표","원자력본부","기계기술그룹(원자력)","김동원(28539  기계기술그룹(원자력)),추재호(27375  기계기술그룹(원자력))","사내","사내전력기술지","[발표신청서] 본부장 결재완료","11원자력본부사내",null,11,null,"2018","11","30",null,"2018.11",null,"원자력본부사내전"]
[157,"신고리 5,6호기 공기조화설비 배치설계 개선을 통한 설계 효율성 제고 사례","A Study on the improvement of Design Efficiency through improving the HVAC Layout Design for SKN 5,6 Nuclear Power Plant","신고리 5,6호기 공기조화설비 배치설계 개선을 통한 설계 효율성 제고 사례.docx","2018.11.30","2018.11.30","논문","사내전력기술지","41372","권오진","원자력본부","기계기술그룹(원자력)","윤남국(12624  기계기술그룹(원자력)),조영규(41166  기계기술그룹(원자력))","사내","전력기술지","[발표신청서] 본부장 결재완료","11원자력본부사내",null,11,null,"2018","11","30",null,"2018.11",null,"원자력본부사내전"]
[158,"오염최소화를 고려한 설계개선","Design Improvements Considering the Minimization of Contamination","오염최소화를 고려한 설계개선.doc","2018.12.03","2018.11.30","논문","사내전력기술지","31726","박태근","원자로설계개발단","유체계통설계그룹","박홍식(23029  유체계통설계그룹),유완(32203  기계설계그룹)","사내","전력기술","[발표신청서] 본부장 결재완료","11원자로설계개발단사내",null,11,null,"2018","11","30",null,"2018.11",null,"원자로설계개발단사내전"]
[159,"3D 유한요소법을 이용한 원전 매설배관 부식결함 탐상기술 개발","Development of Technology for Detection of Corrosion Defects in Buried Pipes of Nuclear Power Plants with 3D FEM","부식학회지논문-매설배관.docx","2018.12.05","2018.12.04","논문","국내학술지","51018","김재원","미래기술연구소","미래기술연구소","윤훈(37375  재료기술그룹(원자력)),정규석(22402  재료기술그룹(원자력))","국내","Corrosion Science and Technology","[발표신청서] 본부장 결재완료","12미래기술연구소국내",null,12,null,"2018","12","04",null,"2018.12",null,"미래기술연구소국내학"]
[160,"확률론적 부지응답해석을 통한 Pilot GMRS 작성","Development of Pilot GMRS by Probabilistic Site Response Analysis","전력기술지 논문_확률론적 부지응답해석을 통한 Pilot GMRS 작성.docx","2018.12.06","2018.12.06","논문","사내전력기술지","43272","한승룡","미래기술연구소","미래기술연구소","서춘교(42351  미래기술연구소),오영진(38317  미래기술연구소)","사내","전력기술지","[발표신청서] 본부장 결재완료","12미래기술연구소사내",null,12,null,"2018","12","06",null,"2018.12",null,"미래기술연구소사내전"]
[161,"상부탑재형 노내계측계통 기술 개발","Development of Top-Mounted In-Core Instrumentation System","상부탑재형 노내계측계통  기술개발.doc","2018.11.26","2018.12.28","논문","사내전력기술지","21217","맹철수","원자로설계개발단","기계설계그룹","김은기(31254  유체계통설계그룹),조연호(32941  기계설계그룹)","사내","전력기술지","[발표신청서] 본부장 결재완료","12원자로설계개발단사내",null,12,null,{"$f":"LEFT(F162,4)","v":"2018"},"12",{"$f":"RIGHT(F162,2)","v":"28"},null,{"$f":"LEFT(F162,7)","v":"2018.12"},null,{"$f":"K162&LEFT(H162,3)","v":"원자로설계개발단사내전"}]
[162,"대규모 수상태양광 발전소 건설","Contruction procedure of Large-scale Floating solar power plant","논문(기술동향) 정구철 태양광.doc","2018.11.06","2018.12.31","논문","사내전력기술지","24038","정구철","에너지신사업본부","전기계측기술그룹(신사업)","김현남(26588  전기계측기술그룹(신사업)),조만형(28317  전기계측기술그룹(신사업))","사내","전력기술지 동계","[발표신청서] 본부장 결재완료","12에너지신사업본부사내",null,12,null,"2018","12","31",null,"2018.12",null,"에너지신사업본부사내전"]
[163,"유한요소법을 이용한 원전 매설배관 간접검사시스템 개발","Development of Indirect Inspection System on Buried Pipes of Nuclear Power Plants with FEM","2018년 동계 전력기술지_FEM_결함탐상_F.docx","2018.11.19","2018.12.31","논문","사내전력기술지","51018","김재원","미래기술연구소","미래기술연구소","정규석(22402  재료기술그룹(원자력)),황경모(24584  재료기술그룹(원자력))","사내","사내 전력기술지","[발표신청서] 본부장 결재완료","12미래기술연구소사내",null,12,null,"2018","12","31",null,"2018.12",null,"미래기술연구소사내전"]
[164,"다중방어운영지침서 개발현황","A Current Development Status of the Beyond Design Basis External Events Coping Strategies: MACST Operating Guidelines","2018년 동계_전력기술지_20181112.doc","2018.11.21","2018.12.31","논문","사내전력기술지","41726","박재민","원자로설계개발단","안전해석그룹","서종태(31897  안전해석그룹),이광원(34038  유체계통설계그룹)","사내","전력기술지","[발표신청서] 본부장 결재완료","12원자로설계개발단사내",null,12,null,"2018","12","31",null,"2018.12",null,"원자로설계개발단사내전"]
[165,"무붕산운전 계통개념설계 기술개발","Development of Conceptual System Design for Soluble Boron Free Operation","무붕산운전 계통개념설계기술개발.doc","2018.11.21","2018.12.31","논문","사내전력기술지","32876","정장규","원자로설계개발단","유체계통설계그룹","김은기(31254  유체계통설계그룹),서종태(31897  안전해석그룹)","사내","사내전력기술지 2018년 동계","[발표신청서] 본부장 결재완료","12원자로설계개발단사내",null,12,null,"2018","12","31",null,"2018.12",null,"원자로설계개발단사내전"]
[166,"Containment 내부 Witness Coupon에 대한 검토","Study on Coating Witness Coupons in Containment","전력기술_Containment 내부의 도장 Witness Coupon에 대한 검토.docx","2018.11.22","2018.12.31","논문","사내전력기술지","17861","이철우","원자력본부","토목건축기술그룹(원자력)","김수광(15954  토목건축기술그룹(원자력)),이용구(15563  토목건축기술그룹(원자력))","사내","전력기술","[발표신청서] 본부장 결재완료","12원자력본부사내",null,12,null,"2018","12","31",null,"2018.12",null,"원자력본부사내전"]
[167,"KCMS 3D 고도화 기능 소개","Introduction of KCMS 3D upgraded functions","2018 전력기술지 논문_KCMS 3D 고도화 기능 소개.docx","2018.11.23","2018.12.31","논문","사내전력기술지","30083","황재홍","원자력본부","전기기술그룹(원자력)","이건호(22506  전기기술그룹(원자력)),정영근(27433  전기기술그룹(원자력))","사내","전력기술","[발표신청서] 본부장 결재완료","12원자력본부사내",null,12,null,"2018","12","31",null,"2018.12",null,"원자력본부사내전"]
[168,"확률적 모의실험을 통한 석탄화력발전소의 건설공기 추정","Estimation of the Construction Period for a Coal-fired Power Plant by Stochastic Simulation","2018년_전력기술지 논문_한형기_Rev.A_181119.doc","2018.11.23","2018.12.31","논문","사내전력기술지","39194","한형기","원자력본부","사업관리기술그룹(원자력)","권영석(21668  사업관리기술그룹(원자력)),진희승(25954  사업관리기술그룹(원자력))","사내","전력기술지","[발표신청서] 본부장 결재완료","12원자력본부사내",null,12,null,"2018","12","31",null,"2018.12",null,"원자력본부사내전"]
[169,"APR1400 노형에서 SPACE 코드를 사용한 한 대의 POSRV 상실을 동반하는 LOCV 사고 분석","Ananlysis of Loss of Condenser Vacuum with One POSRV Failure for APR1400 Using SPACE Code","전력기술지-43656 김정주-SPACE 코드를 활용한 APR1400 노형의 복수기진공상실 및 POSRV 한 대 동시상실사고 분석.doc","2018.11.26","2018.12.31","논문","사내전력기술지","43656","김정주","원자로설계개발단","안전해석그룹","서종태(31897  안전해석그룹),최한림(35024  안전해석그룹)","사내","전력기술지","[발표신청서] 본부장 결재완료","12원자로설계개발단사내",null,12,null,"2018","12","31",null,"2018.12",null,"원자로설계개발단사내전"]
[170,"배관관통부 주위 콘크리트 온도 저감 방안 연구","A Study on the Method of Reducing the Temperature of the Concrete around a Penetration","논문.rev0.doc","2018.11.27","2018.12.31","논문","사내전력기술지","52293","김병욱","원자력본부","원전안전센터","왕찬식(30414  원전안전센터),이영옥(27891  원전안전센터)","사내","전력기술지","[발표신청서] 본부장 결재완료","12원자력본부사내",null,12,null,"2018","12","31",null,"2018.12",null,"원자력본부사내전"]
[171,"Open-Source Logic Simulation Tool을 이용한 발전소 Macro Logic 작성 및 검증","A study to develop MSI typical macro logic of thermal power plant by using open source logic design and simulation tool, Logisim","논문초안(오흥일)_감수요청(2018.11.13).docx","2018.11.28","2018.12.31","논문","사내전력기술지","36424","오흥일","에너지신사업본부","전기계측기술그룹(신사업)","반두현(26639  전기계측기술그룹(신사업)),윤창선(36461  전기계측기술그룹(신사업))","사내","전력기술","[발표신청서] 본부장 결재완료","12에너지신사업본부사내",null,12,null,"2018","12","31",null,"2018.12",null,"에너지신사업본부사내전"]
[172,"SFR 원형로 소듐화재 진압 적용기술","A Sodium Fire Suppression Method of PGSFR (Prototype Generation IV Sodium-cooled Fast Reactor)","SFR 원형로 소듐화재 진압 기술-20181128 감수전 파일 2 이,임.docx","2018.11.29","2018.12.31","논문","사내전력기술지","50497","이채원","원자력본부","기계기술그룹(원자력)","김용철(34332  기계기술그룹(원자력)),이주열(18377  기계기술그룹(원자력))","사내","2018 동계 전력기술지","[발표신청서] 본부장 결재완료","12원자력본부사내",null,12,null,"2018","12","31",null,"2018.12",null,"원자력본부사내전"]
[173,"표준원전 원자로냉각재펌프 축추력베어링 상부구조물 설계개선","The Design Improvement of the Upper Structure of Shaft Thrust Bearing Assembly in CE Type Reactor Coolant Pump","임덕재-전력기술지 RCP TBA(20181019).doc","2018.12.04","2018.12.31","논문","사내전력기술지","32647","임덕재","원자로설계개발단","유체계통설계그룹","김은기(31254  유체계통설계그룹),허진(33316  유체계통설계그룹)","사내","전력기술지","[발표신청서] 본부장 결재완료","12원자로설계개발단사내",null,12,null,"2018","12","31",null,"2018.12",null,"원자로설계개발단사내전"]
[174,"불평형 고장 및 보호설비 2상 개폐에 따른 변압기 중성점 전류 해석","Analysis of Transformer's Neutral Currents Caused by Unbalanced Faults & 2-Phases Operation of a Protective Device","불평형 고장 및 다상 개폐에 따른 변압기의 중성점 전류 해석.docx","2018.12.05","2018.12.31","논문","사내전력기술지","25924","강인수","원자력본부","전기기술그룹(원자력)","최원장(28102  전기기술그룹(원자력)),최한진(26447  전기기술그룹(원자력))","사내","사내전력기술지","[발표신청서] 본부장 결재완료","12원자력본부사내",null,12,null,"2018","12","31",null,"2018.12",null,"원자력본부사내전"]
{"$rows_empty":21}
[{"$nulls":21},{"$f":"RIGHT(Y197,2)","v":""},{"$f":"RIGHT(F197,2)","v":""},null,{"$f":"LEFT(F197,7)","v":""}]
[{"$nulls":21},"","",null,""]
[{"$nulls":21},"","",null,""]
[{"$nulls":21},"","",null,""]
[{"$nulls":21},"","",null,""]
[{"$nulls":21},"","",null,""]

{"sheet":"2019","index":2,"n_rows":224,"n_cols":27,"rows_kept":224,"cut":false,"hidden":true,"merged":[]}
[null,"논문제목(국문)","논문제목(영문)","논문파일명","논문등록일","논문발표일","논문구분","발표유형",null,"등록자","등록자본부","등록자부서","감수자","논문발표처","발표기관","논문승인현황"]
[1,"Algorithm-Aided BIM 기반 원전 3차원 설계기준 관리시스템 개발","Development of AAB(Algorithm-Aided BIM) Based 3D Design Bases Management System in Nuclear Power Plant","Algorithm-Aided BIM 기반 원전 3차원 설계기준 시스템 개발.hwp","2018.11.07","2019.01.01","논문","국내학술지","48893","신재섭","원자력본부","국내건설사업그룹","서영달(34524  D4400),이상배(16669  D4400)","국내","한국건설관리학회 논문집","[발표신청서] 본부장 결재완료",{"$f":"S2&K2&N2","v":"1원자력본부국내"},null,{"$f":"DAY(V2)","v":1},null,{"$f":"LEFT(F2,4)","v":"2019"},{"$f":"RIGHT(Y2,2)","v":"01"},{"$f":"RIGHT(F2,2)","v":"01"},null,{"$f":"LEFT(F2,7)","v":"2019.01"},null,{"$f":"K2&LEFT(H2,3)","v":"원자력본부국내학"}]
[2,"가공송전선 유도장해 특성을 고려한 최적 상배열 연구","Study on Optimal Phase Arrangement considering the Characteristics of Inductive Interference from Overhead Transmission Lines","대한전기학회_가공송전선_유도장해_최적상배열.pdf","2018.12.18","2019.01.10","논문","국내학술지","26558","강경두","미래전략연구소","신사업연구실","정구철(24038  E4J00),최원준(17507  D4500)","국내","전기학회 논문지","[발표신청서] 본부장 결재완료","1미래전략연구소국내",null,1,null,"2019","01","10",null,"2019.01",null,{"$f":"K3&LEFT(H3,3)","v":"미래전략연구소국내학"}]
[3,"중수로？가압경수로 설계특성 비교","Major Differences in Design Concepts between Heavy Water Reactor and Pressurized Water Reactor","중수로경수로 설계특성 비교(최종초안-19.01.14).hwp","2019.04.05","2019.02.01","논문","사내전력기술지","33117","최종호","원자로설계개발단","안전해석그룹","김봉기(33744  F3D00),허진(33316  F3H00)","사내","전력기술지","[발표신청서] 본부장 결재완료","2원자로설계개발단사내",null,2,null,"2019","02","01",null,"2019.02",null,"원자로설계개발단사내전"]
[4,"철근콘크리트 전단벽의 비선형 동적 해석","Nonlinear Dynamic Analysis of RC Shear Walls","철근콘크리트 전단벽의 비선형 동적 해석_한국콘크리트학회논문집.hwp","2019.01.28","2019.02.28","논문","국내학술지","41231","김도연","원자력본부","토건환경기술실","강주형(36963  D4D00),김봉래(42728  D4D00)","국내","한국콘크리트학회 논문집","[발표신청서] 본부장 결재완료","2원자력본부국내",null,2,null,"2019","02","28",null,"2019.02",null,"원자력본부국내학"]
[5,"유체요소를 사용한 저장조의 동수역학적 응답평가","Hydrodynamic Response Evaluation of Storage Tank Using Fluid Element","유체요소를 사용한 저장조의 동수역학적 응답평가.hwp","2019.03.05","2019.03.22","논문","국내학술발표","53721","한윤수","원자력본부","토건환경기술실","김봉래(42728  D4D00),이용선(29238  D4D00)","국내","한국지진공학회","[발표신청서] 본부장 결재완료","3원자력본부국내",null,3,null,"2019","03","22",null,"2019.03",null,"원자력본부국내학"]
[6,"세 방향 동시 가진과 직접적분법 해석시 비례감쇠행렬 결정 방법","Study for Determination of Proportional Damping Matrix in Three Direction Simultaneous Excitation and Direct Integration Method","지진공학회 논문발표(서춘교).hwp","2019.02.28","2019.03.22","논문","국내학술발표","42351","서춘교","미래전략연구소","원자력연구실","김도연(41231  D4D00),한승룡(43272  A7500)","국내","한국지진공학회 학술발표회","[발표신청서] 본부장 결재완료","3미래전략연구소국내",null,3,null,"2019","03","22",null,"2019.03",null,"미래전략연구소국내학"]
[7,"소형모듈형 원자로를 위한 내장형 제어봉구동장치 개발","Development of the In-Vessel CEDM for Small Modular Reactors","manuscript5-사외감수.pdf","2019.03.12","2019.03.29","논문","SCI저널자료","37211","박진석","원자로설계개발단","기계설계그룹","김인용(34318  F3B00),이병진(32344  F3J00)","해외","Nuclear Technology","[발표신청서] 본부장 결재완료","3원자로설계개발단해외",null,3,null,"2019","03","29",null,"2019.03",null,"원자로설계개발단SCI"]
[8,"APR1400원자로용기 노즐 유한요소해석 및 노즐부 구속효과를 고려한 압력-온도 제한곡선 평가","Finite Element Analysis of APR1400 Reactor Pressure Vessel Nozzle and Evaluation of Pressure-Temperature Limits Curve Considering Nozzle Constraint Effect","APR1400 원자로용기 노즐부 구속효과를 고려한 압력-온도 제한곡선 평가.pdf","2019.03.27","2019.03.31","논문","사내전력기술지","43043","이연주","원자로설계개발단","기계설계그룹","김인용(34318  F3B00),황정기(33353  F3B00)","사내","춘계 전력기술지","[발표신청서] 본부장 결재완료","3원자로설계개발단사내",null,3,null,"2019","03","31",null,"2019.03",null,"원자로설계개발단사내전"]
[9,"온도 변화에 따른 Austenitic Stainless Steel 배관의 환경 피로 영향","Temperature Variation-Based Environmental Fatigue Effect on Austenitic Stainless Steel Piping","온도 변화에 따른 Austenitic Stainless Steel 배관의 환경피로 영향 (Rev.16).doc","2019.03.15","2019.03.31","논문","사내전력기술지","42765","이봉희","원자력본부","기계배관기술실","김대수(27227  D4400),김수겸(27338  D4B00),남일권(34355  D4600),박상윤(43929  D4B00),양경진(41173  D4600)","사내","전력기술지","[발표신청서] 본부장 결재완료","3원자력본부사내",null,3,null,"2019","03","31",null,"2019.03",null,"원자력본부사내전"]
[10,"지진 확률론적안전성평가를 위한 계전기 선별 및 평가 절차","Screening and Evaluation Procedures of Relay for Seismic PRA","전력기술지_김우주_181113.doc","2018.12.12","2019.03.31","논문","사내전력기술지","50053","김우주","원자력본부","PSA&PSR사업그룹","최진태(42795  D4800),최훈(45438  D4800)","사내","전력기술지","[발표신청서] 본부장 결재완료","3원자력본부사내",null,3,null,"2019","03","31",null,"2019.03",null,"원자력본부사내전"]
[11,"신규 및 기존 화재 PRA 방법론 비교 및 적용 결과에 대한 고찰","Comparison of Differences between New and Previous Fire PRA Methodologies and Insights from the At-Power Fire PRA Results","신규 및 기존 화재 PSA 방법론 비교 및 적용 결과에 대한 고찰.doc","2018.12.12","2019.03.31","논문","사내전력기술지","52004","임재원","원자력본부","PSA&PSR사업그룹","김동규(35188  D4800),김성현(34915  D4800)","사내","전력기술지","[발표신청서] 본부장 결재완료","3원자력본부사내",null,3,null,"2019","03","31",null,"2019.03",null,"원자력본부사내전"]
[12,"공통원인고장 평가 방법론 및 모델링 단순화 방안","A Method of Evaluation for Common Cause Failure and Simplication of Modeling","공통원인고장 평가방법론 및 모델링 단순화 방안_LGS - 감수용.doc","2018.12.12","2019.03.31","논문","사내전력기술지","47176","임근수","원자력본부","PSA&PSR사업그룹","김남철(39777  D4800),나두완(50858  D4800)","사내","전력기술지","[발표신청서] 본부장 결재완료","3원자력본부사내",null,3,null,"2019","03","31",null,"2019.03",null,"원자력본부사내전"]
[13,"Austenitic Stainless Steel 배관의 온도에 따른 환경 피로 영향","Temperature-Based Environmental Fatigue Effect on Austenitic Stainless Steel Piping","(KSME) Austenitic Stainless Steel 배관의 온도에 따른 환경 피로 영향.pdf","2019.03.21","2019.04.10","논문","국내학술발표","42765","이봉희","원자력본부","기계배관기술실","김수겸(27338  D4B00),박상윤(43929  D4B00)","국내","The Korean Society of Mechanical Engineers","[발표신청서] 본부장 결재완료","4원자력본부국내",null,4,null,"2019","04","10",null,"2019.04",null,"원자력본부국내학"]
[14,"곡관의 열팽창 응력 계산방법에 대한 기술적 고찰","Technical Review on Thermal Expansion Stress Calculation for Elbows","KSME 재파 (한전기술 오창균) R0.docx","2019.03.21","2019.04.11","논문","국내학술발표","38324","오창균","원자력본부","PSA&PSR사업그룹","남일권(34355  D4600),박상윤(43929  D4B00)","국내","대한기계학회 재료 및 파괴부문 2019년도 춘계학술대회 논문집","[발표신청서] 본부장 결재완료","4원자력본부국내",null,4,null,"2019","04","11",null,"2019.04",null,"원자력본부국내학"]
[15,"원전설비의 실시간 응력계산을 위한 그린함수 적용 최적화 방안 연구","A Study on Green's Function-Applied Optimization Method for Real-Time Stress Calculation of Nuclear Power Plant Components","2019 대한기계학회 재료 및 파괴부문 학술대회 초록(신희재).docx","2019.03.21","2019.04.11","논문","국내학술발표","41837","신희재","원자력본부","PSA&PSR사업그룹","남일권(34355  D4600),오영진(38317  A7500)","국내","대한기계학회 재료 및 파괴부문 춘계학술대회","[발표신청서] 본부장 결재완료","4원자력본부국내",null,4,null,"2019","04","11",null,"2019.04",null,"원자력본부국내학"]
[16,"3D 전기화학모델링 기반 원전 매설배관 외부결함 탐상에서의 변수","Variable Factor for Detection of Outside Defects in Buried Pipes of Nuclear Power Plants based on 3D Electrochemical Modeling","CSSK 2019 춘계 초록-임부택-침식부식(구두).doc","2019.04.04","2019.04.25","논문","국내학술발표","29946","임부택","원자력본부","PSA&PSR사업그룹","오창균(38324  D4800),황경모(24584  D4800)","국내","2019년도 한국부식방식학회 춘계학술대회 초록집","[발표신청서] 본부장 결재완료","4원자력본부국내",null,4,null,"2019","04","25",null,"2019.04",null,"원자력본부국내학"]
[17,"원전 해수배관 관리 방법론","Methodology for Sea Water Piping Management of Nuclear Power Plants","[초록] 원전 해수배관 관리 방법론(황경모).doc","2019.03.24","2019.04.25","논문","국내학술발표","24584","황경모","원자력본부","PSA&PSR사업그룹","박진석(26933  D4800),박흥배(28775  A7500)","국내","한국부식방식학회 춘계학술대회 논문집","[발표신청서] 본부장 결재완료","4원자력본부국내",null,4,null,"2019","04","25",null,"2019.04",null,"원자력본부국내학"]
[18,"저합금강 배관에 대한 복합관통균열 불안정모멘트 예측방법 연구","Study for Instability Moment Predictions for Complex Through-wall Cracked Pipes of Low Alloy Steels","전력기술지 - 저합금강 배관에 대한 복합관통균열 불안정하중 예측방법 연구.docx","2019.03.26","2019.04.30","논문","사내전력기술지","38317","오영진","미래전략연구소","신사업연구실","김현수(34348  D4800),오창균(38324  D4800)","사내","전력기술지","[발표신청서] 본부장 결재완료","4미래전략연구소사내",null,4,null,"2019","04","30",null,"2019.04",null,"미래전략연구소사내전"]
[19,"APR1400 IRWST 집수조 스트레이너 이물질우회량 측정법 비교","Comparision of the Bypass Test Measuring Method for APR1400 IRWST Sump Strainer","전력기술지 논문(2019.춘계)_박평원_190314.doc","2019.03.15","2019.04.30","논문","사내전력기술지","37824","박평원","원자력본부","국내건설사업그룹","오대근(44378  D4500),조종연(43568  D4600)","사내","전력기술지(2019년 춘계)","[발표신청서] 본부장 결재완료","4원자력본부사내",null,4,null,"2019","04","30",null,"2019.04",null,"원자력본부사내전"]
[20,"원자력시설의 효율적인 보안조치 이행을 위한 사례 연구","A Case Study for Implementation Efficient Security Control for Nuclear Facilities","원자력시설의 효율적인 보안조치  190308.docx","2019.03.14","2019.04.30","논문","사내전력기술지","41055","최윤혁","원자력본부","전기계측기술실","조병수(24975  D4600)","사내","전력기술지","[발표신청서] 본부장 결재완료","4원자력본부사내",null,4,null,"2019","04","30",null,"2019.04",null,"원자력본부사내전"]
[21,"BASE ISOLATED NPP의 MS 인터페이스 배관계통의 내진해석방법 연구","A STUDY ON THE SEISMIC ANALYSIS MEDTHOD OF MS INTER-FACE PIPING SYSTEM IN A BASE ISOLATED NPP","ICAPP2019_FINAL_000005_KIM DAESOO.docx","2019.04.09","2019.05.13","논문","해외학술발표","27227","김대수","원자력본부","국내건설사업그룹","이건석(37884  D4400),조성호(39187  D4400)","해외","ICAPP 2019？ International Congress on Advances in Nuclear Power Plants","[발표신청서] 본부장 결재완료","5원자력본부해외",null,5,null,"2019","05","13",null,"2019.05",null,"원자력본부해외학"]
[22,"안전계통 디스플레이의 적용","Application of Safety Grade Display System to Accident Monitoring for Nuclear Power Plants","논문_KNS_2019_Safety Display_KNS Format.doc","2019.03.26","2019.05.22","논문","국내학술발표","39754","김고은","원자로설계개발단","계측제어설계그룹","김영백(31201  F3C00),한희환(33309  F3J00)","국내","2019 춘계 원자력학회","[발표신청서] 본부장 결재완료","5원자로설계개발단국내",null,5,null,"2019","05","22",null,"2019.05",null,"원자로설계개발단국내학"]
[23,"예상치 못한 상황이 운전원의 상황판단에 영향을 미치는 요인 분석","General description and influencing factors of unexpected plant conditions","General description and influencing factors of unexpected plant conditions.pdf","2019.03.20","2019.05.22","논문","국내학술지","41652","김태진","원자로설계개발단","계측제어설계그룹","김영백(31201  F3C00),백승민(33878  F3C00)","국내","Transactions of the Korean Nuclear Society Spring Meeting","[발표신청서] 본부장 결재완료","5원자로설계개발단국내",null,5,null,"2019","05","22",null,"2019.05",null,"원자로설계개발단국내학"]
[24,"슬라이딩 파손에 대한 Flat-bottom Tank의 HCLPF 분석","HCLPF Capacity against Sliding Failure of Flat-Bottom Vertical Fluid Storage Tank","Flat Bottom TK_송정국(KEPCO E&C)_20190312.docx","2019.03.13","2019.05.22","논문","국내학술발표","34531","송정국","원자력본부","PSA&PSR사업그룹","전상호(43721  D4800),최훈(45438  D4800)","국내","한국원자력학회","[발표신청서] 본부장 결재완료","5원자력본부국내",null,5,null,"2019","05","22",null,"2019.05",null,"원자력본부국내학"]
[25,"원자력 발전소의 닫힘 행정에서의 공기구동 글로브밸브 밀봉쓰러스트 평가 방법","Methods of Evaluation for Sealing Load of Air Operated Globe Valves at Closing Stroke in Nuclear Power Plants","Method of Calculation and evaluation for sealing load of air operated globe valves at closing stroke in nuclear power plants_20190319.docx","2019.04.08","2019.05.23","논문","국내학술발표","37912","이제욱","원자력본부","PSA&PSR사업그룹","김봉환(18391  D4800),장진아(39127  D4800)","국내","2019 원자력학회 춘계학술발표회","[발표신청서] 본부장 결재완료","5원자력본부국내",null,5,null,"2019","05","23",null,"2019.05",null,"원자력본부국내학"]
[26,"혁신적안전경수로 예비 확률론적안전성평가를 위해 개발된 PECCS MAAP5 모델 소개","Introduction of the PECCS MAAP5 Model developed for Preliminary PSA in the Innovative Passive Reactor","3_(최종본)_ 2019_KNS_Introduction of the PECCS MAAP5 Model developed for Preliminary PSA in innovative passive reactor.doc","2019.04.02","2019.05.23","논문","국내학술발표","50842","권배혁","원자력본부","PSA&PSR사업그룹","박병탁(30069  D4800),최진태(42795  D4800)","국내","한국원자력학회 (KNS, Korean Nuclear Society)","[발표신청서] 본부장 결재완료","5원자력본부국내",null,5,null,"2019","05","23",null,"2019.05",null,"원자력본부국내학"]
[27,"원자력발전소 공기구동 게이트 밸브의 KVAP을 이용한 성능예측결과와 정적진단시험 결과의 요구쓰러스트 비교","Comparison of Required Thrusts between Static Diagnostic Test and Performance Prediction for Air-Operated Valves in NPPs","(20190319)Required thrust comparison of the performance prediction software(KVAP) and static diagnostic test for air-operated valves in NPP.docx","2019.03.29","2019.05.23","논문","국내학술발표","41668","김현철","원자력본부","PSA&PSR사업그룹","김봉환(18391  D4800),장진아(39127  D4800)","국내","2019 원자력학회 춘계학술발표회","[발표신청서] 본부장 결재완료","5원자력본부국내",null,5,null,"2019","05","23",null,"2019.05",null,"원자력본부국내학"]
[28,"신고리 3호기 출력상승시험 운전자료를 활용한 APR1400 피로감시시스템 자동주기계수 모듈 검증","Validation of Automated Cycle Counting Algorithms for APR1400 Fatigue Monitoring System with Power Ascension Test Results of Shin-Kori Nuclear Power Plant Unit 3","2019년 춘계원자력학회 논문(신고리 3호기 PAT 운전자료를 활용한 APR1400 FMS ACCS 검증)_민지홍_R0.doc","2019.03.25","2019.05.23","논문","국내학술발표","46741","민지홍","원자로설계개발단","안전해석그룹","손종주(32004  F3D00),지성구(34126  F3D00)","국내","2019년 춘계 한국원자력학회","[발표신청서] 본부장 결재완료","5원자로설계개발단국내",null,5,null,"2019","05","23",null,"2019.05",null,"원자로설계개발단국내학"]
[29,"APR1400 파일럿구동 안전방출밸브의 닫힘시간 증가에 대한 평가","Evaluation of the Increase in the POSRV Closing Time for APR1400","2019년 원자력학회 춘계논문_20190321.doc","2019.03.21","2019.05.23","논문","국내학술발표","33825","김택모","원자로설계개발단","안전해석그룹","손종주(32004  F3D00),허진(33316  F3H00)","국내","한국원자력학회 춘계학술회","[발표신청서] 본부장 결재완료","5원자로설계개발단국내",null,5,null,"2019","05","23",null,"2019.05",null,"원자로설계개발단국내학"]
[30,"APR1400 PI제어기의 최적화","Optimization of PI Controller for APR1400","Optimization of PI Controller of SHN1&2 - rev01.docx","2019.03.21","2019.05.23","논문","국내학술발표","32846","정시채","원자로설계개발단","안전해석그룹","김영백(31201  F3C00),손종주(32004  F3D00)","국내","한국원자력학회 2019년 춘계학술발표회","[발표신청서] 본부장 결재완료","5원자로설계개발단국내",null,5,null,"2019","05","23",null,"2019.05",null,"원자로설계개발단국내학"]
[31,"PCCS 응축수 수집 및 IRWST 회수 모델 개발","Model Development for Condensate Collection from Passive Containment Cooling System and Return to In-Containment Refueling Water Storage Tank","Condensate of Passive Containment Cooling System Collection and Return to In-Containment Refueling Water Storage Tank Model Development.doc","2019.03.21","2019.05.23","논문","국내학술발표","40333","강진철","원자력본부","원자력기술실","문선창(23885  D4500),이규복(26063  A7400)","국내","2019 한국원자력학회 춘계학술발표회","[발표신청서] 본부장 결재완료","5원자력본부국내",null,5,null,"2019","05","23",null,"2019.05",null,"원자력본부국내학"]
[32,"원전 2차측 배관의 두께측정 데이터를 이용한 감육배관 판별을 위한 기계학습 접근법","Machine Learning Approach for Thinned Pipe Classification using Thickness Measurement Data of Nuclear Secondary Piping Systems","기계학습 감육판별.doc","2019.03.20","2019.05.23","논문","국내학술발표","38317","오영진","미래전략연구소","신사업연구실","김경수(42684  A7500),한승룡(43272  A7500)","국내","한국원자력학회 춘계학술대회","[발표신청서] 본부장 결재완료","5미래전략연구소국내",null,5,null,"2019","05","23",null,"2019.05",null,"미래전략연구소국내학"]
[33,"발전소보호계통 증기발생기 저수위 트립기능에 대한 응답시간 평가 방법","Response Time Evaluation Methodology for Low Steam Generator Level Trip Function of the Plant Protection System","2019년 춘계원자력학회 논문 초안.doc","2019.03.19","2019.05.23","논문","국내학술발표","34628","이창재","원자로설계개발단","계측제어설계그룹","김항배(33832  F3C00),백승민(33878  F3C00)","국내","한국원자력학회","[발표신청서] 본부장 결재완료","5원자로설계개발단국내",null,5,null,"2019","05","23",null,"2019.05",null,"원자로설계개발단국내학"]
[34,"세방향 동시가진과 직접적분법 해석시 비례감쇠행렬 결정 방법","Determination of Proportional Damping Matrix in Dynamic Analysis using Direct Integral Method under Simultaneous Excitation in Three Direction","원자력학회논문발표(서춘교) (R2).doc","2019.03.19","2019.05.23","논문","국내학술발표","42351","서춘교","미래전략연구소","원자력연구실","김도연(41231  D4D00),한승룡(43272  A7500)","국내","한국원자력학회 춘계학술발표회","[발표신청서] 본부장 결재완료","5미래전략연구소국내",null,5,null,"2019","05","23",null,"2019.05",null,"미래전략연구소국내학"]
[35,"피동원자로건물 냉각계통 기기배치 연구","Layout study for the Equipment of Passive Containment Cooling System in Containment Building of IPOWER","190308_Layout Developement for equipment of Passive conatainment cooling system_배관.docx","2019.03.18","2019.05.23","논문","국내학술발표","36225","김현정","원자력본부","해외사업그룹","김영상(26329  D4900),정세민(36616  D4400)","국내","2019 춘계학술발표회","[발표신청서] 본부장 결재완료","5원자력본부국내",null,5,null,"2019","05","23",null,"2019.05",null,"원자력본부국내학"]
[36,"ICOPS 소프트웨어에 대한 검증","In-Core Protection System Software Verification","Icops_2019.doc","2019.03.17","2019.05.23","논문","국내학술발표","32964","조주현","원자로설계개발단","계측제어설계그룹","김영백(31201  F3C00),이철신(32596  F3D00)","국내","Transactions of the Korean Nuclear Society Spring Meeting","[발표신청서] 본부장 결재완료","5원자로설계개발단국내",null,5,null,"2019","05","23",null,"2019.05",null,"원자로설계개발단국내학"]
[37,"원자로 공동구 모델의 개선에 관한 연구","A Study on Improvement of the Reactor Cavity Model","KNS_A Study on Assessment of Cooling Air Model in the Reactor Cavity_R10.pdf","2019.03.11","2019.05.23","논문","국내학술발표","44103","이호중","원자로설계개발단","기계설계그룹","김인용(34318  F3B00),허진(33316  F3H00)","국내","2019 한국원자력학회 춘계학술발표회지","[발표신청서] 본부장 결재완료","5원자로설계개발단국내",null,5,null,"2019","05","23",null,"2019.05",null,"원자로설계개발단국내학"]
[38,"제어봉구동장치 냉각팬 유동해석","CFD Analysis for Control Element Drive Mechanism Cooling Fan","CFD Analysis for CEDM Cooling Fan(초안).pdf","2019.03.08","2019.05.23","논문","국내학술발표","40187","조원호","원자로설계개발단","기계설계그룹","백종만(31837  F3B00),황정기(33353  F3B00)","국내","2019 한국원자력학회 춘계","[발표신청서] 본부장 결재완료","5원자로설계개발단국내",null,5,null,"2019","05","23",null,"2019.05",null,"원자로설계개발단국내학"]
[39,"확률론적 부지응답해석을 통한 파일럿 GMRS 도출","Generation of a Pilot GMRS through Probabilistic Site Response Analysis","2019년 한국원자력학회 학술발표 논문_한승룡.doc","2019.03.21","2019.05.24","논문","국내학술발표","43272","한승룡","미래전략연구소","신사업연구실","서춘교(42351  A7400),이대영(26359  A7500)","국내","2019 한국원자력학회 춘계 학술발표회","[발표신청서] 본부장 결재완료","5미래전략연구소국내",null,5,null,"2019","05","24",null,"2019.05",null,"미래전략연구소국내학"]
[40,"원전 계측제어시스템 소프트웨어 V&V 프로세스","Software V&V Process for Instrumentation and Control Systems for Nuclear Power Plants","201905_KOSSE_full_VVprocess.hwp","2019.05.14","2019.05.30","논문","국내학술발표","41062","최창희","원자로설계개발단","원자로안전점검실","김영백(31201  F3C00),백승민(33878  F3C00)","국내","시스템엔지니어링학회 춘계학술대회","[발표신청서] 본부장 결재완료","5원자로설계개발단국내",null,5,null,"2019","05","30",null,"2019.05",null,"원자로설계개발단국내학"]
[41,"소형모듈형원자로용 내장형 제어봉구동장치의 실험적 검증","Experimental Verification of the In-Vessel CEDM for Small Modular Reactors","paper03_사외감수.pdf","2018.12.21","2019.06.11","논문","해외학술발표","37211","박진석","원자로설계개발단","기계설계그룹","백종만(31837  F3B00),이병진(32344  F3J00)","해외","ANS Annual Meeting 2019","[발표신청서] 본부장 결재완료","6원자로설계개발단해외",null,6,null,"2019","06","11",null,"2019.06",null,"원자로설계개발단해외학"]
[42,"APR+ 원전의 증기관파단사고시 재임계도달 방지를 위한 설계평가","Feasibility Study to Prevent a Post-trip Return To Power during Steam Line Break Accident in APR+ Plant","SLB_Post_TRIP_ReturnToPower_0606.doc","2019.06.20","2019.06.28","논문","사내전력기술지","34908","이은주","원자로설계개발단","안전해석그룹","김은기(31254  F3H00),지성구(34126  F3D00)","사내","사내전력기술지 2019 상반기","[발표신청서] 본부장 결재완료","6원자로설계개발단사내",null,6,null,"2019","06","28",null,"2019.06",null,"원자로설계개발단사내전"]
[43,"APR1400 주제어실 수동 운전원 조치시간 분석","An Analysis of Manual Operator Action Time in APR1400 Main Control Room","디지털 주제어실 운전원 조치시간 분석(박재혁 19하 전력기술지)-전기계측기술실.doc","2019.06.27","2019.06.30","논문","사내전력기술지","20215","박재혁","원자력본부","전기계측기술실","강정석(37713  D4C00),서광락(29099  D4C00)","사내","전력기술지 (2019년 하계)","[발표신청서] 본부장 결재완료","6원자력본부사내",null,6,null,"2019","06","30",null,"2019.06",null,"원자력본부사내전"]
[44,"CFD 코드 기반 원자로건물 내의 수소거동 모사 방법론 고찰","A Study of Computational Fluid Dynamics Modeling Method to Simulate Hydrogen Behavior in Reactor Containment Building","CFD 코드 기반 격납건물내의 수소거동 모사 방법론 고찰.doc","2019.06.24","2019.06.30","논문","사내전력기술지","47308","조동현","원자로설계개발단","안전해석그룹","손종주(32004  F3D00),이광원(34038  F3H00)","사내","전력기술지","[발표신청서] 본부장 결재완료","6원자로설계개발단사내",null,6,null,"2019","06","30",null,"2019.06",null,"원자로설계개발단사내전"]
[45,"계통비연계 도서지역의 신재생전원 연계시 전압영향 분석과 개선방안 연구","A Study on the Voltage Influence and Improvement of Interconnecting Renewable Energy Source to Remote Island of Non-Linked Grid","신재생_전력조류_전압해석_모델링.pdf","2019.05.09","2019.06.30","논문","사내전력기술지","26558","강경두","미래전략연구소","신사업연구실","김근성(25901  E4F00),정태영(43161  E4J00)","사내","전력기술지","[발표신청서] 본부장 결재완료","6미래전략연구소사내",null,6,null,"2019","06","30",null,"2019.06",null,"미래전략연구소사내전"]
[46,"최종열침원상실 사고시 GOTHIC 프로그램을 이용한 주제어실 온도상승 분석","The analysis of temperature rise in the main control room following the loss of ultimate heat sink","최종열침원상실 사고시 GOTHIC 프로그램을 이용한 주제어실 온도변화 분석_20190520_감수전.doc","2019.08.05","2019.07.31","논문","사내전력기술지","42279","허건","원자력본부","미래성장신사업그룹","김용철(34332  D4900),김재학(28798  D4400),지영민(30437  D4B00)","사내","2019년 전력기술지","[발표신청서] 본부장 결재완료","7원자력본부사내",null,7,null,"2019","07","31",null,"2019.07",null,"원자력본부사내전"]
[47,"건물에너지 관리시스템 (BEMS) 기술동향 및 개발방안에 대한 고찰","Study on the Building Energy Management Technology Trend and suggested KEPCO-ENC BEMS Development Plan","에너지관리시스템(BEMS) 기술동향 및 한기 사옥 적용방안에 대한 고찰_Rev0.docx","2019.08.05","2019.07.31","논문","사내전력기술지","37789","나춘수","원자력본부","전기계측기술실","강인수(25924  D4C00),김유경(22742  C3300)","사내","전력기술지 (하계)","[발표신청서] 본부장 결재완료","7원자력본부사내",null,7,null,"2019","07","31",null,"2019.07",null,"원자력본부사내전"]
[48,"원자력발전소 배관 감육 평가 절차 개발 - Part2: 국부 감육 평가 방법","Development of Wall-Thinning Evaluation Procedure for Nuclear Power Plant Piping - Part 2: Local Wall Thinning estimation Method","논문_190624.pdf","2019.07.09","2019.07.31","논문","SCI-E저널","37375","윤훈","원자력본부","PSA&PSR사업그룹","오창균(38324  D4800),한승룡(43272  A7500)","해외","Nuclear Engineering and Technology","[발표신청서] 본부장 결재완료","7원자력본부해외",null,7,null,"2019","07","31",null,"2019.07",null,"원자력본부SCI"]
[49,"캐스케이드 제어를 적용한 증기발생기 급수제어계통","Steam Generator Feedwater Control System using Cascade Control","[전력기술지]캐스케이드 제어를 적용한 증기발생기 급수제어계통_초안.doc","2019.07.02","2019.07.31","논문","사내전력기술지","41196","김주영","원자로설계개발단","계측제어설계그룹","백승민(33878  F3C00),한희환(33309  F3J00)","사내","전력기술지","[발표신청서] 본부장 결재완료","7원자로설계개발단사내",null,7,null,"2019","07","31",null,"2019.07",null,"원자로설계개발단사내전"]
[50,"중대사고시 APR1400노형의 원자로건물 성능 평가","Containment Performance Analysis of APR1400 during Severe Accident","[초안]2019년 상반기 전력기술지_중대사고시(SBO) APR1400노형의 격납건물 성능 평가.doc","2019.07.01","2019.07.31","논문","사내전력기술지","40761","신상우","원자력본부","원자력기술실","김형기(43598  D4A00),류인철(34769  D4800)","사내","전력기술지","[발표신청서] 본부장 결재완료","7원자력본부사내",null,7,null,"2019","07","31",null,"2019.07",null,"원자력본부사내전"]
[51,"I-POWER 상부탑재형 노내계측기계통의 노내계측기 삽입/인출 시험 및 유한요소해석","Top Mounted In-Core Instrumentation Insertion/Withdrawal Test and Finite Element Analysis for I-POWER","하계 전력기술지 투고 논문_검토.doc","2019.06.28","2019.07.31","논문","사내전력기술지","41645","김철우","원자로설계개발단","기계설계그룹","김인용(34318  F3B00),맹철수(21217  F3B00)","사내","2019 하계 전력기술지","[발표신청서] 본부장 결재완료","7원자로설계개발단사내",null,7,null,"2019","07","31",null,"2019.07",null,"원자로설계개발단사내전"]
[52,"종합진동평가프로그램(CVAP) 잠김현상 선별기준에 대한 연구","Screening Criteria of Comprehensiv Vibration Assessment Program","종합진동평가프로그램(CVAP) 잠김현상 선별기준에 대한 연구_전력기술_2019_초안.doc","2019.06.27","2019.07.31","논문","사내전력기술지","37398","이아람","원자력본부","원전O＆M사업그룹","이연태(40895  D4500),이찬교(30451  D4500)","사내","전력기술지","[발표신청서] 본부장 결재완료","7원자력본부사내",null,7,null,"2019","07","31",null,"2019.07",null,"원자력본부사내전"]
[53,"원전 시료채취 및 분석 기술의 온라인 감시 및 개발 동향","On-line Monitoring and Development Trends of Sampling and Analysis Technologies for Nuclear Power Plants","전력기술지 (원전 시료채취 및 분석 기술).pdf","2019.06.26","2019.07.31","논문","사내전력기술지","41189","천양호","원자로설계개발단","유체계통설계그룹","박종하(24769  D4100),정장규(32876  F3J00)","사내","전력기술지","[발표신청서] 본부장 결재완료","7원자로설계개발단사내",null,7,null,"2019","07","31",null,"2019.07",null,"원자로설계개발단사내전"]
[54,"차압전송기를 이용한 수위측정 연구 및 다중화 계측기 신호처리 알고리듬 설계","A study on level measurement using differential pressure transmitters and design of signal processing algorithm for redundant instruments","논문초안(윤창선)_초안(감수요청) 등록(20190611).docx","2019.06.19","2019.07.31","논문","사내전력기술지","36461","윤창선","에너지신사업본부","건설사업그룹","반두현(26639  E4F00),오흥일(36424  E4H00)","사내","전력기술지","[발표신청서] 본부장 결재완료","7에너지신사업본부사내",null,7,null,"2019","07","31",null,"2019.07",null,"에너지신사업본부사내전"]
[55,"항공기충돌에 따른 안전관련 기기의 구조건전성 평가","Structural assessment for safety-related equipment under aircraft impact","SMiRT 25 Paper_BRKim_v2.pdf","2019.05.14","2019.08.05","논문","해외학술발표","42728","김봉래","원자력본부","토건환경기술실","강주형(36963  D4D00),김도연(41231  D4D00)","해외","Proceedings of 25th Conference on Structural Mechanics in Reactor Technology (SMiRT-25)","[발표신청서] 본부장 결재완료","8원자력본부해외",null,8,null,"2019","08","05",null,"2019.08",null,"원자력본부해외학"]
[56,"OPR1000 및 APR1400에 대한 장기교류전원 상실시 운전전략 및 복구지침서 개발","Development of Operation Strategy and Recovery Guideline during Extended SBO for OPR1000 and APR1400","NURETH18_dragt_cglee.docx","2019.04.02","2019.08.21","논문","해외학술발표","24385","이창균","원자로설계개발단","안전해석그룹","이광원(34038  F3H00),최철진(33131  F3D00)","해외","NURETH18","[발표신청서] 본부장 결재완료","8원자로설계개발단해외",null,8,null,"2019","08","21",null,"2019.08",null,"원자로설계개발단해외학"]
[57,"APR+ 노형에 대한 MAAP5 PCCS 모델 적용","MAAP5 Passive containment cooling system model for Korean Advanced Power Ractor Plus","27082-Draft Upload v2.docx","2019.07.02","2019.08.22","논문","해외학술발표","43603","김병조","원자력본부","원자력기술실","윤진규(34783  D4600),조성민(37942  D4A00)","해외","NURETH-18 (18 International Topical Meeting on Nuclear Reactor Thermal Hydraulics","[발표신청서] 본부장 결재완료","8원자력본부해외",null,8,null,"2019","08","22",null,"2019.08",null,"원자력본부해외학"]
[58,"Austenitic Stainless Steel 배관의 온도에 따른 환경 피로 영향","Temperature-Based Environmental Fatigue Effect on Austenitic Stainless Steel Piping","KSME_Auetenitic Stainless Steel 배관의 온도에 따른 환경 피로 영향.pdf","2019.08.21","2019.09.01","논문","국내학술지","42765","이봉희","원자력본부","기계배관기술실","박상윤(43929  D4B00),양경진(41173  D4600)","국내","Korea Society of mechnical engeers","[발표신청서] 본부장 결재완료","9원자력본부국내",null,9,null,"2019","09","01",null,"2019.09",null,"원자력본부국내학"]
[59,"BIM기반 Algorithm을 활용한 APR1400 설계기준 통합관리 체계 구축","Establishment of Integrated Design Bases Management System of APR1400","","2019.06.19","2019.09.01","논문","국내학술지","48893","신재섭","원자력본부","국내건설사업그룹","서영달(34524  D4400),이상배(16669  D4400)","국내","한국건설관리학회","[발표신청서] 본부장 결재완료","9원자력본부국내",null,9,null,"2019","09","01",null,"2019.09",null,"원자력본부국내학"]
[60,"OASIS-32D 사용후핵연료 캐스크 열적 특성 연구","A Study on Thermal Behavior for the OASIS (Optimized And Safe Interim Storage System)-32D Spent Nuclear Fuel Cask","A Study on Thermal Behavior for the OASIS (Optimized And Safe Interim Storage System)-32D Spent Nuclear Fuel Cask-R00.doc","2019.05.13","2019.09.23","논문","해외학술발표","44207","이근우","원자로설계개발단","유체계통설계그룹","백종만(31837  F3B00),허진(33316  F3H00)","해외","Global and Top Fuel 2019","[발표신청서] 본부장 결재완료","9원자로설계개발단해외",null,9,null,"2019","09","23",null,"2019.09",null,"원자로설계개발단해외학"]
[61,"계획예방정비를 위한 배수운전 기간중 리스크 저감을 위한 2차측 열제거효과 검토","The effectiveness of secondary heat removal during drain down operation in Mode 5 for risk reduction in low power shutdown Level 1 PRA","ESREL2019,M01-1018,JaegabKim.pdf","2019.03.22","2019.09.23","논문","해외학술발표","28553","김재갑","원자력본부","PSA&PSR사업그룹","김광추(26366  D4B00),최진태(42795  D4800)","해외","The 29th European Safety and Reliability Conference","[발표신청서] 본부장 결재완료","9원자력본부해외",null,9,null,"2019","09","23",null,"2019.09",null,"원자력본부해외학"]
[62,"설계결과물 지연정보를 이용한 Risk 관리시스템 개발 방안","Development of Risk Management System using Engineering Output Delay Information","젼력기술지논문_190923.doc","2019.09.26","2019.09.30","논문","사내전력기술지","34871","이준희","원자력본부","사업관리기술실","임재민(28472  D4E00),홍순원(24952  D4400)","사내","사내전력기술지","[발표신청서] 본부장 결재완료","9원자력본부사내",null,9,null,"2019","09","30",null,"2019.09",null,"원자력본부사내전"]
[63,"보일러의 열-물질 정산 모델링 및 시뮬레이션을 위한 THERMOFLEX 활용","Practical use of THERMOFLEX for Modeling and Simulation of Heat and Mass Balance of Boiler","보일러 열-물질 정산을 위한 thermoflex 활용 검토 20190816.doc","2019.09.25","2019.09.30","논문","사내전력기술지","38914","문홍일","에너지신사업본부","화력O&M사업그룹(신사업)","김동철(26255  E4F00),신용준(29386  E4F00)","사내","전력기술","[발표신청서] 본부장 결재완료","9에너지신사업본부사내",null,9,null,"2019","09","30",null,"2019.09",null,"에너지신사업본부사내전"]
[64,"화력발전소 연돌배출가스 분석설비 적용에 대한 고찰","A study on application of Stack Gas Tele-Monitoring System (TMS) in fossil power plants","화력발전소 연돌배출가스 분석설비 적용에 대한 고찰_감수의뢰용.docx","2019.09.25","2019.09.30","논문","사내전력기술지","45614","유정문","에너지신사업본부","화력O&M사업그룹(신사업)","반두현(26639  E4F00),오흥일(36424  E4H00)","사내","전력기술","[발표신청서] 본부장 결재완료","9에너지신사업본부사내",null,9,null,"2019","09","30",null,"2019.09",null,"에너지신사업본부사내전"]
[65,"다수구역의 정압 및 부압적용시 고려사할 고찰","The review if the leakged air flowrate through doors or cracks from multiple encloseured area.","3. 다중지역 압력변화_논문작성_.pdf","2019.09.25","2019.09.30","논문","사내전력기술지","30437","지영민","원자력본부","기계배관기술실","김재학(28798  D4400),조영규(41166  D4600)","사내","전력기술지","[발표신청서] 본부장 결재완료",{"$f":"S66&K66&N66","v":"9원자력본부사내"},null,{"$f":"DAY(V66)","v":9},null,{"$f":"LEFT(F66,4)","v":"2019"},{"$f":"RIGHT(Y66,2)","v":"09"},{"$f":"RIGHT(F66,2)","v":"30"},null,{"$f":"LEFT(F66,7)","v":"2019.09"},null,"원자력본부사내전"]
[66,"소듐냉각고속로 소듐화재 완화설비 적용기술에 대한 고찰","A Review on the Technical Report for Optimization of Sodium Fire Suppression System in CRBRP","소듐화재완화설비(전력기술지).doc","2019.09.25","2019.09.30","논문","사내전력기술지","20333","이영석","미래전략연구소","원자력연구실","장각수(20349  A7400),장영식(15031  A7400)","사내","전력기술지,  2019년, 추계","[발표신청서] 본부장 결재완료","9미래전략연구소사내",null,9,null,"2019","09","30",null,"2019.09",null,{"$f":"K67&LEFT(H67,3)","v":"미래전략연구소사내전"}]
[67,"오염구조물, 계통 및 기기에 대한 해체전 방사선학적특성평가 방법론 개발","Development of Methodology for Radiological Characterization of Contaminated Structure, System, and Components Prior to Decommissioning","고리1호기 해체전방사선학적특성평가.docx","2019.09.24","2019.09.30","논문","사내전력기술지","43575","이교민","원자력본부","원자력기술실","이여종(20865  D4A00),정재훈(30215  D4700)","사내","사내전력기술지","[발표신청서] 본부장 결재완료","9원자력본부사내",null,9,null,"2019","09","30",null,"2019.09",null,"원자력본부사내전"]
[68,"비상운전지침서 유지관리계획 개발","Maintanence Program Development for Emergency Operating Guidelines","EOG 유지관리계획_190909.doc","2019.09.23","2019.09.30","논문","사내전력기술지","41608","김응서","원자로설계개발단","안전해석그룹","김은기(31254  F3H00),최철진(33131  F3D00)","사내","사내 전력기술지","[발표신청서] 본부장 결재완료","9원자로설계개발단사내",null,9,null,"2019","09","30",null,"2019.09",null,"원자로설계개발단사내전"]
[69,"피동원자로건물냉각계통 적용시 원자로건물 압력 및 온도 분석을 위한 GOTHIC 해석 모델 개발","Development of GOTHIC Analysis Model for Containment Pressure and Temperture Evalution with the Passive Containment Cooling System","2019년 추계 전력기술지_피동원자로건물냉각계통을 적용한 원자로건물 압력 및 온도 분석을 위한 GOTHIC 해석 모델 개발_rev0.doc","2019.09.22","2019.09.30","논문","사내전력기술지","40333","강진철","원자력본부","원자력기술실","문재승(43906  D4A00),이규복(26063  A7400)","사내","2019 추계 전력기술지","[발표신청서] 본부장 결재완료","9원자력본부사내",null,9,null,"2019","09","30",null,"2019.09",null,"원자력본부사내전"]
[70,"Is-Limiter 고장전류 제한 원리 및 적용 사례","The Principle and Application of Fault Current Limiter using Is-Limiter","전력기술지_이철웅.docx","2019.09.19","2019.09.30","논문","사내전력기술지","47139","이철웅","에너지신사업본부","건설사업그룹","김현남(26588  E4H00),정태영(43161  E4J00)","사내","사내전력기술지","[발표신청서] 본부장 결재완료","9에너지신사업본부사내",null,9,null,"2019","09","30",null,"2019.09",null,"에너지신사업본부사내전"]
[71,"근로시간 단축에 따른 건설공기 영향 고찰","A study on the effect of the revised Labor Standards Act on a construction duration of the Nuclear Power Plants","기술논문(정성문)-근로시간 단축에 따른 건설공기 영향 고찰.hwp","2019.09.17","2019.09.30","논문","사내전력기술지","30268","정성문","원자력본부","국내건설사업그룹","정인철(20578  D4400),홍순원(24952  D4400)","사내","사내전력기술지","[발표신청서] 본부장 결재완료","9원자력본부사내",null,9,null,"2019","09","30",null,"2019.09",null,"원자력본부사내전"]
[72,"원전 건설사업의 설계 관리기준공정표 개선 방안 고찰","Study on improvement method of the Engineering Integrated Project Schedule of Nuclear Power Plant Construction Project","전력기술지논문-설계IPS개선방안고찰_190909.doc","2019.09.16","2019.09.30","논문","사내전력기술지","27241","이석준","원자력본부","해외사업그룹","김정주(21511  D4600),서태열(30761  D4900)","사내","2019년도 추계 전력기술지","[발표신청서] 본부장 결재완료","9원자력본부사내",null,9,null,"2019","09","30",null,"2019.09",null,"원자력본부사내전"]
[73,"SFP 리스크평가 방법론","PSA methodology for Spent Fuel Pool","ASRAM2019_논문-최진태_RevA.doc","2019.08.13","2019.09.30","논문","해외학술발표","42795","최진태","원자력본부","PSA&PSR사업그룹","김남철(39777  D4800),김재갑(28553  D4800)","국내","ASRAM","[발표신청서] 본부장 결재완료","9원자력본부국내",null,9,null,"2019","09","30",null,"2019.09",null,"원자력본부해외학"]
[74,"정지냉각기능상실 사고관련 최신동향 및 APR1400 정지저출력 PSA Level1 & 2에 미치는 영향평가","A Trend Analysis of Loss of Decay Heat Removal events during shutdown conditions and Sensitivity Analysis for APR1400 LPSD PSA","ASRAM2019_Paper_LODHR.pdf","2019.08.01","2019.09.30","논문","국내학술발표","28553","김재갑","원자력본부","PSA&PSR사업그룹","구정서(34739  D4400),최진태(42795  D4800)","국내","ASRAM2019","[발표신청서] 본부장 결재완료","9원자력본부국내",null,9,null,"2019","09","30",null,"2019.09",null,"원자력본부국내학"]
[75,"디지털기기의 CGID 수행방법","The CGID Methodology for Commercial Digital Devices Used in Nuclear Power Plant Applications","디지털기기의 CGID 수행방법_draft.doc","2019.09.20","2019.10.01","논문","사내전력기술지","50157","류문영","원자력본부","원전안전센터","김상은(30053  D4100),송이철(17759  D4100)","사내","사내전력기술지","[발표신청서] 본부장 결재완료","10원자력본부사내",null,10,null,"2019","10","01",null,"2019.10",null,"원자력본부사내전"]
[76,"국내 산업플랜트의 해수계통 배관에 설치된 라이닝 손상 원인분석","CAUSE ANALYSIS FOR A LINING DAMAGE INSTALLED IN THE SEA WATER SYSTEM PIPING OF A KOREAN INDUSTRIAL PLANT","Cause Analysis for a Lining Damage installed in the SW System Piping(E).docx","2019.09.09","2019.10.15","논문","해외학술발표","24584","황경모","원자력본부","PSA&PSR사업그룹","김광추(26366  D4B00),박흥배(28775  A7500)","국내","2019 ICEC proceedings","[발표신청서] 본부장 결재완료","10원자력본부국내",null,10,null,"2019","10","15",null,"2019.10",null,"원자력본부해외학"]
[77,"원전 매설배관 외측에서의 손상 발생가능성 입력 변수","Input Parameter for Likelihood of Outside Defects in Buried Pipes of Nuclear Power Plants","CSSK 2019 추계학술대회 초록-침식부식(구두)_임부택_박준호.docx","2019.10.01","2019.10.16","논문","국내학술발표","29946","임부택","원자력본부","PSA&PSR사업그룹","김현수(34348  D4800),박진석(26933  D4800)","국내","2019년도 한국부식방식학회 추계학술대회","[발표신청서] 본부장 결재완료","10원자력본부국내",null,10,null,"2019","10","16",null,"2019.10",null,"원자력본부국내학"]
[78,"원전 배관 감육 평가를 위한 반복 두께 측정 데이터의 유사성 평가 방법 연구","A Study on Similarity Evaluation of Repeated Thickness Measurement Data for Wall-thinning Evaluation in Nuclear Power Plant","논문 1. (정의제) 한국부식방식학회 논문 초록.docx","2019.09.25","2019.10.16","논문","국내학술발표","53679","정의제","원자력본부","PSA&PSR사업그룹","김경수(42684  A7500),오창균(38324  D4800)","국내","2019년도 한국부식방식학회 추계학술대회 초록집","[발표신청서] 본부장 결재완료","10원자력본부국내",null,10,null,"2019","10","16",null,"2019.10",null,"원자력본부국내학"]
[79,"가상 3D모델 주제어실 설계 평가지원시스템","Virtual 3D Model MCR Design Evaluation Support System","가상 3D모델 제어실설계 평가지원시스템 논문4.doc","2019.10.04","2019.10.17","논문","국내학술발표","29099","서광락","원자력본부","전기계측기술실","박재혁(20215  D4C00)","국내","대한인간공학회","[발표신청서] 본부장 결재완료","10원자력본부국내",null,10,null,"2019","10","17",null,"2019.10",null,"원자력본부국내학"]
[80,"가상 배관 두께 측정 데이터를 통한 감육 평가 방법의 통계적 보수성 평가에 관한 연구","A Study on the Statistical Conservatism of Pipe Wall-thinning Evaluation Method Using Virtual Thickness Measurement Data","논문 1. (윤훈) 한국부식방식학회 논문 초록.docx","2019.09.25","2019.10.23","논문","국내학술발표","37375","윤훈","원자력본부","PSA&PSR사업그룹","오영진(38317  A7500),오창균(38324  D4800)","국내","한국부식방식학회 추계학술대회 초록","[발표신청서] 본부장 결재완료","10원자력본부국내",null,10,null,"2019","10","23",null,"2019.10",null,"원자력본부국내학"]
[81,"슬로싱을 고려한 탱의 최대 저장량 제안","Suggestion of Maximum Storage Capacity of Flat-Bottom Tank under Sloshing","Storage Capacity of Flat Bottom TK_최훈(KEPCO E&C)_201910.rev.2.docx","2019.09.10","2019.10.23","논문","국내학술발표","45438","최훈","원자력본부","PSA&PSR사업그룹","유형근(40858  D4800),전상호(43721  D4800)","국내","2019 추계 원자력학회 학술발표회","[발표신청서] 본부장 결재완료","10원자력본부국내",null,10,null,"2019","10","23",null,"2019.10",null,"원자력본부국내학"]
[82,"유체 동적 특성을 고려한 지지대가 있는 수직 탱크의 정착부 지진취약도 평가","Seismic Fragility Evalulation for Anchorage of Skirt Supported Vertical Tank","Seismic Fragility Evaluation for Anchorage of Skirt Supported Vertical Tank_R2.docx","2019.09.10","2019.10.23","논문","국내학술발표","37861","우권수","원자력본부","PSA&PSR사업그룹","유형근(40858  D4800),최훈(45438  D4800)","국내","2019 원자력학회 추계학술발표회","[발표신청서] 본부장 결재완료","10원자력본부국내",null,10,null,"2019","10","23",null,"2019.10",null,"원자력본부국내학"]
[83,"APR1400 노형의 ELAP사고 대처에 대한 고압외부주입펌프 민감도 분석연구","A Sensitivity Study on High Pressure External Injection Pump used in ELAP Coping Strategy for APR1400","A Sensitivity Study on High Pressure External Injection Pump used in ELAP Coping Strategy for APR1400.doc","2019.08.27","2019.10.23","논문","국내학술발표","50016","김상진","원자로설계개발단","안전해석그룹","손종주(32004  F3D00),지성구(34126  F3D00)","국내","2019 추계 원자력 학회","[발표신청서] 본부장 결재완료","10원자로설계개발단국내",null,10,null,"2019","10","23",null,"2019.10",null,"원자로설계개발단국내학"]
[84,"원자로냉각재 압력경계에서 소형배관파단으로 인한 누설량에 대한 연구","A Study on Leakage flowrate from Small-size Pipe Break of RCPB","2019원자력학회 RC 압력경계 내의 소형배관파단으로 인한 누설량에 대한 연구.doc","2019.08.20","2019.10.23","논문","국내학술발표","44429","박재형","원자로설계개발단","유체계통설계그룹","이병진(32344  F3J00),최철진(33131  F3D00)","국내","한국원자력학회","[발표신청서] 본부장 결재완료","10원자로설계개발단국내",null,10,null,"2019","10","23",null,"2019.10",null,"원자로설계개발단국내학"]
[85,"신규 원전 적용을 위한 진공 탈기기 적용 방안 연구","Development of A Gas Stripping Unit to improve the Contaminant Removing Capability","2019추계학술_190816.doc","2019.08.19","2019.10.23","논문","국내학술발표","43744","정유석","원자로설계개발단","유체계통설계그룹","김은기(31254  F3H00),이병진(32344  F3J00)","국내","한국원자력학회 2019년도 추계학술발표회","[발표신청서] 본부장 결재완료","10원자로설계개발단국내",null,10,null,"2019","10","23",null,"2019.10",null,"원자로설계개발단국내학"]
[86,"iPOWER 설계기준초과 사고해석","Beyond Design Basis Accidents Analysis for iPOWER","KNS Paper_19Fall_CJChoi.doc","2019.08.16","2019.10.23","논문","국내학술발표","33131","최철진","원자로설계개발단","안전해석그룹","지성구(34126  F3D00),허진(33316  F3H00)","국내","한국원자력학회 추계학술대회","[발표신청서] 본부장 결재완료","10원자로설계개발단국내",null,10,null,"2019","10","23",null,"2019.10",null,"원자로설계개발단국내학"]
[87,"혁신적 안전 경수로의 전출력 내부사건 1단계 예비 확률론적 안전성평가","A Preliminary Study on Level 1 Internal PSA of iPOWER Conceptual Design","[19KNS추계] Preliminary Scoping Probabilistic Safety Assessment for iPOWER.doc","2019.09.05","2019.10.24","논문","국내학술발표","51978","이경수","원자력본부","PSA&PSR사업그룹","김기수(36086  D4800),김재갑(28553  D4800)","국내","한국원자력학회","[발표신청서] 본부장 결재완료","10원자력본부국내",null,10,null,"2019","10","24",null,"2019.10",null,"원자력본부국내학"]
[88,"원전 특성을 고려한 BIM기반 Indoor Navigation System 개발","Development of BIM based Indoor Navigation System Considering Characteristic of Nuclear Power Plant","원전 특성을 고려한 BIM기반 Indoor Navigation System 개발.hwp","2019.08.30","2019.10.24","논문","국내학술발표","48893","신재섭","원자력본부","국내건설사업그룹","서영달(34524  D4400),이상배(16669  D4400)","국내","대한건축학회 2019 추계학술대회 논문집","[발표신청서] 본부장 결재완료","10원자력본부국내",null,10,null,"2019","10","24",null,"2019.10",null,"원자력본부국내학"]
[89,"핵연료취급계통 설계특징 및 성능 비교","Comparison of Design Features and Performance of Fuel Handling System Equipment","2019 추계원자력_장상균.pdf","2019.08.22","2019.10.24","논문","국내학술발표","32691","장상균","원자로설계개발단","기계설계그룹","김인용(34318  F3B00),황정기(33353  F3B00)","국내","한국원자력학회","[발표신청서] 본부장 결재완료","10원자로설계개발단국내",null,10,null,"2019","10","24",null,"2019.10",null,"원자로설계개발단국내학"]
[90,"PGSFR 원자로건물에서의 소듐화재 분석","Sodium Fire Analysis in the PGSFR Containment","Sodium Fire Analysis in the PGSFR Containment-A.doc","2019.08.22","2019.10.24","논문","국내학술발표","20349","장각수","미래전략연구소","원자력연구실","이규광(20111  D4A00),이영석(20333  A7400)","국내","원자력학회 2019 추계학술발표회","[발표신청서] 본부장 결재완료","10미래전략연구소국내",null,10,null,"2019","10","24",null,"2019.10",null,"미래전략연구소국내학"]
[91,"혁신적 안전 경수로 안전등급 계측제어계통의 신뢰도 평가","Reliability Evaluation of the Safety I&C System for the iPOWER","2019년 추계원자력학회 논문_감수의뢰.doc","2019.08.21","2019.10.24","논문","국내학술발표","34628","이창재","원자로설계개발단","계측제어설계그룹","백승민(33878  F3C00),손세도(31985  F3C00)","국내","한국원자력학회","[발표신청서] 본부장 결재완료","10원자로설계개발단국내",null,10,null,"2019","10","24",null,"2019.10",null,"원자로설계개발단국내학"]
[92,"APR+ 원전의 중대사고 완화를 위한 PCCS 설계 연구","Studies on the Design of Passive Containment Cooling System (PCCS) for Severe Accident Mitigation of APR+ Nuclear Power Plant","[추계원자력학회]Studies on the Design of PCCS for Severe Accident Mitigation of APR+(이규복).doc","2019.08.21","2019.10.24","논문","국내학술지","26063","이규복","미래전략연구소","원자력연구실","이원배(18944  A7400),장각수(20349  A7400)","국내","원자력학회 추계학술발표회 논문집","[발표신청서] 본부장 결재완료","10미래전략연구소국내",null,10,null,"2019","10","24",null,"2019.10",null,"미래전략연구소국내학"]
[93,"SFR에서 소듐화재시 바닥면 보호 방법론","A Methodology of Floor Protection during Sodium Fire in SFR","2019-KNS-Floor-SF.doc","2019.08.21","2019.10.24","논문","국내학술발표","20349","장각수","미래전략연구소","원자력연구실","이규광(20111  D4A00),이규복(26063  A7400)","국내","원자력학회 2019 추계학술발표회","[발표신청서] 본부장 결재완료","10미래전략연구소국내",null,10,null,"2019","10","24",null,"2019.10",null,"미래전략연구소국내학"]
[94,"SPACE 코드를 활용한 APR1400 발전소의 안전주입상실을 동반한 소형냉각재상실사고 분석","Analysis of Small Break LOCA with Loss of Safety Injection for APR1400 using SPACE","Analysis of Small Break LOCA with Loss of Safety Injection for APR1400 using SPACE.doc","2019.08.21","2019.10.24","논문","국내학술발표","49437","홍성민","원자로설계개발단","안전해석그룹","최철진(33131  F3D00),허진(33316  F3H00)","국내","한국원자력학회","[발표신청서] 본부장 결재완료","10원자로설계개발단국내",null,10,null,"2019","10","24",null,"2019.10",null,"원자로설계개발단국내학"]
[95,"해양부유식 원자로 BANDI-60S의 개발현황","Development of SMR BANDI-60S for a Floating Nuclear Power Plant","Development of KEPCO E&C’s SMR BANDI-60S for a Floating Nuclear Power Plant.pdf","2019.08.21","2019.10.24","논문","국내학술발표","50083","김일환","원자로설계개발단","신기술사업그룹","김은기(31254  F3H00),이광원(34038  F3H00)","국내","한국원자력학회","[발표신청서] 본부장 결재완료","10원자로설계개발단국내",null,10,null,"2019","10","24",null,"2019.10",null,"원자로설계개발단국내학"]
[96,"APR1400 복수기진공상실사고의 보수적 분석 및 최적해석에 대한 비교 연구","A Comparative Study on Conservative and Best-estimate Analyses of LOCV for APR1400","Rev1-김정주-2019 추계 원자력학회 논문.doc","2019.08.20","2019.10.24","논문","국내학술발표","43656","김정주","원자로설계개발단","안전해석그룹","서종태(31897  F3J00),최철진(33131  F3D00)","국내","한국원자력학회 2019 추계 학술발표회 논문집","[발표신청서] 본부장 결재완료","10원자로설계개발단국내",null,10,null,"2019","10","24",null,"2019.10",null,"원자로설계개발단국내학"]
[97,"APR1400 원자로냉각재가스배기계통의 최소 증기배기용량에 대한 상하한 평가","Bounding Evaluation of Minimum Steam Venting Capacity in Reactor Coolant Gas Vent System Design for APR1400","논문_KNS_2019_RCGVS Steam Venting Capacity Evaluation.pdf","2019.08.20","2019.10.24","논문","국내학술발표","52344","김현아","원자로설계개발단","유체계통설계그룹","손종주(32004  F3D00),이병철(34045  F3500)","국내","2019년 추계 원자력학회","[발표신청서] 본부장 결재완료","10원자로설계개발단국내",null,10,null,"2019","10","24",null,"2019.10",null,"원자로설계개발단국내학"]
[98,"APR 1400 원전의 과압보호 설계 최적화","Design Optimization for Overpressurization Protection for ARP1400","(190816) Analysis on Design Optimization for Overpressurization for APR1400_사내감수.doc","2019.08.20","2019.10.24","논문","국내학술발표","51534","이상진","원자로설계개발단","안전해석그룹","김은기(31254  F3H00),최철진(33131  F3D00)","국내","2019년 추계 원자력학회","[발표신청서] 본부장 결재완료","10원자로설계개발단국내",null,10,null,"2019","10","24",null,"2019.10",null,"원자로설계개발단국내학"]
[99,"최종열제거원상실사고시 격실냉방 대처능력 평가","Assessment of Coping Capability on Room Cooling under Loss of Ultimate Heat Sink","Room Cooling_R3.doc","2019.08.20","2019.10.24","논문","국내학술발표","27847","김병선","미래전략연구소","원자력연구실","이규복(26063  A7400),허건(42279  D4900)","국내","2019 추계 원자력학회 학술발표","[발표신청서] 본부장 결재완료","10미래전략연구소국내",null,10,null,"2019","10","24",null,"2019.10",null,"미래전략연구소국내학"]
[100,"iPOWER 비안전계통의 규제적 관리방안","iPOWER Regulatory Treatment of NonSafety System","(완료)iPOWER Regulatory Treatment for Nonsafety System.doc","2019.08.20","2019.10.24","논문","국내학술발표","52506","이대형","미래전략연구소","원자력연구실","김기택(38132  D4900),이태화(43089  A7400)","국내","2019 추계 원자력 학회","[발표신청서] 본부장 결재완료","10미래전략연구소국내",null,10,null,"2019","10","24",null,"2019.10",null,"미래전략연구소국내학"]
[101,"APR1400 U-type 증기발생기 열수력평가 프로그램 개발","Thermal-Hydraulics Evaluation Program Development for U-type Steam Generator of APR1400","Thermal-Hydraulics Evaluation for U-type Steam Generator of APR1400_(R01,2019-08-13).doc","2019.08.20","2019.10.24","논문","국내학술발표","44207","이근우","원자로설계개발단","유체계통설계그룹","정병렬(35165  F3H00),허진(33316  F3H00)","국내","한국원자력학회 2019 추계학술발표회","[발표신청서] 본부장 결재완료","10원자로설계개발단국내",null,10,null,"2019","10","24",null,"2019.10",null,"원자로설계개발단국내학"]
[102,"APR+ 중대사고용 PCCS 기기배치 고찰","A Study on the Equipment Arrangement of Passive Containment Cooling System for Severe Accident of APR+","A study on the equipment arrangement of passive containment cooling system for severe accident of APR+.docx","2019.08.19","2019.10.24","논문","국내학술발표","20069","이헌규","미래전략연구소","원자력연구실","김병선(27847  A7400),손영주(43966  D4400)","국내","한국원자력학회, 2019 추계학술발표회","[발표신청서] 본부장 결재완료","10미래전략연구소국내",null,10,null,"2019","10","24",null,"2019.10",null,"미래전략연구소국내학"]
[103,"산업공정 에너지공급용 열저장설비를 이용한 원자력-재생하이브리드에너지계통의 개발","Development of Nuclear-Renewable Hybrid Energy System using Thermal Energy Storage for Industrial Processes","논문_KNS_2019_NRHES 개발_KNS Format.pdf","2019.08.08","2019.10.24","논문","국내학술발표","33751","김성호","원자로설계개발단","신기술사업그룹","이광원(34038  F3H00),최철진(33131  F3D00)","국내","Transactions of Korean Nuclear Society Autumn Meeting","[발표신청서] 본부장 결재완료","10원자로설계개발단국내",null,10,null,"2019","10","24",null,"2019.10",null,"원자로설계개발단국내학"]
[104,"정지저출력 조건에서 열제거감소사건에서의 핵연료노출에 대한 연구","A Study on Core Uncovery Time for Decrease Heat Removal Events during the Low Power and Shutdown (LPSD) Conditions","Core Uncovery Time during LPSD Condition-2019 KNS Autumn.doc","2019.08.06","2019.10.24","논문","국내학술발표","32381","이상섭","원자로설계개발단","안전해석그룹","최철진(33131  F3D00),허진(33316  F3H00)","국내","2019 원자력학회 추계 학술발표회","[발표신청서] 본부장 결재완료","10원자로설계개발단국내",null,10,null,"2019","10","24",null,"2019.10",null,"원자로설계개발단국내학"]
[105,"원전에서의 지역난방 공급 시 요구되는 연계계통 설계개념 수립을 위한 고찰","A Study on the Design Concept of the DH Interface System Required for Supplying District Heating from Nuclear Power Plant","원전지역난방_19전력기술지_추계_제출용.doc","2019.09.20","2019.10.30","논문","사내전력기술지","26366","김광추","원자력본부","기계배관기술실","장지웅(26285  D4B00),최준완(29659  D4600)","사내","2019년 추계 전력기술지","[발표신청서] 본부장 결재완료","10원자력본부사내",null,10,null,"2019","10","30",null,"2019.10",null,"원자력본부사내전"]
[106,"손상된 핵연료 적재를 위한 OASIS-24DFC 모델의 임계 해석","Criticality Analysis for OASIS-24DFC Cask Capable of Loading Damaged Fuel Assemblies","2019 방사성폐기물학회 임계_이태경.pdf","2019.09.05","2019.10.30","논문","국내학술발표","47146","이태경","원자로설계개발단","안전해석그룹","김형헌(31409  F3I00),지성구(34126  F3D00)","국내","한국방사성폐기물학회","[발표신청서] 본부장 결재완료","10원자로설계개발단국내",null,10,null,"2019","10","30",null,"2019.10",null,"원자로설계개발단국내학"]
[107,"설계확장사고시 장기 정지냉각 기능을 위한 다양성원자로건물살수계통 설계 개발","Design Development of Diverse Containment Spray System for Long Term Shutdown Cooling during Design Extension Conditions","191002 설계확장조건시 장기정지냉각기능을 위한 다양성살수계통 설계개발.hwp","2019.10.10","2019.10.31","논문","국내학술발표","37352","윤재화","원자력본부","해외사업그룹","김기택(38132  D4900),김병선(27847  A7400)","국내","한국에너지학회","[발표신청서] 본부장 결재완료","10원자력본부국내",null,10,null,"2019","10","31",null,"2019.10",null,"원자력본부국내학"]
[108,"전력산업시설물 중 주제어건물의 내진성능평가에 관한 해석적 연구","Analytical Study on the Seismic Performance Evaluation of Control Building of Electric Power Industry Facility","전력산업시설물 중 주제어건물의 내진성능평가에 관한 해석적 연구(권윤상).hwp","2019.09.30","2019.10.31","논문","사내전력기술지","45607","권윤상","에너지신사업본부","건설사업그룹","박호석(39953  E4H00),조가연(45563  E4H00),최호철(27796  E4H00)","사내","전력기술지","[발표신청서] 본부장 결재완료","10에너지신사업본부사내",null,10,null,"2019","10","31",null,"2019.10",null,"에너지신사업본부사내전"]
[109,"원자력발전소 스트레스테스트에서의 인간공학 평가 방법론에 대한 고찰","A Study on the Human Factors Engineering Methodology for Nuclear Power Plant Stress Test","2019 추계 전력기술지 논문_하욱현,유경무,강정석_r2.docx","2019.09.25","2019.10.31","논문","사내전력기술지","49696","하욱현","원자력본부","해외사업그룹","박재혁(20215  D4C00),서광락(29099  D4C00)","사내","전력기술지","[발표신청서] 본부장 결재완료","10원자력본부사내",null,10,null,"2019","10","31",null,"2019.10",null,"원자력본부사내전"]
[110,"접지봉 영향 하의 원전 매설배관 부식결함 탐지를 위한 표면전위 분포의 유한요소모델 연구","A Study of Finite Element Model for Surface Potential Variation for Detecting Buried Pipe's Corrosion Defects of Nuclear Power Plants under the Influence of Copper Ground Rods","2019년 추계 전력기술지_접지봉 영향 하의 원전 매설배관 FEM 결함탐상(연구소)_R1.docx","2019.09.25","2019.10.31","논문","사내전력기술지","42684","김경수","미래전략연구소","신사업연구실","김현수(34348  D4800),윤훈(37375  D4800)","사내","사내전력기술지","[발표신청서] 본부장 결재완료","10미래전략연구소사내",null,10,null,"2019","10","31",null,"2019.10",null,"미래전략연구소사내전"]
[111,"SMR 용 핵반응단면적 자료집 생산","Generation of Nuclear Cross Section Library for SMR","전력기술지2019추계 한영태 20190917b.doc","2019.09.25","2019.10.31","논문","사내전력기술지","37597","한영태","원자로설계개발단","안전해석그룹","서종태(31897  F3J00),지성구(34126  F3D00)","사내","한국전력기술 전력기술지","[발표신청서] 본부장 결재완료","10원자로설계개발단사내",null,10,null,"2019","10","31",null,"2019.10",null,"원자로설계개발단사내전"]
[112,"SPACE 코드를 활용한 APR1400의 안전주입상실을 수반한 소형냉각재상실사고 분석","SPACE Code Analysis of APR1400 Small Break LOCA with Safety Injection Failure","SPACE Code Analysis of APR1400 Small Break LOCA with Safety Injection Failure.doc","2019.09.24","2019.10.31","논문","사내전력기술지","49437","홍성민","원자로설계개발단","안전해석그룹","최철진(33131  F3D00),허진(33316  F3H00)","사내","2019년도 추계 전력기술지","[발표신청서] 본부장 결재완료","10원자로설계개발단사내",null,10,null,"2019","10","31",null,"2019.10",null,"원자로설계개발단사내전"]
[113,"용량요금 구성요소 및 변화 추이 분석","Factors of capacity payment and trend analysis","용량요금 결정 및 추이분석(Rev.0)_190906.docx","2019.09.20","2019.10.31","논문","사내전력기술지","43996","오명수","원자력본부","사업관리기술실","김형석(17123  D4E00),정영렬(28921  A7200)","사내","2019년 전력기술지 추계","[발표신청서] 본부장 결재완료","10원자력본부사내",null,10,null,"2019","10","31",null,"2019.10",null,"원자력본부사내전"]
[114,"To-Be Process의 체계적인 검증 수행 방법론 개발에 관한 연구","A Study on Development of Methodology for Systematic Verification of To-Be Process","To-Be Process의 체계적인 검증 수행 방법론 개발에 관한 연구.hwp","2019.09.20","2019.10.31","논문","사내전력기술지","43855","김동우","원자력본부","사업관리기술실","이경천(22853  D4E00),임재민(28472  D4E00)","사내","전력기술지","[발표신청서] 본부장 결재완료","10원자력본부사내",null,10,null,"2019","10","31",null,"2019.10",null,"원자력본부사내전"]
[115,"가동원전 터빈 비상정지계통 설비개선 고찰","Turbine emergency trip system retrofit of operating nuclear power plant","터빈비상정지계통개선 논문 201909 전력기술지.doc","2019.09.18","2019.10.31","논문","사내전력기술지","26285","장지웅","원자력본부","기계배관기술실","권우현(29872  D4B00),김광추(26366  D4B00)","사내","2019년 추계 전력기술지","[발표신청서] 본부장 결재완료","10원자력본부사내",null,10,null,"2019","10","31",null,"2019.10",null,"원자력본부사내전"]
[116,"고리1호기 사용후핵연료 37 다발을 장전한 OASIS-37CAN 캐니스터의 예비 임계해석","Preliminary Criticality Analysis of the OASIS-37CAN Canister With 37 Spent Nuclear Fuel Assemblies of Kori-1","KRS 2019 Autumn _ OASIS-37CAN.pdf","2019.09.03","2019.10.31","논문","국내학술발표","32108","안준기","원자로설계개발단","신기술사업그룹","김형헌(31409  F3I00),서종태(31897  F3J00)","국내","한국방사성폐기물학회 2019 추계학술발표회","[발표신청서] 본부장 결재완료","10원자로설계개발단국내",null,10,null,"2019","10","31",null,"2019.10",null,"원자로설계개발단국내학"]
[117,"수출형 원전 안전계통 설계 개념 및 개발 현황","Design Principles and Development Status of Safety Systems in Korean Nuclear Power Plant for Overseas Markets","190930 수출형 원전 안전계통 설계 개념 및 개발 현황.hwp","2019.10.10","2019.11.01","논문","국내학술발표","25667","강상호","원자력본부","해외사업그룹","이성면(24297  D4600),정재형(29731  D4600)","국내","2019 한국에너지학회 추계 학술대회","[발표신청서] 본부장 결재완료","11원자력본부국내",null,11,null,"2019","11","01",null,"2019.11",null,"원자력본부국내학"]
[118,"원전 수출을 위한 주요국의 방사성폐기물 관리체계에 대한 고찰","A Study on the Management of Radioactive Waste in Major Countries for Exporting Nuclear Power Plants","논문 본문_eng_rev.1.docx","2019.09.06","2019.11.01","논문","국내학술발표","54126","이지운","원자력본부","해외사업그룹","나한정(36255  D4600),박정규(40659  D4600)","국내","한국방사성폐기물학회","[발표신청서] 본부장 결재완료","11원자력본부국내",null,11,null,"2019","11","01",null,"2019.11",null,"원자력본부국내학"]
[119,"SMART 액체방사성폐기물계통 경제성평가","The Economic Evaluation of Liquid Radioactive Waste Management System for SMART","The Economic Evaluation of liquid radioactive waste management system for SMART_KRS2019.docx","2019.09.04","2019.11.01","논문","국내학술발표","45165","최진규","원자력본부","해외사업그룹","김은영(34753  D4400),김재열(40451  B1200)","국내","2019 한국방사성폐기물학회 추계학술발표회","[발표신청서] 본부장 결재완료","11원자력본부국내",null,11,null,"2019","11","01",null,"2019.11",null,"원자력본부국내학"]
[120,"공통원인고장 진단 및 감시계통(CDMS) 설계방안","CCF Diagonostic Monitoring System (CDMS)","NUPIC2019-CDMS설계방안_1007.pptx","2019.10.23","2019.11.07","논문","국내학술발표","32661","임형순","원자로설계개발단","계측제어설계그룹","백승민(33878  F3C00),손세도(31985  F3C00)","국내","NuPIC 2019","[발표신청서] 본부장 결재완료","11원자로설계개발단국내",null,11,null,"2019","11","07",null,"2019.11",null,"원자로설계개발단국내학"]
[121,"UAE 원전 무선설비(TETRA) 적용","Application of the Wireless Facility (TETRA) in UAE Nuclear Power Plant","NUPIC2019.zip","2019.10.21","2019.11.07","논문","국내학술발표","32573","이주환","원자로설계개발단","계측제어설계그룹","김영백(31201  F3C00),손세도(31985  F3C00)","국내","제11회 원전계측제어 심포지엄(NuPIC 2019)","[발표신청서] 본부장 결재완료","11원자로설계개발단국내",null,11,null,"2019","11","07",null,"2019.11",null,"원자로설계개발단국내학"]
[122,"유럽 수출용 원전의 계측제어 다양성 및 심층방어 설계","Design of I&C Diversity and Defense-in-Depth for the European Nuclear Power Plant","감수요청.zip","2019.10.23","2019.11.08","논문","국내학술발표","33989","오양균","원자로설계개발단","계측제어설계그룹","김영백(31201  F3C00),손세도(31985  F3C00)","국내","Nuclear Power Plant Instrumentation and Control (NuPIC) 2019","[발표신청서] 본부장 결재완료","11원자로설계개발단국내",null,11,null,"2019","11","08",null,"2019.11",null,"원자로설계개발단국내학"]
[123,"기능제어로직 시뮬레이션 시스템 구축 및 적용","Establishment and Application of Simulation System for FCLD","NUPIC2019_한국전력기술_홍상의 초안.pptx","2019.10.22","2019.11.08","논문","국내학술발표","50666","홍상의","원자로설계개발단","계측제어설계그룹","김영백(31201  F3C00),손세도(31985  F3C00)","국내","원전계측제어 심포지엄 (NuPIC 2019)","[발표신청서] 본부장 결재완료","11원자로설계개발단국내",null,11,null,"2019","11","08",null,"2019.11",null,"원자로설계개발단국내학"]
[124,"AF/AL 통계량 기반의 계측기 드리프트 평가 방법론","Drift evaluation methodology based on AF/AL statistics","(2019.11.07) AF.AL 통계량 기반의 계측기 드리프트 평가 방법론 (Rev.00).doc","2019.10.17","2019.11.08","논문","국내학술발표","36137","김병래","원자로설계개발단","계측제어설계그룹","김영백(31201  F3C00),백승민(33878  F3C00)","국내","원전계측제어 심포지엄(NuPIC 2019)","[발표신청서] 본부장 결재완료","11원자로설계개발단국내",null,11,null,"2019","11","08",null,"2019.11",null,"원자로설계개발단국내학"]
[125,"핵연료집합체 수명말 조건 고려 원자로내부구조물 지진성능 평가","An Evaluation on the Seismic Performance of Reactor Internals with End-Of-Life Fuel Assembly Condition","기계학회논문-이장원-2019.09.04.pdf","2019.09.20","2019.11.13","논문","국내학술발표","43066","이장원","원자로설계개발단","신기술사업그룹","김인용(34318  F3B00),이대희(32293  F3B00)","국내","대한기계학회 2019 학술대회","[발표신청서] 본부장 결재완료","11원자로설계개발단국내",null,11,null,"2019","11","13",null,"2019.11",null,"원자로설계개발단국내학"]
[126,"독립계통의 신재생전원 연계시 전압해석 모델링","Voltage Analysis Modelling for the Interconnection of Renewable Energy source in the Islanded Electric Power Grid","2019_추계학술_신재생전원_전력조류_모델링.hwp","2019.09.10","2019.11.13","논문","국내학술발표","26558","강경두","미래전략연구소","신사업연구실","여경규(30696  E4H00),정구철(24038  E4J00)","국내","대한전기학회 추계학술대회","[발표신청서] 본부장 결재완료","11미래전략연구소국내",null,11,null,"2019","11","13",null,"2019.11",null,"미래전략연구소국내학"]
[127,"발전소보호계통 소프트웨어 신뢰도 분석","Reliabilty Anlaysis of Plant Protection System Software","NUPIC2019 - 발전소보호계통 소프트웨어 신뢰도 분석.pptx","2019.10.24","2019.11.14","논문","국내학술발표","51284","노희준","원자로설계개발단","계측제어설계그룹","김영백(31201  F3C00),손세도(31985  F3C00)","국내","원전계측제어 심포지엄 (NuPIC 2019)","[발표신청서] 본부장 결재완료","11원자로설계개발단국내",null,11,null,"2019","11","14",null,"2019.11",null,"원자로설계개발단국내학"]
[128,"열취화된 주조 오스테나이트 스테인리스강 배관의 최신 평가법에 의한 파괴인성 평가","Evaluation of Fracture Toughness for Thermal Aging Embrittlement of Cast Austenitic Stainless Steel Piping based on Revised Rule","20190916_제출논문_열취화 주조 오스테나이트 스테인리스강 배관의 최신 평가법에 의한 파괴인성 평가.hwp","2019.10.07","2019.11.14","논문","국내학술발표","48611","김종현","원자력본부","PSA&PSR사업그룹","오영진(38317  A7500),이대영(26359  A7500)","국내","대한기계학회 2019년 학술대회","[발표신청서] 본부장 결재완료","11원자력본부국내",null,11,null,"2019","11","14",null,"2019.11",null,"원자력본부국내학"]
[129,"대형 냉각재상실사고와 공통원인고장을 대비한 개선된 다양성보호계통 기능","Advanced Diverse Protection System Features for CCF + Large Break LOCA","Advanced Diverse Protection System Features for CCF + Large Break LOCA.doc","2019.08.19","2019.11.19","논문","해외학술발표","37507","정진권","원자로설계개발단","계측제어설계그룹","김영백(31201  F3C00),백승민(33878  F3C00)","해외","ANS Winter Meeting & Expo","[발표신청서] 본부장 결재완료",{"$f":"S130&K130&N130","v":"11원자로설계개발단해외"},null,{"$f":"DAY(V130)","v":11},null,{"$f":"LEFT(F130,4)","v":"2019"},{"$f":"RIGHT(Y130,2)","v":"11"},{"$f":"RIGHT(F130,2)","v":"19"},null,{"$f":"LEFT(F130,7)","v":"2019.11"},null,"원자로설계개발단해외학"]
[130,"성능기반 내진설계 대응 원전의 확률론적 지진응답 후처리 기술개발","Post-processing technique for probability seismic responses of nuclear power plant under performance-based seismic design","KPVP 요약논문 (서춘교)R3.hwp","2019.10.24","2019.11.20","논문","국내학술발표","42351","서춘교","미래전략연구소","원자력연구실","김도연(41231  D4D00),이용선(29238  D4D00)","국내","KPVP 2019년도 연차학술대회","[발표신청서] 본부장 결재완료","11미래전략연구소국내",null,11,null,"2019","11","20",null,"2019.11",null,{"$f":"K131&LEFT(H131,3)","v":"미래전략연구소국내학"}]
[131,"삽입 변수에 따른 상부탑재형 노내계측기의 삽입 하중 변화","Insertion Loads Variation of Top Mounted In-Core Instrument under Various Insertion Parameters","2019 KPVP 요약논문_김철우.hwp","2019.10.22","2019.11.20","논문","국내학술발표","41645","김철우","원자로설계개발단","기계설계그룹","김기석(31018  F3J00),김인용(34318  F3B00)","국내","2019 KPVP 학술대회","[발표신청서] 본부장 결재완료","11원자로설계개발단국내",null,11,null,"2019","11","20",null,"2019.11",null,"원자로설계개발단국내학"]
[132,"원자로 냉각재 온도에 대한 환경피로 영향","Effect of Temperture on Fatigue in Light Water Reactor Environments","원자로 냉각재 온도에 대한 환경피로 영향.pdf","2019.11.27","2019.11.21","논문","국내학술발표","42765","이봉희","원자력본부","기계배관기술실","문철진(40592  D4600),양경진(41173  D4600)","국내","한국압력기기공학회","[발표신청서] 본부장 결재완료","11원자력본부국내",null,11,null,"2019","11","21",null,"2019.11",null,"원자력본부국내학"]
[133,"중수로 칼란드리아관-액체독물질노즐 간격 후속 검사에 따른 접촉예측 선행평가 유효성 검토 방법론","Effectiveness Assessment Methodology of Previous Analysis for Contact Prediction of PHWR Calandria Tube and LIN using Recent Inspection Information","(양식) KPVP 요약논문 양식-한글 - CANDU.hwp","2019.11.27","2019.11.21","논문","국내학술발표","38317","오영진","미래전략연구소","신사업연구실","김경수(42684  A7500),신희재(41837  D4800)","국내","한국압력기기공학회 2019년 연차학술대회","[발표신청서] 본부장 결재완료","11미래전략연구소국내",null,11,null,"2019","11","21",null,"2019.11",null,"미래전략연구소국내학"]
[134,"원전 운전이력을 활용한 피로감시 시스템 개발 및 적용 현황","Status on the Development and Application of Fatigue Monitoring System by Using Operating History of Nuclear Power Plant","KPVP 요약논문 (한전기술 오창균) R1.hwp","2019.11.07","2019.11.21","논문","국내학술발표","38324","오창균","원자력본부","PSA&PSR사업그룹","오영진(38317  A7500),윤훈(37375  D4800)","국내","KPVP 2019년도 연차학술대회 논문집","[발표신청서] 본부장 결재완료","11원자력본부국내",null,11,null,"2019","11","21",null,"2019.11",null,"원자력본부국내학"]
[135,"원전 디지털발전소와 압력기기 건전성 연구방향 고찰","Approaches to Digital Plant with Pressure Component Integreity of Nuclear Power Plant","원전 디지털발전소와 기기건전성 연구방향 고찰.hwp","2019.10.30","2019.11.21","논문","국내학술발표","38317","오영진","미래전략연구소","신사업연구실","윤훈(37375  D4800),한승룡(43272  A7500)","국내","한국압력기기공학회 2019년 연차학술대회","[발표신청서] 본부장 결재완료","11미래전략연구소국내",null,11,null,"2019","11","21",null,"2019.11",null,"미래전략연구소국내학"]
[136,"APR+ 원전 선배율 개선","Lead Factor Improvement in APR+ Nuclear Power Plant","2019 KPVP 요약논문_국내 APR1400 원전 선배율 개선.hwp","2019.10.25","2019.11.21","논문","국내학술발표","51113","강재형","원자로설계개발단","기계설계그룹","백종만(31837  F3B00),이병진(32344  F3J00)","국내","한국압력기기공학회","[발표신청서] 본부장 결재완료","11원자로설계개발단국내",null,11,null,"2019","11","21",null,"2019.11",null,"원자로설계개발단국내학"]
[137,"원자로용기 지지방식에 따른 RCS 내진특성 평가","Evaluation of RCS Seismic Characteristics depending on Support Type of Reactor Vessel","KPVP 2019_ 원자로용기 지지방식에 따른 RCS 내진특성 평가(이한걸).hwp","2019.10.24","2019.11.21","논문","국내학술발표","43101","이한걸","원자로설계개발단","기계설계그룹","김인용(34318  F3B00),이병진(32344  F3J00)","국내","KPVP 2019년도 연차학술대회","[발표신청서] 본부장 결재완료","11원자로설계개발단국내",null,11,null,"2019","11","21",null,"2019.11",null,"원자로설계개발단국내학"]
[138,"혁신적 안전경수로(iPOWER) 원자로용기 지지구조물 개발 및 평가","Development and Evaluation of iPOWER Reactor Pressure Vessel Supports","KPVP 2019_혁신적 안전경수로(iPOWER) 원자로용기 지지구조물 평가.hwp","2019.10.22","2019.11.21","논문","국내학술발표","43043","이연주","원자로설계개발단","기계설계그룹","김인용(34318  F3B00),이병진(32344  F3J00)","국내","한국압력기기공학회","[발표신청서] 본부장 결재완료","11원자로설계개발단국내",null,11,null,"2019","11","21",null,"2019.11",null,"원자로설계개발단국내학"]
[139,"하중 동시발생 확률 계산용 전산코드 개발","Computer Code Development for Concurrence Probability Calculation of SSE and Thermal Stratification","KPVP요약논문_박홍선_rev2.pdf","2019.10.21","2019.11.21","논문","국내학술발표","42987","박홍선","원자로설계개발단","기계설계그룹","김인용(34318  F3B00),이대희(32293  F3B00)","국내","KPVP 2019년도 연차학술대회 논문집","[발표신청서] 본부장 결재완료","11원자로설계개발단국내",null,11,null,"2019","11","21",null,"2019.11",null,"원자로설계개발단국내학"]
[140,"내진설계가 보강된 표준원전의 원자로상부구조물 단순화","Reactor Vessel Head Area Simplification Reinforced with the Seismic Design of OPR1000","KPVP 요약논문_내진설계가보강된 표준원전의 원자로상부구조물 단순화.hwp","2019.10.18","2019.11.21","논문","국내학술발표","31277","김일곤","원자로설계개발단","기계설계그룹","백종만(31837  F3B00),유성식(33996  F3500)","국내","압력기기공학회 2019 연차학술대회 논문요약집","[발표신청서] 본부장 결재대기","11원자로설계개발단국내",null,11,null,"2019","11","21",null,"2019.11",null,"원자로설계개발단국내학"]
[141,"FAVOR 16.1을 이용한 원자로용기 파손 확률에 대한 라운드 로빈 해석","Round robin analysis of vessel failure probabilities using FAVOR 16.1","KPVP 2019_김규완.docx","2019.10.17","2019.11.21","논문","국내학술발표","38775","김규완","원자로설계개발단","기계설계그룹","김인용(34318  F3B00),이대희(32293  F3B00)","국내","KPVP 2019년도 연차학술대회","[발표신청서] 본부장 결재완료","11원자로설계개발단국내",null,11,null,"2019","11","21",null,"2019.11",null,"원자로설계개발단국내학"]
[142,"차폐체 배열에 따른 중성자 차폐능 비교분석","Case Study for Neutron Shielding Effects of Shielding Material Arrangements","방사선방어학회 논문 초안(안효철).hwp","2019.10.16","2019.11.21","논문","국내학술발표","44406","안효철","원자력본부","원자력기술실","문영태(26838  D4900),이정희(37426  D4A00)","국내","방사선방어학회 추계학술발표회","[발표신청서] 본부장 결재완료","11원자력본부국내",null,11,null,"2019","11","21",null,"2019.11",null,"원자력본부국내학"]
[143,"원자로 내부구조물 부속기기의 결함 허용기준 수립 전략","A Strategic Plan for Developing Flaw Acceptance Criteria of Reactor Vessel Internal Components","KPVP 요약논문 (한전기술 김현수).hwp","2019.10.08","2019.11.21","논문","국내학술발표","34348","김현수","원자력본부","PSA&PSR사업그룹","박흥배(28775  A7500),오영진(38317  A7500)","국내","한국압력기기공학회 학술대회","[발표신청서] 본부장 결재완료","11원자력본부국내",null,11,null,"2019","11","21",null,"2019.11",null,"원자력본부국내학"]
[144,"원자력 산업계 형상관리 적용 동향 및 사례","Application Trends and Case Study of Configuration Management in the Nuclear Industry","191123_투고 소논문 for 발표.doc","2019.10.24","2019.11.22","논문","국내학술발표","43966","손영주","원자력본부","국내건설사업그룹","서영달(34524  D4400),용정권(40828  D4400)","국내","한국압력기기공학회(KPVP) 2019 추계 연차학술대회","[발표신청서] 본부장 결재완료","11원자력본부국내",null,11,null,"2019","11","22",null,"2019.11",null,"원자력본부국내학"]
[145,"설계초과지진 대비 비상관성 효과를 고려한 지진해석 사례 연구","A Case Study on Seismic Analysis Considering Incoherency Effect for Beyond Design Basis Earthquake","BDBE 대비 비상관성 효과를 고려한 지진해석 사례.doc","2019.10.22","2019.11.22","논문","국내학술발표","41587","김용복","원자력본부","토건환경기술실","김도연(41231  D4D00),김봉래(42728  D4D00)","국내","한국압력기기공학회(KPVP)","[발표신청서] 본부장 결재완료","11원자력본부국내",null,11,null,"2019","11","22",null,"2019.11",null,"원자력본부국내학"]
[146,"정상운영 중 고공방출을 통한 재순환효과 고려여부에 따른 대기확산인자 평가 분석","The Analysis of Atmospheric Dispersion Factor Evalution Consideration of Recirculation","정상운영 중 고공방출을 통한 재순환효과 고려여부에 따른 대기확산인자 평가 분석1.hwp","2019.11.24","2019.11.27","논문","국내학술발표","54531","이인석","원자력본부","미래성장신사업그룹","이동수(41342  D4A00),이정희(37426  D4A00)","국내","대한방사선방어학회 추계학술대회","[발표신청서] 본부장 결재완료","11원자력본부국내",null,11,null,"2019","11","27",null,"2019.11",null,"원자력본부국내학"]
[147,"해체폐기물 내 핵종분포 결정방법 고찰","A Study on the Determination of Nuclide Distribution in the Radwastes during Decommissioning","해체폐기물 내 핵종분포 결정방법 고찰.hwp","2019.10.17","2019.11.28","논문","국내학술발표","30194","송덕빈","원자력본부","원자력기술실","남기문(27801  D4A00),이여종(20865  D4A00)","국내","대한방사선방어학회 2019 추계학술발표회 논문요약집","[발표신청서] 본부장 결재완료","11원자력본부국내",null,11,null,"2019","11","28",null,"2019.11",null,"원자력본부국내학"]
[148,"VENUS-1 벤치마크 자료를 이용한 DORT/BUGLE-B7 수송해석 코드 체계의 바이어스 평가","Bias Evaluation of DORT/BUGLE-B7 Transport Code System using VENUS-1 Benchmark Data","2019추계 방사선방어학회 논문_배건영.hwp","2019.10.10","2019.11.28","논문","국내학술발표","48803","배건영","원자로설계개발단","안전해석그룹","김형헌(31409  F3I00),최철진(33131  F3D00)","국내","대한방사선방어학회","[발표신청서] 본부장 결재완료","11원자로설계개발단국내",null,11,null,"2019","11","28",null,"2019.11",null,"원자로설계개발단국내학"]
[149,"VENUS-3 벤치마크 자료를 이용한 Mavric 수송해석 코드의 Bias 평가","Bias evaluation of MAVRIC transport analysis code using VENUS-3 benchmark data","논문-VENUS3 측정자료이용 Mavric Bias 평가.hwp","2019.10.10","2019.11.28","논문","국내학술발표","31247","김용일","원자로설계개발단","안전해석그룹","김형헌(31409  F3I00),지성구(34126  F3D00)","국내","대한방사선방어학회 2019년 추계학술발표회","[발표신청서] 본부장 결재완료","11원자로설계개발단국내",null,11,null,"2019","11","28",null,"2019.11",null,"원자로설계개발단국내학"]
[150,"IEEE 383-1974년, IEEE 383-2003(IEEE 1201-1991)년 및 IEEE 383-2015(IEEE 1201-2006)년의 수직 트레이 화염시험 기준 비교","Comparison of IEEE 383-1974, IEEE 383-2003(IEEE 1201-1991) and IEEE 383-2015(IEEE 1201-2006) for Vertical Tray Flame Test","본문 rev.1.hwp","2019.11.29","2019.11.29","논문","사내전력기술지","29046","최회일","원자력본부","원전O＆M사업그룹","최찬영(37581  D4500),최한진(26447  D4500)","사내","전력기술지","[발표신청서] 주관부서 담당자 결재대기","11원자력본부사내",null,11,null,"2019","11","29",null,"2019.11",null,"원자력본부사내전"]
[151,"Two-film model을 사용한 요오드 재휘발 분석","Iodine Re-evolution Analysis using Two-film model","Iodine Re-evolution Analysis using Two-film model.hwp","2019.11.26","2019.11.29","논문","국내학술발표","52418","방진솔","원자력본부","원자력기술실","송덕빈(30194  D4A00),이정희(37426  D4A00)","국내","대한방사선방어학회","[발표신청서] 본부장 결재완료","11원자력본부국내",null,11,null,"2019","11","29",null,"2019.11",null,"원자력본부국내학"]
[152,"운전모드 3에서의 POSRV 3개 운전 시 과압관련 설계기준사고 영향 분석","Analyses of design bases events with respect to system pressurization regarding three operable POSRVs in MODE 3","2019_동계_전력기술지_운전모드 3에서의 POSRV 3개 운전 시 과압관련 설계기준사고 영향 분석.pdf","2019.11.26","2019.11.29","논문","사내전력기술지","50444","이용희","원자로설계개발단","안전해석그룹","이광원(34038  F3H00),최철진(33131  F3D00)","사내","사내전력기술지","[발표신청서] 본부장 결재완료","11원자로설계개발단사내",null,11,null,"2019","11","29",null,"2019.11",null,"원자로설계개발단사내전"]
[153,"사용후연료저장조 보충수 공급배관 및 살수배관 신설","Makeup and Spray Capabilities for Spent Fuel Pool","전력기술지 논문_김환식_191107.doc","2019.11.25","2019.11.29","논문","사내전력기술지","38879","김환식","원자력본부","원전O＆M사업그룹","배영직(26794  D4500),안철호(26852  D4500)","사내","2019년도 동계 전력기술지","[발표신청서] 본부장 결재완료","11원자력본부사내",null,11,null,"2019","11","29",null,"2019.11",null,"원자력본부사내전"]
[154,"액화공기에너지저장(LAES) 기술개발 현황","Current status on the development of Liquid Air Energy Storage (LAES)","2019년 동계 기술논문_액화공기에너지저장(LAES) 기술개발 현황_191121.doc","2019.11.22","2019.11.29","논문","사내전력기술지","40666","박종민","미래전략연구소","신사업연구실","강경두(26558  A7500),김대복(21587  A7500)","사내","전력기술지","[발표신청서] 본부장 결재완료","11미래전략연구소사내",null,11,null,"2019","11","29",null,"2019.11",null,"미래전략연구소사내전"]
[155,"VR/AR 기반 방사선작업종사자 예상피폭선량 저감을 위한 액체폐기물관리 계통 개선안","Improvement of the Liquid Waste Mangement System for Reducing the Expected Exposure Dose of VR/AR Radiation Workers","191114_논문_전력기술지_손영주.docx","2019.11.20","2019.11.29","논문","사내전력기술지","43966","손영주","원자력본부","국내건설사업그룹","용정권(40828  D4400),유재석(41948  D4400)","사내","한국전력기술 전력기술지","[발표신청서] 본부장 결재완료","11원자력본부사내",null,11,null,"2019","11","29",null,"2019.11",null,"원자력본부사내전"]
[156,"스트레스테스트 차이분석 방법론 개발","Gap Analysis for Stress Test","스트레스테스트 차이분석 방법론.doc","2019.11.14","2019.11.29","논문","사내전력기술지","26794","배영직","원자력본부","원전O＆M사업그룹","김환식(38879  D4500),이화중(29502  D4500)","사내","2019년도 동계 전력기술지","[발표신청서] 본부장 결재완료","11원자력본부사내",null,11,null,"2019","11","29",null,"2019.11",null,"원자력본부사내전"]
[157,"주요 배관의 열변형 측정을 통한 건전성 입증 시스템","The management system for verifying main pipe using a thermal movement","논문샘플.doc","2019.11.27","2019.11.30","논문","사내전력기술지","37965","차수남","에너지신사업본부","건설사업그룹","김영호(37088  E4H00),이준석(19865  E4H00)","사내","2019 동계 전력기술지","[발표신청서] 본부장 결재완료","11에너지신사업본부사내",null,11,null,"2019","11","30",null,"2019.11",null,"에너지신사업본부사내전"]
[158,"공기정화기 화재방호설비 관련 요건 및 설계현황","Requirement and Design of Fire Protection System for Air Cleaning Unit","19.11.22 공기정화기 화재방호 설비 관련 요건 및 설계현황.doc","2019.11.27","2019.11.30","논문","사내전력기술지","39731","곽영신","원자력본부","원전O＆M사업그룹","김동원(28539  D4500),김우식(37766  D4500)","사내","전력기술지","[발표신청서] 본부장 결재완료","11원자력본부사내",null,11,null,"2019","11","30",null,"2019.11",null,"원자력본부사내전"]
[159,"이종용접부 용접 잔류응력 완화를 위한 강제냉각 열처리 적용성 분석","Feasibility Study on the Forced Cooling Heat Treatment for Mitigation of Residual Stresses in Dissimilar Welds","이종용접부 용접 잔류응력 완화를 위한 강제냉각 열처리 적용성 분석_초안.docx","2019.11.25","2019.11.30","논문","사내전력기술지","42145","정명수","원자력본부","PSA&PSR사업그룹","남일권(34355  D4600),박흥배(28775  A7500)","사내","사내전력기술지","[발표신청서] 부서장 결재대기","11원자력본부사내",null,11,null,"2019","11","30",null,"2019.11",null,"원자력본부사내전"]
[160,"보령화력 3호기 기기냉각수 열교환기 교체 사례","Boryeong Thermal Power Plant unit3 Closed Cooling Water Heat Exchanger Replacement case Introduction","2019년 전력기술지 논문_윤병선.doc","2019.11.22","2019.11.30","논문","사내전력기술지","48997","윤병선","에너지신사업본부","신사업개발처","이종선(43073  E4H00),정인철(38523  E4F00)","사내","2019년 전력기술지","[발표신청서] 본부장 결재완료","11에너지신사업본부사내",null,11,null,"2019","11","30",null,"2019.11",null,"에너지신사업본부사내전"]
[161,"iPOWER 소형냉각재상실사고해석을 이용한 피동비상노심냉각계통 개념설계 검토","Review on the Passive Emergency Core Cooling System Conceptual Design using SBLOCA Analysis of the Innovative Passive Power Reactor","전력기술지2019winter_Review of PECCS PA for iPOWER SBLOCA_final.pdf","2019.11.19","2019.11.30","논문","사내전력기술지","35024","최한림","원자로설계개발단","신기술사업그룹","이송규(32455  F3J00),허진(33316  F3H00)","사내","사내전력기술지","[발표신청서] 본부장 결재완료","11원자로설계개발단사내",null,11,null,"2019","11","30",null,"2019.11",null,"원자로설계개발단사내전"]
[162,"소형모듈형원전(SMR)의 사업공정 수립에 대한 고찰","Project Schedule Preparation study on Small Modular Reactor","소형모듈형원전(SMR)의 사업공정 수립에 대한 고찰_최종.hwp","2019.11.14","2019.11.30","논문","사내전력기술지","22573","이재학","원자력본부","해외사업그룹","임재민(28472  D4E00),정성문(30268  D4400)","사내","전력기술지","[발표신청서] 본부장 결재완료","11원자력본부사내",null,11,null,"2019","11","30",null,"2019.11",null,"원자력본부사내전"]
[163,"자율 검사드론용 딥러닝 기반 실시간 도장 표면 검사 알고리즘 개발","Deep Learning Based Real-Time Painting Surface Inspection Algorithm for Autonomous Inspection Drone","ICEC2019_Manuscript_20191002_Rev7-1_감수의견반영_완료.docx","2019.12.03","2019.12.04","논문","해외학술발표","43272","한승룡","미래전략연구소","신사업연구실","오영진(38317  A7500),윤훈(37375  D4800)","해외","Corrosion Science and Technology","[발표신청서] 본부장 결재완료","12미래전략연구소해외",null,12,null,"2019","12","04",null,"2019.12",null,"미래전략연구소해외학"]
[164,"부착-슬립을 고려한 RC 접합부의 이력 거동을 위한 비선형 해석","Nonlinear Analysis for Hysteretic Behavior of RC Joints Considering Bond-slip","P218-Kim_감수의견반영.docx","2019.11.18","2019.12.04","논문","해외학술발표","41231","김도연","원자력본부","토건환경기술실","김봉래(42728  D4D00),이용선(29238  D4D00)","해외","16th East Asia-Pacific Conference on Structural Engineering & Construction (EASEC16)","[발표신청서] 본부장 결재완료","12원자력본부해외",null,12,null,"2019","12","04",null,"2019.12",null,"원자력본부해외학"]
[165,"기초의 지지력 및 침하 검토 실무","The Practice about a Bearing Capacity and Settlment of Foundation","기초의 지지력 및 침하검토 실무 2019 전력기술지 실무해설.hwp","2019.10.22","2019.12.05","논문","사내전력기술지","45579","채종훈","에너지신사업본부","건설사업그룹","맹창환(29606  E4H00),백승경(38259  E4H00)","사내","전력기술","[발표신청서] 본부장 결재완료","12에너지신사업본부사내",null,12,null,"2019","12","05",null,"2019.12",null,"에너지신사업본부사내전"]
[166,"국내·외 풍력발전단지 현황과 리파워링 전망","Current Status of Korea and Oversea Wind Farm and Prospection of Repowering","국내 풍력발전단지 리파워링 전망 및 분석.docx","2019.10.23","2019.12.10","논문","사내전력기술지","42911","김주영","에너지신사업본부","신재생사업그룹","김대복(21587  A7500),라중희(19983  A7500)","사내","전력기술지","[발표신청서] 본부장 결재완료","12에너지신사업본부사내",null,12,null,"2019","12","10",null,"2019.12",null,"에너지신사업본부사내전"]
[167,"해외풍력발전 사업에서 입찰 추정금액을 위한 용량별 사업비 상관관계 분석","Analysis on Correlation of Project Cost by Capacity for Estimating Bid Price in Wind Power Generation Overseas Project","해외풍력발전 사업에서 입찰 추정금액을 위한 용량별 사업비 상관관계 분석_191031.doc","2019.11.18","2019.12.16","논문","사내전력기술지","44318","서재필","원자력본부","사업관리기술실","권영석(21668  D4E00),박성규(34378  D4E00)","사내","사내전력기술지","[발표신청서] 본부장 결재완료","12원자력본부사내",null,12,null,"2019","12","16",null,"2019.12",null,"원자력본부사내전"]
[168,"국내원전 종합설계사업의 LOE(Level Of Effort) 업무에 대한 고찰 및 수행 Manpower 연구","Analysis of LOE(Level Of Effort) Activity and Input Manpower of Domestic Nuclear Power Plant Construction Project","감수요청_(2019 _전성현_전력기술논문 동계)_LOE 업무에 대한 고찰 및 수행 Manpower 연구_20191031.docx","2019.11.14","2019.12.16","논문","사내전력기술지","09525","전성현","원자력본부","사업관리기술실","정인철(20578  D4400),홍순원(24952  D4400)","사내","사내전력기술지","[발표신청서] 본부장 결재완료","12원자력본부사내",null,12,null,"2019","12","16",null,"2019.12",null,"원자력본부사내전"]
[169,"공기조화설비의 가동중 검사방안에 대한 고찰","Consideration on the inspection methodology of HVAC system at operation conditions","공조냉동기술_발표.hwp","2019.11.07","2019.12.17","논문","국내학술지","30437","지영민","원자력본부","기계배관기술실","양윤영(27905  D4800),조영규(41166  D4600)","국내","공기조화냉동기술","[발표신청서] 본부장 결재완료","12원자력본부국내",null,12,null,"2019","12","17",null,"2019.12",null,"원자력본부국내학"]
[170,"석탄가스화를 활용한 Poly-Generation 성능검토","Study on the performance of Poly-Generation using the Coal Gasification Technology","가스화 수소생산기술연구(2019전력기술지).doc","2019.11.27","2019.12.27","논문","사내전력기술지","22293","김학용","에너지신사업본부","건설사업그룹","임강락(30222  E4F00),한진(30592  E4H00)","사내","전력기술지","[발표신청서] 본부장 결재완료","12에너지신사업본부사내",null,12,null,"2019","12","27",null,"2019.12",null,"에너지신사업본부사내전"]
[171,"원자력발전소 구성품 교체에 대한 EMC 규제요건 고찰","The Review of EMC Evaluation Process for Component Repalcement in Nuclear Power Plant","원자력발전소 구성품 교체 시 EMC 평가 프로세스 고찰(제출).doc","2019.11.28","2019.12.30","논문","사내전력기술지","17759","송이철","원자력본부","원전안전센터","강경두(26558  A7500),박건철(22492  D4800)","사내","전력기술지","[발표신청서] 본부장 결재완료","12원자력본부사내",null,12,null,"2019","12","30",null,"2019.12",null,"원자력본부사내전"]
[172,"변압기 가압시의 돌입전류 특성 및 해석 모델 소개","Introduction of the Transformer’s Inrush Current Characteristics and its Analysis Models","논문-변압기 가입시 돌입전류 해석을 위한 계통 모델링-감수.docx","2019.11.25","2019.12.30","논문","사내전력기술지","25924","강인수","원자력본부","전기계측기술실","나춘수(37789  D4C00),최기열(24068  D4C00)","사내","전력기술, 2019년 동계","[발표신청서] 본부장 결재완료","12원자력본부사내",null,12,null,"2019","12","30",null,"2019.12",null,"원자력본부사내전"]
[173,"가상 주제어실 환경구축","Virtual Environment Mock-Up for Main Control Room","주제어실 가상환경 구축rev3.doc","2019.12.09","2019.12.31","논문","사내전력기술지","29099","서광락","원자력본부","전기계측기술실","강정석(37713  D4C00),송정욱(34695  A7500)","사내","한국전력기술지","[발표신청서] 본부장 결재완료","12원자력본부사내",null,12,null,"2019","12","31",null,"2019.12",null,"원자력본부사내전"]
[174,"에너지 융복합 발전 플랫폼 고찰","Reviews on Energy Convergence Power Generation Platform","논문_에너지 융복합 발전 플랫폼 고찰_사내감수용.docx","2019.12.05","2019.12.31","논문","사내전력기술지","26595","김민철","원자력본부","사업관리기술실","박기조(25001  D4E00),전성현(09525  D4E00)","사내","전력기술지","[발표신청서] 본부장 결재완료","12원자력본부사내",null,12,null,"2019","12","31",null,"2019.12",null,"원자력본부사내전"]
[175,"강판콘크리트 구조모듈을 적용한 구조물의 건설기간 단축","Reduction of Construction Period of Structure Applying SC Structure Modules","2019 SC구조 모듈을 적용한 구조물의 공사기간 단축_문일환.doc","2019.12.03","2019.12.31","논문","사내전력기술지","25991","문일환","미래전략연구소","원자력연구실","서춘교(42351  A7400),이규복(26063  A7400)","사내","전력기술지","[발표신청서] 본부장 결재완료","12미래전략연구소사내",null,12,null,"2019","12","31",null,"2019.12",null,"미래전략연구소사내전"]
[176,"APR1400 원자로냉각재계통 수위 계측장비의 설계특성 및 개선방안","Design Characteristics and Improvements of Reactor Coolant System Level Instrumentation for APR1400","(190923) 전력기술지 (원자로냉각재계통 수위측정 특성과 최적화).doc","2019.11.29","2019.12.31","논문","사내전력기술지","51511","이무훈","원자로설계개발단","유체계통설계그룹","김영백(31201  F3C00),이광원(34038  F3H00)","사내","전력기술지","[발표신청서] 본부장 결재완료","12원자로설계개발단사내",null,12,null,"2019","12","31",null,"2019.12",null,"원자로설계개발단사내전"]
[177,"신고리 4호기 PAT 평가결과","Performance Evaluation of Power Ascension Test for Shin-Kori Nuclear Power Plant Unit 4","2019년 동계 전력기술지 논문(신고리 4호기 PAT 평가결과)_초안.doc","2019.11.29","2019.12.31","논문","사내전력기술지","46741","민지홍","원자로설계개발단","안전해석그룹","배인호(43959  F3D00),정시채(32846  F3D00)","사내","2019년 동계 전력기술지","[발표신청서] 본부장 결재완료","12원자로설계개발단사내",null,12,null,"2019","12","31",null,"2019.12",null,"원자로설계개발단사내전"]
[178,"다중고장 및 설계기준초과 자연재해 사고 완화를 위한 한국표준형원전/신형경수로1400 비상운전지침서 개선","The Enhancement of OPR100/APR1400 Emergency Operating Guidelines to Cope with the Multiple Failure Accidents and Beyond Design Basis External Event","2019년 동계_전력기술지_20191125.doc","2019.11.29","2019.12.31","논문","사내전력기술지","41726","박재민","원자로설계개발단","안전해석그룹","이광원(34038  F3H00),최철진(33131  F3D00)","사내","전력기술지","[발표신청서] 본부장 결재완료","12원자로설계개발단사내",null,12,null,"2019","12","31",null,"2019.12",null,"원자로설계개발단사내전"]
[179,"부유식 해상풍력기술의 이해와 상용화를 위한 고려","Understanding Floating Offshore Wind Technologies and Considerations for Commercialization","부유식 해상풍력기술의 이해와 상용화를 위한 고려.doc","2019.11.29","2019.12.31","논문","사내전력기술지","21453","김종길","에너지신사업본부","신재생사업그룹","이기종(30777  E4G00),최병근(28148  E4G00)","사내","전력기술지","[발표신청서] 본부장 결재완료","12에너지신사업본부사내",null,12,null,"2019","12","31",null,"2019.12",null,"에너지신사업본부사내전"]
[180,"소형원전 살수계통 열교환기용 고압 소형 열교환기 개발 가능성 평가","Design Development Evaluation of Containment Spray Heat Exchanger for Downsized Nuclear Power Plant","소형원전 살수계통 열교환기용 고압 소형 열교환기 개발 가능성 평가.hwp","2019.11.29","2019.12.31","논문","사내전력기술지","53751","황경태","원자력본부","미래성장신사업그룹","강상열(34723  D4900),박정규(40659  D4600)","사내","전력기술지","[발표신청서] 본부장 결재완료","12원자력본부사내",null,12,null,"2019","12","31",null,"2019.12",null,"원자력본부사내전"]
[181,"장기교류전원상실사고 대처를 위한 고압 이동형펌프 사양 분석","Sensitivity studies on high pressure external injection pump","장기교류전원상실사고 대처를 위한 고압 이동형펌프 사양 분석.doc","2019.11.29","2019.12.31","논문","사내전력기술지","50016","김상진","원자로설계개발단","안전해석그룹","손세도(31985  F3C00),최철진(33131  F3D00)","사내","2019 동계 전력기술지","[발표신청서] 본부장 결재완료","12원자로설계개발단사내",null,12,null,"2019","12","31",null,"2019.12",null,"원자로설계개발단사내전"]
[182,"성능기반 내진설계 대응 원전의 확률론적 지진응답 후처리 기술개발","Post-processing technique for probability seismic responses of nuclear power plant under performance-based seismic design","전력기술지(서춘교).docx","2019.11.29","2019.12.31","논문","사내전력기술지","42351","서춘교","미래전략연구소","원자력연구실","오영진(38317  A7500),이대영(26359  A7500)","사내","전력기술지","[발표신청서] 본부장 결재완료","12미래전략연구소사내",null,12,null,"2019","12","31",null,"2019.12",null,"미래전략연구소사내전"]
[183,"Dewatering 계통 샘플링 취수 및 유량계 설치 개선","Improve Dewatering sampling and Flow measureing","Dewatering 개선 논문.doc","2019.11.28","2019.12.31","논문","사내전력기술지","25813","장철호","원자력본부","원전O＆M사업그룹","권대일(39747  D4400),이아람(37398  D4500)","사내","2019년도 동계 전력기술지","[발표신청서] 본부장 결재완료","12원자력본부사내",null,12,null,"2019","12","31",null,"2019.12",null,"원자력본부사내전"]
[184,"하드웨어 기반의 기기연계모듈 개발","Development of Hardware-Based Component Interface Module","하드웨어 기반 기기연계모듈 개발 송부본(11.18).docx","2019.11.28","2019.12.31","논문","사내전력기술지","49268","정장현","원자력본부","미래성장신사업그룹","김기형(28428  D4900),이지훈(50895  D4400)","사내","사내전력기술지","[발표신청서] 본부장 결재완료","12원자력본부사내",null,12,null,"2019","12","31",null,"2019.12",null,"원자력본부사내전"]
[185,"혁신적 안전 경수로 개념설계","Conceptual Design of Innovative Safe PWR","혁신적 안전 경수로 개념설계(사내전력기술지)R1.hwp","2019.11.28","2019.12.31","논문","사내전력기술지","43089","이태화","미래전략연구소","원자력연구실","김기택(38132  D4900),윤재화(37352  D4600)","사내","사내전력기술지(19년 동계)","[발표신청서] 본부장 결재대기","12미래전략연구소사내",null,12,null,"2019","12","31",null,"2019.12",null,"미래전략연구소사내전"]
[186,"HRHF(Hard Rock High Frequency) 적용시 내진검증 방법론 제안","Suggestion for Seismic Qualification Method in case of Applying Hard Rock High Frequency","Hard Rock 전력기술지.doc","2019.11.27","2019.12.31","논문","사내전력기술지","49046","이상록","원자력본부","원전안전센터","왕찬식(30414  D4100),이경석(49717  D4100)","사내","전력기술지","[발표신청서] 본부장 결재완료","12원자력본부사내",null,12,null,"2019","12","31",null,"2019.12",null,"원자력본부사내전"]
[187,"원자로시설 기술기준과 관련된 국내 법령, 행정규칙, 규제기준 및 지침의 제ㆍ개정 동향","Movement of rule-making and revisions for the domestic laws, ordinances, regulatory guides regarding technical standards for nuclear power reactors and related facilities","전력기술지 게재논문; 원자로시설 기술기준과 관련된 국내 법령, 행정규칙, 규제기준 및 지침의 제ㆍ개정 동향 (감수용)_박준수_20191121.pdf","2019.11.27","2019.12.31","논문","사내전력기술지","31698","박준수","원자로설계개발단","기계설계그룹","백종만(31837  F3B00),진승령(33029  F3I00)","사내","전력기술지(동계호)","[발표신청서] 본부장 결재완료","12원자로설계개발단사내",null,12,null,"2019","12","31",null,"2019.12",null,"원자로설계개발단사내전"]
[188,"전기 케이블 설계 통합시스템 소개","Introduction of the integrated electrical cable design system","2019 전력기술지 논문_전기케이블설계통합시스템소개.docx","2019.11.26","2019.12.31","논문","사내전력기술지","27403","김원삼","원자력본부","전기계측기술실","정찬모(37514  D4C00),황재홍(30083  D4500)","사내","전력기술지","[발표신청서] 본부장 결재완료","12원자력본부사내",null,12,null,"2019","12","31",null,"2019.12",null,"원자력본부사내전"]
[189,"Power to Hydrogen을 위한 전기분해 기술 소개","Introduction of Electrolysis Technology for Power to Hydrogen","수전해 설비를 활용한 Power to Gas 기술 소개_수정(191108).doc","2019.11.26","2019.12.31","논문","사내전력기술지","29303","임태영","에너지신사업본부","신재생사업그룹","김명석(22226  A7500),김성호(33751  F3J00)","사내","사내전력기술지","[발표신청서] 본부장 결재완료","12에너지신사업본부사내",null,12,null,"2019","12","31",null,"2019.12",null,"에너지신사업본부사내전"]
[190,"원전 화재 안전정지 분석입문","An introduction of Post-Fire Safe Shutdown Analysis for Nuclear Power Plants","전력기술지 - 화재안전정지.docx","2019.11.25","2019.12.31","논문","사내전력기술지","16595","김왕휘","미래전략연구소","원자력연구실","강성훈(41511  D4A00),이상규(42011  D4A00)","사내","전력기술지","[발표신청서] 본부장 결재완료","12미래전략연구소사내",null,12,null,"2019","12","31",null,"2019.12",null,"미래전략연구소사내전"]
[191,"안전 1등급 배관의 피로해석에 적용하는 ASME NB-3600 Ke-계수 대체규정의 기술적 배경","Technical Basis of Alternative Rules to Ke-Factor in ASME NB-3600 for Fatigue Analysis of Safety Class 1 Piping","전력기술지_2019 하계(남일권) Rev02.docx","2019.11.25","2019.12.31","논문","사내전력기술지","34355","남일권","원자력본부","해외사업그룹","오창균(38324  D4800),이연태(40895  D4500)","사내","사내전력기술지(동계)","[발표신청서] 본부장 결재완료","12원자력본부사내",null,12,null,"2019","12","31",null,"2019.12",null,"원자력본부사내전"]
[192,"노외중성자속감시계통 신호처리","Signal Processing for the Ex-core Neutron Flux Monitoring System","ENFMS_논문-전력기술지-김영백.pdf","2019.11.21","2019.12.31","논문","사내전력기술지","31201","김영백","원자로설계개발단","계측제어설계그룹","백승민(33878  F3C00),손세도(31985  F3C00)","사내","전력기술","[발표신청서] 본부장 결재완료","12원자로설계개발단사내",null,12,null,"2019","12","31",null,"2019.12",null,"원자로설계개발단사내전"]
[193,"방폐장사업 총사업비 산정 과정에 대한 고찰","A Study on the Total Construction Cost Estimate in Radioactive Waste Disposal Facility","논문_종합본_190829.hwp","2019.11.20","2019.12.31","논문","사내전력기술지","15357","하무형","원자력본부","해외사업그룹","김성진(15017  D4E00),박종효(21557  D4600)","사내","사내전력기술지","[발표신청서] 본부장 결재완료",{"$f":"S194&K194&N194","v":"12원자력본부사내"},null,{"$f":"DAY(V194)","v":12},null,{"$f":"LEFT(F194,4)","v":"2019"},{"$f":"RIGHT(Y194,2)","v":"12"},{"$f":"RIGHT(F194,2)","v":"31"},null,{"$f":"LEFT(F194,7)","v":"2019.12"},null,"원자력본부사내전"]
[194,"디지털 계측제어계통의 감지 및 진단기능을 이용한 공통원인고장 진단","The common cause failure detection of digital I&C system by leveraging diagnostic function","디지털 계측제어계통의 감지 및 진단기능을 이용한 공통원인고장 진단.docx","2019.11.20","2019.12.31","논문","사내전력기술지","38435","임재현","원자력본부","전기계측기술실","김두호(36993  D4400),조병수(24975  D4600)","사내","전력기술지(2019년 동계)","[발표신청서] 본부장 결재완료","12원자력본부사내",null,12,null,"2019","12","31",null,"2019.12",null,"원자력본부사내전"]
[195,"원전 매설배관의 방식시스템 유효성 및 임계치 연구","Study on Cathodic Protection Effectiveness and Threshold Values for Buried Pipes of Nuclear Power Plants","2019 추계 전력기술지 논문(원전 방식시스템 유효성 평가 및 Threshold Values 연구).docx","2019.11.20","2019.12.31","논문","사내전력기술지","29946","임부택","원자력본부","PSA&PSR사업그룹","김현수(34348  D4800),박진석(26933  D4800)","사내","사내 전력기술지","[발표신청서] 본부장 결재완료","12원자력본부사내",null,12,null,"2019","12","31",null,"2019.12",null,"원자력본부사내전"]
[196,"원자로냉각재 유동혼합계수가 안전해석에 미치는 영향 평가","An Evaluation of Safety Analysis Effects by Flow Mixing Coefficent of Reactor Coolant","원자로냉각재 유동혼합계수가 안전해석에 미치는 영향 평가.docx","2019.11.18","2019.12.31","논문","사내전력기술지","42869","김경련","원자로설계개발단","안전해석그룹","장호철(34098  F3H00),최철진(33131  F3D00)","사내","한국전력기술지","[발표신청서] 본부장 결재완료","12원자로설계개발단사내",null,12,null,"2019","12","31",null,"2019.12",null,"원자로설계개발단사내전"]
[197,"As-built Freezing date 적용에 따른 해외원전 종합설계 준공도서 작성, 이관 및 기성 프로세스에 미치는 영향분석","Impacts Analysis on the Architect Engineering As-built Drawings & Documents Preparation, Turnover and Payment Process Applying the As-built Freezing Date for the Overseas Nuclear Power Plant Project","As-built Freezing date 적용에 따른 해외원전 종합설계 준공도서 작성, 이관 및 기성 프로세스에 미치는 영향분석_수정_191014.docx","2019.11.12","2019.12.31","논문","사내전력기술지","41541","김기욱","원자력본부","해외사업그룹","김동성(27854  D4600),이재학(22573  D4600)","사내","사내전력기술지","[발표신청서] 본부장 결재완료","12원자력본부사내",null,12,null,"2019","12","31",null,"2019.12",null,{"$f":"K198&LEFT(H198,3)","v":"원자력본부사내전"}]
[198,"항공기충돌 충격진동 손상평가를 위한 안전관련기기의 충격 생존성 곡선","Shock Fragility Spectra for Equipment and Survivability Under Aircraft Impact","Frgility manuscript (ASCE)_BRKIM.pdf","2019.11.11","2019.12.31","논문","SCI저널자료","42728","김봉래","원자력본부","토건환경기술실","강주형(36963  D4D00),김도연(41231  D4D00)","해외","ASCE Journal of Structural Engineering","[발표신청서] 본부장 결재완료","12원자력본부해외",null,12,null,"2019","12","31",null,"2019.12",null,"원자력본부SCI"]
[199,"저탄장 옥내화 방안에 관한 연구","A Study for Indoor Coal Storage Method","01 저탄장 옥내화방안 연구.hwp","2019.11.08","2019.12.31","논문","사내전력기술지","28391","고동현","에너지신사업본부","건설사업그룹","김동철(26255  E4F00),손병관(29481  E4H00)","사내","사내전력기술지","[발표신청서] 본부장 결재완료","12에너지신사업본부사내",null,12,null,"2019","12","31",null,"2019.12",null,"에너지신사업본부사내전"]
[200,"지반 액상화 평가 방법에 대한 고찰 및 적용","Research and Application of Soil Liquefaction Estimation Method","지반 액상화 평가 방법에 대한 고찰 및 적용.docx","2019.10.22","2019.12.31","논문","사내전력기술지","38259","백승경","에너지신사업본부","건설사업그룹","맹창환(29606  E4H00)","사내","전력기술지","[발표신청서] 본부장 결재완료","12에너지신사업본부사내",null,12,null,"2019","12","31",null,"2019.12",null,"에너지신사업본부사내전"]
[201,"대형 산업 설비의 내진성능 평가개요 및 사례","Introduction of Sesmic Assessment and Case Study of Industrial Facilities","대형 산업설비의 내진성능 평가 개요 및 사례_(191210).hwp","2019.12.24","2019.12.31","논문","사내전력기술지","20356","성백운","에너지신사업본부","건설사업그룹","방창국(24267  E4H00),백승우(21897  E4H00)","사내","전력기술","[발표신청서] 본부장 결재완료","12에너지신사업본부사내",null,12,null,"2019","12","31",null,"2019.12",null,"에너지신사업본부사내전"]
[202,{"$nulls":15},{"$error":"#VALUE!"},null,{"$error":"#VALUE!"},null,"","","",null,"",null,""]
[203,{"$nulls":15},{"$error":"#VALUE!"},null,{"$error":"#VALUE!"},null,"","","",null,"",null,""]
[204,{"$nulls":15},{"$error":"#VALUE!"},null,{"$error":"#VALUE!"},null,"","","",null,"",null,""]
[205,{"$nulls":15},{"$error":"#VALUE!"},null,{"$error":"#VALUE!"},null,"","","",null,"",null,""]
[206,{"$nulls":15},{"$error":"#VALUE!"},null,{"$error":"#VALUE!"},null,"","","",null,"",null,""]
[207,{"$nulls":15},{"$error":"#VALUE!"},null,{"$error":"#VALUE!"},null,"","","",null,"",null,""]
[208,{"$nulls":15},{"$error":"#VALUE!"},null,{"$error":"#VALUE!"},null,"","","",null,"",null,""]
[{"$nulls":16},{"$error":"#VALUE!"},null,{"$error":"#VALUE!"},null,"","","",null,"",null,""]
[{"$nulls":16},{"$error":"#VALUE!"},null,{"$error":"#VALUE!"},null,"","","",null,"",null,""]
[{"$nulls":16},{"$error":"#VALUE!"},null,{"$error":"#VALUE!"},null,"","","",null,"",null,""]
[]
[]
[]
[]
[]
[]
[{"$nulls":21},{"$f":"RIGHT(Y219,2)","v":""},{"$f":"RIGHT(F219,2)","v":""},null,{"$f":"LEFT(F219,7)","v":""}]
[{"$nulls":21},"","",null,""]
[{"$nulls":21},"","",null,""]
[{"$nulls":21},"","",null,""]
[{"$nulls":21},"","",null,""]
[{"$nulls":21},"","",null,""]

{"sheet":"2020","index":3,"n_rows":256,"n_cols":15,"rows_kept":256,"cut":false,"hidden":true,"merged":[]}
["논문제목(국문)","논문제목(영문)","논문파일명","논문등록일","논문발표일","논문구분","발표유형","사번","등록자","등록자본부","등록자부서","감수자","논문발표처","발표기관","논문승인현황"]
["원자로건물격리계통의 생태학적 인퍼페이스 설계를 위한 작업영역분석","Work Domain Analysis for Containment Isolation System in Nuclear Power Plant","Work Domain Analysis for Containment Isolation System in Nuclear Power Plant_MDPI_revised_20200219.docx","2020.03.11","2020.03.06","논문","SCI저널자료","42795","최진태","원자력본부","PSA&PSR사업그룹","김남철(39777  D4800),나두완(50858  D4800)","해외","Applied Sciences","[발표신청서] 본부장 결재완료"]
["70kV 송전선로 지상고 검토","Review of Ground Clearence for 70kV Voltage Level","70kV_송전전압_지상고.pdf","2020.03.05","2020.03.31","논문","사내전력기술지","26558","강경두","원자력본부","원전안전센터","김근성(25901  E4F00),정구철(24038  E4J00)","사내","전력기술지","[발표신청서] 본부장 결재완료"]
["SFP 리스크평가 방법론 및 사례 연구","Development of Risk Assessment Framework and the Case Study for a Spent Fuel Pool of a Nuclear Power Plant","","2020.04.08","2020.04.10","논문","SCI-E저널","42795","최진태","원자력본부","PSA&PSR사업그룹","김재갑(28553  D4800),나두완(50858  D4800)","해외","Nuclear Engineering and Technology","[발표신청서] 본부장 결재완료"]
["ToSPACE 프로그램을 이용한 FAC 해석결과와 실험결과 비교","Comparison between FAC Analysis Result using ToSPACE Program and Experimental Result","2019 CST저널-(황경모) ToSPACE 프로그램을 이용한 FAC 해석결과와 실험결과 비교.hwp","2020.04.03","2020.04.20","논문","국내학술지","24584","황경모","원자력본부","PSA&PSR사업그룹","박진석(26933  D4800),박흥배(28775  A7500)","국내","Corrosion Science and Technology","[발표신청서] 본부장 결재대기"]
["180° 곡관을 갖는 원형 혼합배관에서 분기관의 설계인자에 따른 유동특성에 관한 연구","A Study on Flow Characteristics according to Design Parameters of Branch Pipe in Circular Mixing-tee with 180° Curved Pipe","1.투고논문_KSMT - 김광추.hwp","2020.04.20","2020.05.20","논문","국내학술지","26366","김광추","원자력본부","기계배관기술실","장지웅(26285  D4B00),지영민(30437  D4B00)","국내","한국기계기술학회지","[발표신청서] 본부장 결재완료"]
["질소 저감 설비 암모니아 주입 제어 밸브의 유량계 선정","Flowmeter selection of ammonia injection control valve in De-NOx facility","질소 저감 설비 암모니아 주입 제어 밸브의 유량계 선정.docx","2020.06.29","2020.06.30","논문","사내전력기술지","44193","백승국","에너지신사업본부","화력O&M사업그룹(신사업)","오흥일(36424  E4H00),유정문(45614  E4F00)","사내","전력기술지","[발표신청서] 본부장 결재완료"]
["회귀분석을 적용한 태양광 발전예측","Study on the prediction of PV (PhotoVoltaic) Generation using a regression analysis","회귀분석을 적용한 태양광 발전예측_논문.docx","2020.06.24","2020.06.30","논문","사내전력기술지","37789","나춘수","원자력본부","전기계측기술실","김원삼(27403  D4C00),서광락(29099  D4C00)","사내","사내전력기술지 (2020년도 하계)","[발표신청서] 본부장 결재완료"]
["안전등급 기계설비의 건조기술기준 대비 최신 재료기술기준 적용성 검토","A Review of Applying Later Edition and Addenda of Material Specifications than Original Construction Codes for Safety Class Components","2020년 하계 전력기술지_기술보고_탁성현_200615.hwp","2020.06.22","2020.06.30","논문","사내전력기술지","44554","이준우","원자력본부","기계배관기술실","김형규(23036  A1704),남일권(34355  D4600)","사내","2020년 하계 전력기술","[발표신청서] 본부장 결재완료"]
["강구조물 안정설계법에 대한 고찰","A Discussion on Design of Steel Structure for Stability","강구조물 안정설계법에 대한 고찰.hwp","2020.06.19","2020.06.30","논문","사내전력기술지","45452","박종근","에너지신사업본부","건설사업그룹","윤방열(39009  E4H00),진현균(34577  E4H00)","사내","전력기술지","[발표신청서] 본부장 결재완료"]
["장단기기억(LSTM) 알고리즘을 활용한 전력수요 기법 개발","Development of power demand prediction algorithm using Long Short-Term Memory","LSTM을 활용한 전력수요 예측_r1.docx","2020.06.17","2020.06.30","논문","사내전력기술지","24068","최기열","원자력본부","전기계측기술실","김원삼(27403  D4C00),서광락(29099  D4C00)","사내","전력기술지","[발표신청서] 본부장 결재완료"]
["도막의 두께 측정방법 및 고려사항","Methods and Consideration on Coating Film Thickness Measurement","전력기술지_2020하계_도막의 두께측정 방법 및 고려사항_토건환경기술실_우안식.docx","2020.06.15","2020.06.30","논문","사내전력기술지","38981","우안식","원자력본부","토건환경기술실","김수광(15954  D4D00),이일준(44098  D4D00)","사내","전력기술지","[발표신청서] 본부장 결재완료"]
["원전 광역화재를 고려한 정량적 화재영향평가 기술개발","An Introduction to Development of Methodology for Quantitative Fire Hazard Analysis on Nuclear Power Plants including Large Area Fire","전력기술지 - 하계.docx","2020.05.29","2020.06.30","논문","사내전력기술지","16595","김왕휘","미래전략연구소","원자력연구실","김광철(30731  A7600),김정만(30747  A7400)","사내","전력기술지 (하계)","[발표신청서] 본부장 결재완료"]
["F316 오스테나이트 스테인리스강의 상변태 및 입계부식저항성에 미치는 입열의 영향","Effects of Heat Inputs on the Phase Transformation and Resistance to Intergranular Corrosion of F316 Austenitic Stainless Steel","F316 오스테나이트 스테인리스강의 상변태 및 입계부식저항성에 미치는 입열의영향.pdf","2020.05.13","2020.06.30","논문","국내학술지","22402","정규석","원자력본부","기계배관기술실","장현영(35054  A7600),황경모(24584  D4800)","국내","CORROSION SCIENCE AND TECHNOLOGY","[발표신청서] 본부장 결재완료"]
["소듐배출을 고려한 소듐냉각고속로에서의 소듐화재위험도 최소화 방안","A minimization of sodium fire risk using drain line in SFR","2020-KNS-drain.doc","2020.06.04","2020.07.08","논문","국내학술발표","20349","장각수","미래전략연구소","원자력연구실","김길정(25024  A7400),이규복(26063  A7400)","국내","2020년 춘계 원자력학회 학술발표회","[발표신청서] 본부장 결재완료"]
["APR1400 실질적 배제 (PE) 평가를 위하여 Level 2 PSA 방출군 특성을 활용한 PE 분류방법론 제시","PSA methodology for classification of Practical Elimination for APR1400 in terms of Source Term Category of Level 2 PSA","춘계원자력학회 PSA 방법론 of APR1400 PE-1.pdf","2020.06.04","2020.07.08","논문","국내학술발표","28553","김재갑","원자력본부","PSA&PSR사업그룹","김광추(26366  D4B00),김동욱(36107  D4800)","국내","2020년 한국원자력학회 춘계원자력학회","[발표신청서] 본부장 결재완료"]
["확률론적 지진해석에 의한 면진적용 APR1400의 지진응답","Seismic Analysis Response of the Base-Isolated APR1400 by Probabilistic Soil-Structure Interaction Analysis","2020년 한국원자력학회 학술발표 논문_한승룡.doc","2020.06.04","2020.07.08","논문","국내학술발표","43272","한승룡","미래전략연구소","디지털융합실","서춘교(42351  A7400),이대영(26359  A7500)","국내","2020년 한국원자력학회 춘계 학술발표회","[발표신청서] 본부장 결재완료"]
["원전구조물의 성능기반설계 대비 확률적 지진응답 후처리기술 개발","Post-processing technique for probabilistic seismic responses of nuclear power plant under performance-based seismic design","원자력학회논문발표(서춘교).doc","2020.05.06","2020.07.08","논문","국내학술발표","42351","서춘교","미래전략연구소","원자력연구실","이대영(26359  A7500),한승룡(43272  A7600)","국내","2020 춘계원자력학회학술발표회","[발표신청서] 본부장 결재대기"]
["고리1호기 사용후핵연료를 장전한 OASIS-32K 캐니스터 예비임계해석","Preliminary Criticality Analysis on the OASIS-32K Canister With 32 Spent Nuclear Fuel Assemblies of Kori-1","KNS 2020 Spring _ OASIS-32K_20200424b_kns form.doc","2020.05.06","2020.07.08","논문","국내학술발표","37597","한영태","원자로설계개발단","안전해석그룹","김형헌(31409  F3D00),서종태(31897  F3J00)","국내","한국원자력학회","[발표신청서] 본부장 결재대기"]
["원자로내부구조물에 대한 수력하중함수 생산을 위한 전산유체역학의 적용방안","Application of Computational Fluid Dynamics for Generation of Hydraulic Forcing Functions on Reactor Internals","Application of Computational Fluid Dynamics for Generation of Hydraulic Forcing Functions on Reactor Internals_Draft.pdf","2020.04.29","2020.07.08","논문","국내학술발표","43737","정동화","원자로설계개발단","유체계통설계그룹","이병진(32344  F3J00),허진(33316  F3H00)","국내","한국원자력학회 2020 춘계학술발표회","[발표신청서] 본부장 결재대기"]
["ISA RP67.04와 APR1400 발전소보호계통 설정치 방법론 비교","Comparison between ISA RP67.04 and Plant Protection System Setpoint Methodology for Advanced Power Reactor 1400","2020년 춘계원자력학회 논문.doc","2020.06.04","2020.07.09","논문","국내학술발표","34628","이창재","원자로설계개발단","계측제어설계그룹","김영백(31201  F3C00),손세도(31985  F3C00)","국내","한국원자력학회","[발표신청서] 본부장 결재완료"]
["강판콘크리트 전단벽의 감쇠비 평가","Damping Ratio Evaluation of Steel Plate Concrete Shear Wall","원자력학회 학술회의.doc","2020.06.04","2020.07.09","논문","국내학술발표","25991","문일환","미래전략연구소","원자력연구실","김도연(41231  D4D00),이용선(29238  D4D00)","국내","한국원자력학회","[발표신청서] 본부장 결재완료"]
["APR1400 부분충수운전 중 완전정전사고의 SIT 충수영향 평가","APR1400 SIT Makeup Evaluation for ELAP during Mid-loop Operation","SIT Makeup for Shutdown ELAP.pdf","2020.06.04","2020.07.09","논문","국내학술발표","31365","김철우","원자로설계개발단","안전해석그룹","이광원(34038  F3H00),최철진(33131  F3D00)","국내","2020 춘계 한국원자력학회 발표회","[발표신청서] 본부장 결재완료"]
["CFD를 이용한 끝단막힘 배관의 유체유발 진동 타당성 평가 연구","FEASIBILITY STUDY FOR FLOW-INDUCED VIBRATION IN STUD PIPE USING COMPUTATIONAL FLUID DYNAMICS","FEDSM2020-20055.pdf","2020.07.08","2020.07.13","논문","해외학술발표","42064","이해인","원자력본부","원전O＆M사업그룹","이연태(40895  D4500),이찬교(30451  D4500)","해외","FEDSM(Fluids Engineering Divison's Summer Meeting)","[발표신청서] 본부장 결재완료"]
["기기 피로평가에 대한 수명 및 응력구배인자의 적용성 고찰","A Technical Review on Applicability of Life and Gradient Factors for Component Fatigue Evaluation","2020 대한기계학회 재료 및 파괴부문 학술대회(한전기술 신희재).docx","2020.06.23","2020.07.14","논문","국내학술발표","41837","신희재","원자력본부","PSA&PSR사업그룹","남일권(34355  D4600),오영진(38317  A7600)","국내","대한기계학회 재료 및 파괴부문 춘계학술대회","[발표신청서] 본부장 결재완료"]
["원자로 내부구조물의 균열성장 평가를 위한 매개변수 분석","A Parametric Analysis on the Crack Growth Evaluation of Reactor Internal","2020 대한기계학회 재료 및 파괴부문 학술대회(한전기술 김현수).docx","2020.06.12","2020.07.14","논문","국내학술발표","34348","김현수","원자력본부","PSA&PSR사업그룹","박흥배(28775  A7500),오영진(38317  A7600)","국내","대한기계학회 재료 및 파괴부문 춘계 학술대회","[발표신청서] 본부장 결재완료"]
["마이크로그리드에 적용을 위한 계통 접지방식과 지락보호에 대한 고찰","A study on the system grounding method and ground-fault protection for microgrids","감수용_마이크로그리드에 적용을 위한 계통 접지방식과 지락보호에 대한 고찰.hwp","2020.07.09","2020.07.16","논문","국내학술발표","43161","정태영","미래전략연구소","신사업연구실","박범수(28951  E4F00),임노택(29009  E4H00)","국내","2020년 대한전기학회 하계학술대회 논문집","[발표신청서] 본부장 결재완료"]
["개정된 응력확대계수 방법을 고려한 압력-온도 제한곡선 평가","EVALUATION OF PRESSURE-TEMPERATURE LIMIT CURVE CONSIDERING REVISED STRESS INTENSITY FACTOR METHOD","PVP2020-21123_사내감수완료.docx","2020.04.10","2020.07.20","논문","해외학술발표","43043","이연주","원자로설계개발단","기계설계그룹","김인용(34318  F3B00),백종만(31837  F3B00)","해외","Pressure Vessels & Piping Division Conference PVP2020","[발표신청서] 본부장 결재완료"]
["열성층을 고려한 DVI 배관의 환경 피로 해석","Environmental Fatigue Analysis Considering Thermal Stratifiction in Direct Vessel Injection Piping","ASME2020-21351(Revised draft)_Rev.1.pdf","2020.03.16","2020.07.20","논문","해외학술발표","42765","이봉희","원자력본부","원전O＆M사업그룹","문철진(40592  D4600),손재호(28914  D4600)","해외","ASME 2020 Pressure Vessels & Piping Conference","[발표신청서] 본부장 결재완료"]
["ASME SEC. XI 기반 배관용접부 결점평가 방법에 따른 영향","Effects of Evaluated Methods Based on ASME SEC. XI for Flaw in Piping Welds","2020 한국안전학회 춘계_박상윤.hwp","2020.07.01","2020.07.23","논문","국내학술발표","43929","박상윤","원자력본부","기계배관기술실","배인근(25859  D4B00),원윤호(28907  D4B00)","국내","2020 한국안전학회 춘계학술대회","[발표신청서] 본부장 결재완료"]
["사용후연료취급시 핵연료취급기기 과부하 및 저부하 연동설계","Overload and Underload Interlock Setpoint of Fuel Handling Equipment during spent fuel handling","2020 춘계 방폐학회_장상균_200420(초안).docx","2020.06.12","2020.07.29","논문","국내학술발표","32691","장상균","원자로설계개발단","기계설계그룹","김인용(34318  F3B00),황정기(33353  F3B00)","국내","방사성폐기물학회","[발표신청서] 본부장 결재완료"]
["CANDU-6 노형 해체 시 방사성폐기물의 제염 및 처리기술","Decontamination and Treatment Technologies of Radioactive Waste for the Decommissioning of CANDU-6 (Canadian Case)","MGShin_Decontamination and Treatment Technologies of Radioactive Waste for the Decommissioning of CANDU-6.docx","2020.06.16","2020.07.30","논문","국내학술발표","40754","신무갑","원자력본부","사후관리사업그룹","박정수(20076  D4700),손동빈(49673  D4700)","국내","방사성폐기물학회","[발표신청서] 본부장 결재완료"]
["CANDU6 노형 해체시 예비 해체 작업(캐나다 사례)","Pre-Decommissioning Activities for the decommissioning of CANDU-6 (Canadian Case)","KSChoi_Pre-Decommissioning Activities for the decommissioning of CANDU-PHWR.docx","2020.06.08","2020.07.30","논문","국내학술발표","38553","최광순","원자력본부","사후관리사업그룹","박정수(20076  D4700),손동빈(49673  D4700)","국내","한국방사성폐기물학회 춘계학술발표회","[발표신청서] 본부장 결재완료"]
["고리1호기 사용후핵연료 저장용 OASIS 캐스크 모델 개발","Development of OASIS Cask Models for Kori-1 Spent Nuclear Fuel Storage","KRS2020SpringConference_OASIS Cask Models for Kori-1(For Review_20200512).pdf","2020.05.21","2020.07.30","논문","국내학술발표","32108","안준기","원자로설계개발단","신기술사업그룹","서종태(31897  F3J00),조연호(32941  F3B00)","국내","한국방사성폐기물학회(KRS) 2020 춘계학술발표회","[발표신청서] 본부장 결재완료"]
["원전부지 인근 해상풍력개발 타당성 검토","Feasibility Study of Offshore Windpower Development near NPP sites","20200630_원전인근 해상풍력 개발사업 R1.pdf","2020.07.10","2020.07.31","논문","사내전력기술지","25991","문일환","미래전략연구소","원자력연구실","김명석(22226  A7500),이영석(20333  A7400)","사내","전력기술지","[발표신청서] 본부장 결재완료"]
["원자력발전소 내 기체공정방사능감시기의 시료이송배관 이송율 요건 적용 및 경험 사례","Adapting Total Transport Criteria in Sampling Piping Design of Gaseous Process and Effluent Radiation Monitor in Nuclear Power Plants and its Issues","원자력발전소 내 기체공정방사능감시기의 시료이송배관 이송율 요건 적용 및 경험 사례.docx","2020.07.01","2020.07.31","논문","사내전력기술지","50532","전남율","원자력본부","원전O＆M사업그룹","백유석(29083  D4600),이승태(26623  D4500)","사내","2020 전력기술","[발표신청서] 본부장 결재완료"]
["공냉식 응축 교환기 설계 factor 고찰","The consideration of design factor for the air cooled condenser","1 공기냉각 응축 설계 Factors를 고려한 응축기 설계 검토.docx","2020.07.01","2020.07.31","논문","사내전력기술지","30437","지영민","원자력본부","기계배관기술실","김광추(26366  D4B00),양윤영(27905  D4800)","사내","전력기술지","[발표신청서] 본부장 결재완료"]
["KCMS 3D를 활용한 전선로 설계","Cable Raceway Design Process using KCMS 3D","KCMS 3D를 활용한 전선로 설계.doc","2020.07.01","2020.07.31","논문","사내전력기술지","48377","강성민","원자력본부","해외사업그룹","박기만(43913  D4600),이건호(22506  D4C00)","사내","전력기술지","[발표신청서] 본부장 결재완료"]
["효과적인 화학 및 체적제어계통 유출오리피스 조정 방법론","A Study on Effective Adjusting Method for CVCS Letdown Orifices","효과적인 화학 및 체적제어계통 유출오리피스 조정 방법론 - 최정대, 2020.05.26,.docx","2020.06.23","2020.07.31","논문","사내전력기술지","42256","최정대","원자로설계개발단","유체계통설계그룹","김은기(31254  F3H00),허진(33316  F3H00)","사내","사내전력기술지","[발표신청서] 본부장 결재완료"]
["BNPP 1호기 종합설계 일정관련 Big Data 분석 및 마일스톤 기준 해외원전 인력 투입계획을 위한 고찰","Analysis on Big Data of Architect Engineering schedule and Study on Manpower Plan for the Overseas Nuclear Power Plant Project based on Milestone","BNPP 1호기 종합설계 일정관련 Big Data 분석 및 마일스톤 기준 해외원전 인력 투입계획을 위한 고찰.docx","2020.06.19","2020.07.31","논문","사내전력기술지","27854","김동성","원자력본부","해외사업그룹","김기욱(41541  D4400),문형선(44945  D4600)","사내","사내전력기술지","[발표신청서] 본부장 결재완료"]
["FPGA 기반 다양성보호계통의 고장 진단 및 감시 방법","Way to Diagnose and Monitor the Faults of DPS based on FPGA","FPGA 기반 다양성보호계통의 고장 진단 및 감시 방법.pdf","2020.06.17","2020.07.31","논문","사내전력기술지","42809","황수연","원자로설계개발단","계측제어설계그룹","백승민(33878  F3C00),손세도(31985  F3C00)","사내","2020년도 전력기술지 하계","[발표신청서] 본부장 결재완료"]
["304 스테인리스 강관의 부식 손상 원인 분석","Cause Analysis on Corrosion Failure of 304 Austenitic Stainless Steel Pipe","304 스테인리스 강관의 부식 손상 원인 분석_2020.06.08.doc","2020.06.16","2020.07.31","논문","사내전력기술지","38391","이재준","에너지신사업본부","기계배관환경기술실","박근영(40606  A7600),이재식(38384  E4H00)","사내","사내전력기술지_2020년도 하계","[발표신청서] 본부장 결재완료"]
["공급과 배기풍량 차이로 형성되는 격실내부압력 검토","The review of room internal pressure caused by differential airflow rate between supply and exhaust","이주열_공급과 배기풍량 차이로 형성되는 격실내부압력 검토.doc","2020.05.12","2020.07.31","논문","사내전력기술지","42279","허건","원자력본부","미래성장신사업그룹","김형석(26262  D4900),조영규(41166  D4600),홍문표(42286  D4400)","사내","2020 전력기술지","[발표신청서] 본부장 결재완료"]
["CFD를 이용한 다중 분기관 및 엘보우의 유체유발 진동 타당성 평가 연구","FEASIBILITY STUDY FOR MULTI-BRANCHES AND ELBOW IN STUB PIPE SYSTEM DUE TO FLOW-INDUCED VIBRATION USING COMPUTATIONAL FLUID DYNAMICS","ICONE28-POWER2020-16431.pdf","2020.07.09","2020.08.04","논문","해외학술발표","42064","이해인","원자력본부","원전O＆M사업그룹","이연태(40895  D4500),이찬교(30451  D4500)","해외","ICONE 28 (International Conference on Nuclear Engineering 28th)","[발표신청서] 본부장 결재완료"]
["해양부유식 원전 BANDI-60s 개발 현황","Development of Floating Nuclear Power Plant BANDI-60s","해양부유식 원전 BANDI-60s 개발 현황.pdf","2020.06.08","2020.08.24","논문","국내학술발표","50083","김일환","원자로설계개발단","신기술사업그룹","백승민(33878  F3C00),최철진(33131  F3D00)","국내","2020 한국유체기계학회 하계학술대회","[발표신청서] 본부장 결재완료"]
["ToSPACE 및 CHECWORKS을 이용한 FAC 해석결과와 실험결과 비교","Comparison between FAC Analysis Results using ToSPACE and CHECWORKS Programs and Experimental Result","2020 (WJNST) Comparison of experiment and analysis results(E)FFF.hwp","2020.09.16","2020.09.15","논문","SCI저널자료","24584","황경모","원자력본부","PSA&PSR사업그룹","김광추(26366  D4B00),박진석(26933  D4800)","해외","World Journal of Nuclear Science and Technology","[발표신청서] 본부장 결재완료"]
["일본 내진설계기준을 적용한 모의지진파 작성","Generation of Artificial Ground Motion Applying Japanese Seismic Design Standard","일본 내진설계기준을 적용한 모의지진파 작성_20-08-31.hwp","2020.09.04","2020.09.25","논문","국내학술발표","54244","진승민","원자력본부","토건환경기술실","강주형(36963  D4D00),김도연(41231  D4D00)","국내","한국지진공학회","[발표신청서] 본부장 결재완료"]
["국외 원전 비상대응거점 시설 사례 조사","Benchmark of Overseas Nuclear Power Plant Emergency Operating Facilities","논문_국외 원전 비상대응거점시설 사례 조사.hwp","2020.10.07","2020.09.29","논문","사내전력기술지","46512","김성민","원자력본부","원전O＆M사업그룹","송재철(29245  D4500),정성화(29252  D4500)","사내","2020년 추계 전력기술지","[발표신청서] 본부장 결재완료"]
["선택적 침출 민감재료의 경년열화 허용기준에 대한 고찰","Review of Susceptible Materials and Acceptance Criteria for Selective Leaching Aging Management","선택적 침출 전력기술지_2020.09.22.hwp","2020.10.07","2020.09.30","논문","사내전력기술지","26933","박진석","원자력본부","PSA&PSR사업그룹","소일수(36366  D4800),임부택(29946  D4800)","사내","전력기술지","[발표신청서] 본부장 결재완료"]
["계측제어 안전계통 소프트웨어 확인 및 검증 프로세스","Software Verification and Validation Process for Safety I&C Systems","VVprocess_draft.hwp","2020.10.07","2020.09.30","논문","사내전력기술지","41062","최창희","원자로설계개발단","원자로안전점검실","박찬모(51948  F3I00),정수현(43147  F3I00)","사내","전력기술지","[발표신청서] 본부장 결재완료"]
["CDEGS를 활용한 EMP 유도전류 모델링 및 해석","EMP(ElectroMagnetic Pulse) Induced Current Modeling and Analysis using CDEGS Program","EMP_유도전류_모델링_0810.pdf","2020.10.07","2020.09.30","논문","사내전력기술지","26558","강경두","원자력본부","원전안전센터","여경규(30696  E4H00),유재석(41948  D4400)","사내","전력기술지","[발표신청서] 본부장 결재완료"]
["원전 콘크리트 구조물 화재영향평가 고찰","Approaches to Evaluation of Nuclear Power Plant Concrete Structures Subjected to Fire","원전 콘크리트 구조물 화재영향평가 고찰-F.hwp","2020.10.07","2020.09.30","논문","사내전력기술지","46401","곽병기","원자력본부","해외사업그룹","고광훈(15873  D4600),김지석(40481  D4D00)","사내","전력기술지","[발표신청서] 본부장 결재완료"]
["PHILS를 이용한 재생에너지 실증단지 디지털 트윈구현","Realization of Digital Twin for the Renewable Energy Test Site using Power-Hardware in the Loop System (PHILS)","PHILS를 이용한 재생에너지 실증단지 디지털 트윈구현.docx","2020.09.23","2020.09.30","논문","사내전력기술지","37789","나춘수","원자력본부","전기계측기술실","김원삼(27403  D4C00),이건호(22506  D4C00)","사내","사내전력기술지","[발표신청서] 본부장 결재완료"]
["HYTRAN 프로그램을 이용한 음향공진 주파수 분석","Acoustic Resonance Frequency Analysis Using HYTRAN Program","HYTRAN 프로그램을 이용한 음향공진 주파수 분석_2020.09.17.hwp","2020.09.23","2020.09.30","논문","사내전력기술지","51733","최영환","원자력본부","원전O＆M사업그룹","이연태(40895  D4500),이찬교(30451  D4500)","사내","전력기술지","[발표신청서] 본부장 결재완료"]
["튜브군을 교차 전파하는 압력파의 감쇠에 대한 수치적 해석","Numerical Simulation of Pressure Wave Attenuation Propagating across a Tube Bundle","튜브군을 교차해서 전파하는 압력파의 감쇠에 대한 수치적 해석_200911.pdf","2020.09.23","2020.09.30","논문","사내전력기술지","43737","정동화","원자로설계개발단","유체계통설계그룹","김은기(31254  F3H00),문종성(34362  F3B00)","사내","전력기술지","[발표신청서] 본부장 결재완료"]
["원자력발전소의 보온재와 관련 요건","Insulation of Nuclear Power Plant and Requirements","원자력발전소의 보온재와 관련 요건.hwp","2020.09.23","2020.09.30","논문","사내전력기술지","44531","신영미","원자력본부","원전O＆M사업그룹","이상훈(46218  D4500),이찬교(30451  D4500)","사내","전력기술","[발표신청서] 본부장 결재완료"]
["MOX 연료장전에 따른 주증기관 파단사고 영향 평가","Impact Assessment of Steam Line Break Accident","2020년_추계_전력기술지(2020.09.09).hwp","2020.09.22","2020.09.30","논문","사내전력기술지","42226","최봉오","원자로설계개발단","안전해석그룹","김은기(31254  F3H00),최철진(33131  F3D00)","사내","사내전력기술지","[발표신청서] 본부장 결재완료"]
["사용후연료저장조 냉각수 공급을 위한 신규 배관배치에 대한 고찰","A study on Piping Layout of Makeup water for Spent Fuel Pool","전력기술지 논문 작성 - 박창우(200821).hwp","2020.09.21","2020.09.30","논문","사내전력기술지","48775","박창우","원자력본부","원전O＆M사업그룹","장재엽(41002  D4500)","사내","2020년 전력기술지","[발표신청서] 본부장 결재완료"]
["철근형 그룹앵커의 거동특성 및 설계기준 검토","Study on Behavior and Design Criteria of Rebar Group Anchors","철근형 그룹앵커의 거동특성 및 설계기준 검토(전력기술지 2020 추계).hwp","2020.09.21","2020.09.30","논문","사내전력기술지","29187","김성민","원자력본부","국내건설사업그룹","박창범(25482  D4400),한금호(41085  D4400)","사내","전력기술지","[발표신청서] 본부장 결재완료"]
["APR1400에 대한 3차원 수소거동 분석","Three-dimensional Hydrogen Behavior Analysis for APR1400","3차원수소거동평가-조성민_전력기술지2020추계.hwp","2020.09.17","2020.09.30","논문","사내전력기술지","37942","조성민","원자력본부","원자력기술실","김병조(43603  D4A00),이정성(42041  D4A00)","사내","2020년도 추계 전력기술지","[발표신청서] 본부장 결재완료"]
["원자로건물 콘크리트 타설 품질 개선방안 검토","Review on Improvement of Concrete Placement Quality of Reactor Containment Building","원자로건물 콘크리트 타설 품질 개선방안에 대한 검토.hwp","2020.09.16","2020.09.30","논문","사내전력기술지","25991","문일환","전력기술원","원자력연구실","김재희(15667  A8400),이영석(20333  A8400)","사내","전력기술지","[발표신청서] 본부장 결재완료"]
["Turbine Driven AFWP(Auxiliary Feed Water Pumps) Assembly 기기들의 내진검증방법고찰","A Study on the Seismic Qualification Method of Turbine Driven AFWP(Auxiliary Feed Water Pumps) Equipment","Turbine driven AFWP assembly 기기들의 내진검증고찰 전력기술지_초안.hwp","2020.09.14","2020.09.30","논문","사내전력기술지","42168","정운기","원자력본부","원전안전센터","서성제(30643  D4100),왕찬식(30414  D4100)","사내","2020 전력기술지","[발표신청서] 본부장 결재완료"]
["ASME B&PV Code Section III 피로면제요건의 배관관통부 적용","Application of Fatigue Evaluation to Piping Penetration Assembly","ASME B&PV Code Section III 피로면제요건의 배관관통부 적용.hwp","2020.09.14","2020.09.30","논문","사내전력기술지","49187","이훈영","원자력본부","원전안전센터","서성제(30643  D4100),왕찬식(30414  D4100)","사내","2020 전력기술지","[발표신청서] 본부장 결재완료"]
["발전소 냉각탑 설계인자 및 터빈배압 선정 고찰","Selection of Design Factor and Turbine backpressure for Power Plant Cooling Tower","발전소 냉각탑 설계인자 및 터빈배압 선정 고찰.hwp","2020.09.10","2020.09.30","논문","사내전력기술지","26285","장지웅","원자력본부","기계배관기술실","곽병엽(14179  D4B00),김광추(26366  D4B00)","사내","전력기술지 추계발행분","[발표신청서] 본부장 결재완료"]
["해외원전 건설사업 공사기간 산정에 대한 고찰","Study on the Construction Duration Eestimate for Overseas Nuclear Power Plant","해외원전 건설사업 공사기간 산정에 대한 고찰_Rev.B - 감수용.hwp","2020.09.10","2020.09.30","논문","사내전력기술지","18951","김병주","원자력본부","해외사업그룹","이재학(22573  D4600),홍순원(24952  D4400)","사내","사내전력기술지","[발표신청서] 본부장 결재완료"]
["전산수치해석을 통한 이동식 슬래브의 화재영향 평가","Fire Resistance Evaluation on Removable Slab Using the Computational Simulation","기술보고 Removable Slab 화재영향 평가.hwp","2020.09.03","2020.09.30","논문","사내전력기술지","29215","권주호","원자력본부","해외사업그룹","박창범(25482  D4400),윤창학(25209  D4600)","사내","전력기술지","[발표신청서] 본부장 결재완료"]
["보조건물 3차원 유한요소모델을 활용한 비선형 지진응답 해석","Nonlinear Seismic Response Analysis of Auxiliary Building Using 3-D Finite Element Model","전력기술지_2020년 추계_김도연.hwp","2020.08.21","2020.09.30","논문","사내전력기술지","41231","김도연","원자력본부","토건환경기술실","강주형(36963  D4D00),김봉래(42728  D4D00)","사내","전력기술지","[발표신청서] 본부장 결재완료"]
["원전 건설공기 산정용 공정표 개발 방법론 고찰","A Study on the Schedule Development Methodology for Estimating the Nuclear Power Plant Construction Project Period","젼력기술지_기술보고_원전 건설공기 산정용 공정표 개발 방법론 고찰_20200811.hwp","2020.08.20","2020.09.30","논문","사내전력기술지","24952","홍순원","원자력본부","국내건설사업그룹","김병주(18951  D4600),이재학(22573  D4600)","사내","사내전력기술지","[발표신청서] 본부장 결재완료"]
["화력발전의 내진설계 개요","Summary of seismic design for thermal power plant","화력발전소의 내진설계 R1.hwp","2020.10.07","2020.10.01","논문","국내학술지","34577","진현균","에너지신사업본부","건설사업그룹","박종근(45452  E4H00),정원상(46181  E4H00)","국내","대한토목학회","[발표신청서] 본부장 결재완료"]
["극한재해사고 및 다중고장사고 완화를 위한 비상운전지침서 개선","The Improvemnet of Emergency Operating Guidelines to cope with the Multiple Failure Accidents and BDBEE","1__논문작성요령(20추)-영문본.doc","2020.08.25","2020.10.21","논문","국내학술발표","41726","박재민","원자로설계개발단","안전해석그룹","최철진(33131  F3D00),최한림(35024  F3J00)","국내","한국원자력학회","[발표신청서] 본부장 결재완료"]
["지진 확률론적안전성평가를위한 계전기 선별 분석 절차","Screening Analysis Procedures of Relay for Seismic PRA","Screening Analysis Procedures of Relay for Seismic PRA_원자력학회_추계_200820.doc","2020.08.24","2020.10.21","논문","국내학술발표","52011","이재철","원자력본부","PSA&PSR사업그룹","유형근(40858  D4800),전상호(43721  D4800)","국내","한국원자력학회","[발표신청서] 본부장 결재완료"]
["MAAP5 불확실성 분석을 위한 샘플링 방법","Sampling Methods for Uncertainty Analysis Using MAAP5","(2020) 이대형, Sampling Methods for Uncertainty Analysis Using MAAP5 v1.1.pdf","2020.08.20","2020.10.21","논문","국내학술발표","52506","이대형","전력기술원","원자력연구실","김병조(43603  D4A00),장영식(15031  A8400)","국내","한국원자력학회","[발표신청서] 본부장 결재완료"]
["PLCS 오작동 사건 해석에 적용된 가압기 최대 수위 계산 방법론의 보수성 평가","An Evaluation on Degree of Conservatism in PZR Level Calculation in Safety Analysis during PLCS Malfunction Event","An Evaluation on Degree of Conservatism in PZR Level Calculation in Safety Analysis during PLCS Malfunction Event.pdf","2020.08.19","2020.10.21","논문","국내학술발표","53538","노세영","원자로설계개발단","안전해석그룹","최철진(33131  F3D00),최한림(35024  F3J00)","국내","2020년 추계 원자력학회","[발표신청서] 본부장 결재완료"]
["원자로냉각재계통 고온관 열성층화 발생으로 인한 불필요한 제어봉 거동 방지를 위한 타당성 연구","A Feasibility Study to Prevent Unnecessary CEA Movement due to RCS Hot-leg Thermal Stratification","A Feasibility Study to Prevent Unnecessary CEA Movement due to RCS Hot-leg Thermal Stratification_Park Seul Bin.pdf","2020.09.14","2020.10.22","논문","국내학술발표","51291","박슬빈","원자로설계개발단","안전해석그룹","손종주(32004  F3D00),정시채(32846  F3D00)","국내","2020 KNS Autumn","[발표신청서] 본부장 결재완료"]
["상용 해석 프로그램을 이용한 RCGVS 해석","Reactor Coolant Gas Vent System Performance Analysis Using Commercial Tool","논문_KNS_2020_Reactor Coolant Gas Vent System Performance Analysis.docx","2020.08.26","2020.10.22","논문","국내학술발표","52344","김현아","원자로설계개발단","유체계통설계그룹","이병진(32344  F3J00),허진(33316  F3H00)","국내","원자력학회","[발표신청서] 본부장 결재완료"]
["소형 배관 파단 분석에 대한 1D-CFD 적용 가능성 연구","A Feasibility Study on the Application of 1D-Computational Fluid Dynamics to Small Line Break Analysis","원자력학회KNS_2020추계-논문_47072이영롱(영문).doc","2020.08.25","2020.10.22","논문","국내학술발표","47072","이영롱","원자로설계개발단","유체계통설계그룹","김은기(31254  F3H00),최철진(33131  F3D00)","국내","한국원자력학회","[발표신청서] 본부장 결재완료"]
["정지저출력 운전중 리스크 저감을 위한 단일호기 발전소정전사고에서 EDG cross-tie 효과","The Effectiveness of EDG cross-tie in Single-unit SBO for Risk Reduction in Low Power and Shutdown Operation","2020 추계원자력학회 - LPSD L2 EDG cross-tie 리스크저감효과_김원직.doc","2020.08.24","2020.10.22","논문","국내학술발표","51985","김원직","원자력본부","PSA&PSR사업그룹","임재원(52004  D4800),최진태(42795  D4800)","국내","2020 한국원자력학회 추계학술발표회","[발표신청서] 본부장 결재완료"]
["MAAP5.05를 이용한 APR1400의 사고저항성핵연료(ATF) 모델링","Modeling of Accident Tolerant Fuels for APR1400 using MAAP5.05","ModelingATFforAPR1400.doc","2020.08.24","2020.10.22","논문","국내학술발표","37942","조성민","원자력본부","원자력기술실","김병조(43603  D4A00),신상우(40761  D4A00)","국내","한국원자력학회 2020년도 추계학술발표회 논문투고","[발표신청서] 본부장 결재완료"]
["소형원자로의 혁신적 CVCS 설계 검토","Innovative CVCS Design for SMRs","Innovative CVCS Design in SMR_KNS 2020 Autumn.doc","2020.08.21","2020.10.22","논문","국내학술발표","32455","이송규","원자로설계개발단","신기술사업그룹","김은기(31254  F3H00),최철진(33131  F3D00)","국내","한국원자력학회 2020 추계학술발표회","[발표신청서] 본부장 결재완료"]
["공통원인고장을 수반한 주증기관파단사고 해석","Accident Analysis of Steam Line Break with Common Cause Failure in Digital Instrumentation and Control Systems","Accident Analysis of SLB with CCF.doc","2020.08.20","2020.10.22","논문","국내학술발표","40613","박기문","원자로설계개발단","안전해석그룹","최철진(33131  F3D00),허진(33316  F3H00)","국내","2020년 추계원자력학회","[발표신청서] 본부장 결재완료"]
["기기 배치에 따른 단순화한 공통원인고장 계산법의 민감도 분석","Sensitivity Analysis of Simplified CCF Application in a Fault Tree with the Different Design Configuration","원자력학회 논문(20추계)_윤지승_20200814.doc","2020.08.20","2020.10.22","논문","국내학술발표","52485","윤지승","원자력본부","PSA&PSR사업그룹","김재갑(28553  D4800),최진태(42795  D4800)","국내","한국원자력학회지","[발표신청서] 본부장 결재완료"]
["ISA RP67.04 대비 APR1400 원전 허용치 계산 방법론 비교","Allowable Value Calculation Methodology Comparison between ISA RP67.04 and Advanced Power Reactor 1400 Nuclear Power Plant","2020년 추계원자력학회 논문_감수용.doc","2020.08.19","2020.10.22","논문","국내학술발표","34628","이창재","원자로설계개발단","계측제어설계그룹","김영백(31201  F3C00),손세도(31985  F3C00)","국내","한국원자력학회","[발표신청서] 본부장 결재완료"]
["설계기준초과지진에 대한 원전구조물의 건전성평가","Structural Integrity Evaluation of Nuclear Power Plant Structures under Beyond Design Basis Earthquake","20200610_2020년도 대한토목학회 학술발표회 논문_설계초과지진과제.doc","2020.06.18","2020.10.22","논문","국내학술발표","25991","문일환","전력기술원","원자력연구실","강주형(36963  D4D00),한승룡(43272  A8200)","국내","KSCE 2020 Convention Conference & Civil Expo","[발표신청서] 본부장 결재완료"]
["마이크로그리드 안정도 검토","A Case Study on Microgrid Stability","2020_추계 감수용.hwp","2020.10.19","2020.10.23","논문","국내학술발표","43161","정태영","전력기술원","신사업연구실","강인수(25924  D4C00),이철웅(47139  E4H00)","국내","대한전기학회 전력기술부문회 추계학술대회 논문집","[발표신청서] 본부장 결재완료"]
["웨스팅하우스 2루프 발전소에서 안전주입 실패를 동반한 소형냉각재상실사고 시 핵연료 건전성을 유지하기 위한 운전원 조치 평가","Evaluation of the Operator Actions to maintain the Fuel Integrity during the Small Break LOCA with Safety Injection failure for Westinghouse type 2-loop plant","Evaluation of the Operator Actions to maintain the Fuel Integrity during the Small Break LOCA with Safety Injection failure for Westinghouse type 2-loop plant.pdf","2020.08.25","2020.10.23","논문","국내학술발표","43989","안형균","원자로설계개발단","안전해석그룹","최철진(33131  F3D00),허진(33316  F3H00)","국내","2020 추계원자력학술대회","[발표신청서] 본부장 결재완료"]
["성능예측에 의한 플렉서블 웨지형 게이트밸브의 밸브팩터 평가의 유효성","Validation of the valve factor from performance prediction for flexible wedge gate valves","Validation of valve factor from performance prediction for flexible wedge gate valves.pdf","2020.08.24","2020.10.23","논문","국내학술발표","48967","오태경","원자력본부","PSA&PSR사업그룹","김봉환(18391  D4800),이제욱(37912  D4800)","국내","한국원자력학회","[발표신청서] 본부장 결재완료"]
["한반도 지진활동상수의 일관성 분석","Consistency analysis of seismicity on the Korean Peninsula","논문초록(최종).hwp","2020.10.15","2020.10.27","논문","국내학술발표","50777","공민경","원자력본부","토건환경기술실","이주현(49141  D4D00),임성빈(43117  D4D00)","국내","추계지질과학연합","[발표신청서] 본부장 결재완료"]
["발전소 종합사업관리 분야의 최신기술 도입 전략연구","A Study on the Introducing Strategy for the Emerging Technology in the Field of Project Management Control for Power Plant","사업관리기술실_22904_이제성_2020년도 추계 논문_R3.hwp","2020.10.12","2020.10.30","논문","사내전력기술지","22904","이제성","원자력본부","사업관리기술실","양재웅(20532  D4E00),전성현(09525  D4E00)","사내","한국전력기술지","[발표신청서] 본부장 결재완료"]
["대규모(300MWp) 육상태양광 사업타당성 기술분야 검토","A Feasibility-Level Engineering for Large-Scale(300MWp) Landing Solar PV Power Plant","대규모(300MWp) 육상태양광 사업타당성 기술분야 분석 사례.hwp","2020.10.12","2020.10.30","논문","사내전력기술지","24156","김성택","에너지신사업본부","신재생사업그룹","김세용(18687  E4G00),최수영(25533  E4G00)","사내","전력기술지","[발표신청서] 본부장 결재완료"]
["소형원자로 BANDI-60 피동안전 개념설계","Conceptual Design of Passive Safety System for Small Modular Reactor BANDI-60","소형원자로 BANDI-60 피동안전설계.pdf","2020.09.24","2020.10.30","논문","사내전력기술지","50083","김일환","원자로설계개발단","신기술사업그룹","김은기(31254  F3H00),최철진(33131  F3D00)","사내","한국전력기술지","[발표신청서] 본부장 결재완료"]
["혁신적안전경수로 원자로건물에 대한 시공성 고찰","Constructability Review on iPOWER Reactor Building","혁신적안전경수로(iPOWER) 원자로건물에 대한 시공성 고찰_r0.hwp","2020.09.21","2020.10.30","논문","사내전력기술지","24392","임위동","원자력본부","미래성장신사업그룹","이재학(22573  D4600),이준희(34871  D4E00)","사내","2020년 전력기술지 추계(가을호)","[발표신청서] 본부장 결재완료"]
["가동원전 인위적재해 대응전략 소개","Introduction to Man-Made Hazard Mitigation Strategy For Operating Nuclear Power Plant","[전력기술지]원전 인위적재해 대응전략 소개.hwp","2020.09.21","2020.10.30","논문","사내전력기술지","45172","박창선","원자력본부","원전O＆M사업그룹","배영직(26794  D4500),이상규(42011  D4A00)","사내","전력기술지","[발표신청서] 본부장 결재완료"]
["병렬 운전을 위한 두 번째 변압기 가압 시 Sympathetic Inrush Current 현상에 대한 사례와 관련기술의 고","A Case Study and Review for Sympathetic Inrush Current Phenomenon for Parallel Operation Power Transformer","병렬 운전을 위한 두 번째 변압기 가압 시 Sympathetic Inrush Current 현상에 대한 사례와 관련기술의 고찰_감수의뢰용.hwp","2020.09.18","2020.10.30","논문","사내전력기술지","28951","박범수","에너지신사업본부","화력O&M사업그룹(신사업)","이철웅(47139  E4H00),조용재(36623  E4H00)","사내","전력기술지","[발표신청서] 본부장 결재완료"]
["다중고장 및 설계기준초과 자연재해 사고 완화를 위한 웨스팅하우스형 원전 비상운전절차서 개선","Improvement of Emergency Operating Procedures to Cope with the Multiple Failure Accidents and Beyond Design Basis External Events for Westinghouse NPPs","다중고장 및 설계기준초과 자연재해 사고 완화를 위한 웨스팅하우스형 원전 비상운전절차서 개선.hwp","2020.09.09","2020.10.30","논문","사내전력기술지","47308","조동현","원자로설계개발단","안전해석그룹","김은기(31254  F3H00),손종주(32004  F3D00)","사내","전력기술지","[발표신청서] 본부장 결재완료"]
["지식 중심의 데이터 모델링 기반 구축 방안 : IAEA TECDOC 1919의 활용","Establishing knowledge-centric plant information model framework : Implementation of IAEA TECDOC 1919 to engineering data model","(사내논문) 2020년 추계 전력기술지 rev.C.hwp","2020.10.13","2020.10.31","논문","사내전력기술지","41254","이남경","전력기술원","디지털융합실","이상민(29497  D4400),전혜선(36609  A8300)","사내","전력기술","[발표신청서] 본부장 결재완료"]
["CAP 전산프로그램을 활용한 부격실 가압 분석 방법론 개발","Sub-compartment Pressurization Analysis Methodology Development using the CAP Code","CAP 코드를 활용한 부격실 압력 분석 방법론 개발.hwp","2020.10.08","2020.10.31","논문","사내전력기술지","49414","한형국","원자력본부","원자력기술실","강진철(40333  D4A00),문선창(23885  D4500)","사내","추계 사내전력기술지","[발표신청서] 본부장 결재완료"]
["KFAS를 이용한 화재재해도분석 및 안전정지능력 평가","Fire Hazard Analysis and Safe Shutdown Analysis using KFAS","KFAS.hwp","2020.10.07","2020.10.31","논문","사내전력기술지","51453","유상현","원자력본부","원자력기술실","강성훈(41511  D4A00),구정서(34739  D4A00),이규광(20111  D4400)","사내","2020년 추계 전력기술지","[발표신청서] 본부장 결재완료"]
["중대사고 예방단계에서의 방사선결말분석 방법론에 대한 고찰","Study on the Methodology of Radiological Consequence during Multiple Failure without Core Melt","DEC 방사선결말분석_추계전력기술지_이주호(초안)_3.hwp","2020.09.28","2020.10.31","논문","사내전력기술지","51587","이주호","원자력본부","원자력기술실","이교민(43575  D4A00),이동수(41342  D4A00)","사내","2020년 추계 전력기술지","[발표신청서] 본부장 결재완료"]
["4권선 전력용 변압기의 발전소 적용방안 분석","The analysis of 4 windings power transformer applying for power plant","전력기술지_에)전기계측기술_2020.09.08_오민혁.hwp","2020.09.26","2020.10.31","논문","사내전력기술지","44008","오민혁","에너지신사업본부","건설사업그룹","김일우(27486  E4H00),양희용(30076  E4H00)","사내","전력기술지","[발표신청서] 본부장 결재완료"]
["디지털 발전소보호계통의 공통원인고장을 수반한 주증기배관파단사고 분석","Analysis of Steam Line Break with Common Cause Failure in Digital Instrumentation and Control Systems","공통원인고장을 동반한 주증기관파단사고 해석_감수.hwp","2020.09.25","2020.10.31","논문","사내전력기술지","40613","박기문","원자로설계개발단","안전해석그룹","최철진(33131  F3D00),허진(33316  F3H00)","사내","2020년도 전력기술지 추계","[발표신청서] 본부장 결재완료"]
["극한재해 대처를 위한 고유량이동형펌프 및 이동형열교환기 도입방안","Portable Cooling Equipment Introduction Plan for Extreme External Hazards","극한재해 대처를 위한 고유량이동형펌프 및 이동형열교환기 도입방안.hwp","2020.09.23","2020.10.31","논문","사내전력기술지","41002","장재엽","원자력본부","원전O＆M사업그룹","배영직(26794  D4500),오대근(44378  D4500)","사내","2020년 추계 전력기술지","[발표신청서] 본부장 결재완료"]
["전략물자 관련 기술의 수출통제 방안 고찰","Approaches to the Control Method for the Technology Export regarding Strategic Items","추계논문(감수용)-2000909_최남일.hwp","2020.09.23","2020.10.31","논문","사내전력기술지","33066","최남일","원자로설계개발단","원자로안전점검실","김유환(34302  F3I00),신길동(32034  F3I00)","사내","전력기술지(추계)","[발표신청서] 본부장 결재완료"]
["기기 정착부 검증을 위한 3D FEM(Contact기능)을 이용한 고유진동수 평가","Modal Analysis of Equipment Mounting Frame using 3D FEM including “Contact” Function","기술보고-기기 정착부 검증을 위한 3D FEM을 이용한 동적 특성평가-ver_A.hwp","2020.09.22","2020.10.31","논문","사내전력기술지","52617","주기훈","원자력본부","원전O＆M사업그룹","김대중(26669  D4900),박병철(18458  D4500)","사내","전력기술지","[발표신청서] 본부장 결재완료"]
["원전용 소내보조변압기의 OLTC AVR Bandwidth 고찰","Approaches to OLTC AVR Bandwidth of UAT in Nuclear Power Plant","20200911 논문_작성완료.hwp","2020.09.21","2020.10.31","논문","사내전력기술지","40578","노영석","원자력본부","원전O＆M사업그룹","이희선(38428  D4500),최한진(26447  D4500)","사내","2020년도 추계 전력기술지","[발표신청서] 본부장 결재완료"]
["중성자흡수체 유무에 따른 임계해석 코드(SCALE, MCNP) 검증 결과 비교평가","Comparison of the Validation of Nuclear Criticality Safety Calculation Code (SCALE, MCNP) Depending on Neutron Absorber","전력기술지2020추계 한영태 20200914b.hwp","2020.09.18","2020.10.31","논문","사내전력기술지","37597","한영태","원자로설계개발단","안전해석그룹","김형헌(31409  F3D00),서종태(31897  F3J00)","사내","전력기술지(추계)","[발표신청서] 본부장 결재완료"]
["SMART100 원전의 격납건물 설계를 위한 평가","An Evaluation of Containment Design for SMART100","SMART100 원전의 격납건물 설계를 위한 평가.pdf","2020.09.17","2020.10.31","논문","사내전력기술지","44591","지성호","원자로설계개발단","안전해석그룹","서종태(31897  F3J00),최철진(33131  F3D00)","사내","전력기술지","[발표신청서] 본부장 결재완료"]
["원자로냉각재계통 고온관 열성층화 발생으로 인한 불필요한 제어봉 거동 방지를 위한 타당성 연구","A Feasibility Study to Prevent Unnecessary CEA Movement due to RCS Hot-leg Thermal Stratification","원자로냉각재계통 고온관 열성층화 발생으로 인한 불필요한 제어봉 거동 방지를 위한 타당성 연구.pdf","2020.09.14","2020.10.31","논문","사내전력기술지","51291","박슬빈","원자로설계개발단","안전해석그룹","손종주(32004  F3D00),송인호(33913  F3D00)","사내","20 추계 전력기술지","[발표신청서] 본부장 결재완료"]
["BIM을 통한 건설산업의 디지털 전환과 우리회사 적용성에 대한 소고","The Brief Study to Digital Transformation of the Construction Industry through BIM and its Applicability to our Company","BIM을 통한 건설산업의 디지털 전환과 우리회사 적용성에 대한 소고_전력기술 2020년 추계 통권 제80호 (제31권 제3집).hwp","2020.08.24","2020.10.31","논문","사내전력기술지","39076","이충현","에너지신사업본부","신사업개발처","박호석(39953  E4H00),윤정은(44938  E4H00)","사내","전력기술지","[발표신청서] 본부장 결재완료"]
["외부폭발에 따른 RC 벽체의 구조 건전성 평가 방안 고찰","Review of Methodology for Structural Integrity Assessment of RC Wall under External Explosion","2020 추계학술 발표논문_김봉래.pdf","2020.08.27","2020.11.03","논문","국내학술발표","42728","김봉래","원자력본부","토건환경기술실","강주형(36963  D4D00),김도연(41231  D4D00)","국내","2020년도 한국콘크리트학회 가을 학술대회","[발표신청서] 본부장 결재완료"]
["Hybrid 방법을 이용한 유체저장탱크의 전도파손에 대한 지진취약도 분석","A Study on Seismic Fragility of Flat-Bottom Vertical Fluid Storage Tank against Overturning Failure using a Hybrid Method","Full Pater_esrel2020-psam15-Seismic Fragility of Flat Bottom Tank-감수반영-20200116.docx","2020.06.12","2020.11.03","논문","해외학술발표","34531","송정국","원자력본부","PSA&PSR사업그룹","전상호(43721  D4800),최훈(45438  D4800)","해외","ESREL2020-PSAM15","[발표신청서] 본부장 결재완료"]
["확률론적안전성평가 방법을 적용한 사용후핵연료저장조 리스크 평가","A Case Study of Risk Assessment for Spent Fuel Pool","ESRL,PSAM2020-SFP_20200117.docx","2020.06.12","2020.11.03","논문","해외학술발표","42795","최진태","원자력본부","PSA&PSR사업그룹","김동욱(36107  D4800),나두완(50858  D4800)","해외","European Safety and Reliability Conference/Probabilistic Safety Assessment and Management Conference","[발표신청서] 본부장 결재완료"]
["실질적 배제 (PE) 평가를 위한 방법론 및 평가를 위한 EU-APR1400의 설계특성과 PSA 모델 적용예","The Safety Features and PSA Evaluation for EU-APR1400 in terms of Practical Elimination","ESRL,PSAM2020-PE_감수의견반영.pdf","2020.06.12","2020.11.03","논문","SCI저널자료","28553","김재갑","원자력본부","PSA&PSR사업그룹","김광추(26366  D4B00),최진태(42795  D4800)","해외","ESREL(European Safety and Reliability Conference)","[발표신청서] 본부장 결재완료"]
["APR1400 공통원인고장(CCF) 탐지 방안","Detection measure of Common Cause Failure (CCF) in APR1400","NuPIC2020_논문(APR1400 공통원인고장 탐지 방안).doc","2020.11.04","2020.11.05","논문","국내학술발표","45216","조재웅","원자로설계개발단","계측제어설계그룹","백승민(33878  F3C00),손세도(31985  F3C00)","국내","Nuclear Power Plant Instrumentation and Control (NuPIC) 2020","[발표신청서] 본부장 결재완료"]
["SBCV의 불필요한 개방을 방지하기 위한 SBCS 내부 PI 제어기 알고리즘 개선","Improvement of PI Controller Algorithm in SBCS for Preventing Spurious Opening of SBCV","NuPIC2020_SBCV의 불필요한 개방을 방지하기 위한 SBCS 내부 PI 제어기 알고리즘 개선.docx","2020.11.03","2020.11.05","논문","국내학술발표","41844","안명훈","원자로설계개발단","계측제어설계그룹","백승민(33878  F3C00),손세도(31985  F3C00)","국내","Nuclear Power Plant Instrument and Control (NuPIC) 2020","[발표신청서] 본부장 결재완료"]
["APR1000을 위한 EBS I&C 설계","Emergency Boration System (EBS) I&C Design for APR1000","201027_EU-APR1000_EBS_Design_in_I&C.doc","2020.11.03","2020.11.05","논문","국내학술발표","41312","김영글","원자로설계개발단","계측제어설계그룹","백승민(33878  F3C00),손세도(31985  F3C00)","국내","NuPIC","[발표신청서] 본부장 결재완료"]
["APR1400 급수제어계통 개선기능의 OPR1000 적용성 평가","Applicability of APR1400 ImprovedFeedwater Control System to OPR1000","NuPIC2020_논문_APR1400급수제어계통개선알고리즘평가_20201008.pdf","2020.10.21","2020.11.05","논문","국내학술발표","41196","김주영","원자로설계개발단","계측제어설계그룹","김영백(31201  F3C00),백승민(33878  F3C00),정시채(32846  F3D00)","국내","12회 원전계측제어 심포지엄 (NUPIC 2020)","[발표신청서] 본부장 결재완료"]
["Boussinesq 파랑수치모델을 이용한 이안류 모의","Rip current simulation using Boussinesq wave numerical model","최영광_한국해안해양공학회_발표_초록.pdf","2020.09.11","2020.11.05","논문","국내학술발표","54274","최영광","원자력본부","토건환경기술실","김종강(25977  D4900),남승희(20326  D4D00)","국내","한국해안해양공학회 학술발표논문집","[발표신청서] 본부장 결재완료"]
["고정 및 변동하중 하에서 균열 성장 계산을 위한 최적 알고리즘","An Optimized Algorithm for Crack Growth Calculation under Cyclic and Sustained Loads","APCFS2020 paper(Hyunsu Kim).docx","2020.03.18","2020.11.05","논문","해외학술발표","34348","김현수","원자력본부","PSA&PSR사업그룹","박흥배(28775  A8500),오영진(38317  A8200)","국내","Asia-Pacific Conference on Fracture & Strength (APCFS)","[발표신청서] 본부장 결재완료"]
["가상 두께 측정 데이터를 활용한 확률론적 감육 판별 방법 연구","A Study on the Probabilistic Wear Determination Method Using Virtual Thickness Measurement Data","2020_추계부식_한국부식방식학회 논문 초록f.doc","2020.10.22","2020.11.12","논문","국내학술발표","37375","윤훈","원자력본부","PSA&PSR사업그룹","김경수(42684  A8500),오창균(38324  D4800)","국내","한국부식방식학회","[발표신청서] 본부장 결재완료"]
["지하매설배관의 비굴착 결함탐침기술 연계 스마트 통합관리 시스템 개발현황","Development Status of Smart Integrated Management System Affiliated to the Non-Excavation Defect Probing Technology for Underground Buried Pipes","추계초록(장현영).doc","2020.10.22","2020.11.13","논문","국내학술발표","34695","송정욱","전력기술원","디지털융합실","김현수(34348  D4800),이경천(22853  D4E00)","국내","2020년도 한국부식방식학회 추계학술대회","[발표신청서] 본부장 결재완료"]
["SMART100노형의 격납건물설계에 대한 평가","An Evaluation of Containment Design for SMART100","An Evaluation of Containment Design for SMART100.pdf","2020.07.13","2020.11.15","논문","해외학술발표","44591","지성호","원자로설계개발단","안전해석그룹","서종태(31897  F3J00),최철진(33131  F3D00)","해외","ANS Winter Meeting & Expo 2020","[발표신청서] 본부장 결재완료"]
["원전 2차계통 배관 두께 측정 불확실성으로 인한 감육 평가 보수성 편향","Conservative Bias in Wall-Thinning Evaluation due to the Uncertainty in Pipe Thickness Measurement in Nuclear Power Plant","첨부 03 - KPVP 요약논문.docx","2020.10.27","2020.11.16","논문","국내학술발표","37375","윤훈","원자력본부","PSA&PSR사업그룹","김경수(42684  A8500),오창균(38324  D4800)","국내","한국압력기기공학회","[발표신청서] 본부장 결재완료"]
["FPGA 기반 비교논리 및 동시논리를 위한 실시간 자동시험의 구현","Implementation of a Real-Time Automatic Test for Bistable and Coincidence Logics Based on FPGA","Implementation of a Real-Time Automatic Test for Bistable and Coincidence Logics Based on FPGA.pdf","2020.08.12","2020.11.16","논문","해외학술발표","42809","황수연","원자로설계개발단","계측제어설계그룹","백승민(33878  F3C00),손세도(31985  F3C00)","해외","2020 ANS Winter Meeting","[발표신청서] 본부장 결재완료"]
["초음파와 막 분리기를 사용한 원자로냉각재 탈기 계통의 개념설계","Conceptual Design of the Reactor Coolant Degassing System using Ultrasound and Membrane","(200626) Ultrasonic Vacuum Degassing of Reactor Coolant using Membrane Separator.docx","2020.07.02","2020.11.17","논문","해외학술발표","49953","강유림","원자로설계개발단","유체계통설계그룹","이광원(34038  F3H00),최철진(33131  F3D00)","해외","ANS Winter Meeting 2020","[발표신청서] 본부장 결재완료"]
["원전 형상관리 분류체계 및 요건 연계","The Study On Taxonomy and Design Requirement Link Of Configuration","KPVP 논문.pdf","2020.11.10","2020.11.18","논문","국내학술발표","54193","정대영","원자력본부","국내건설사업그룹","서영달(34524  D4400),이상민(29497  D4400)","국내","한국압력기기공학회","[발표신청서] 본부장 결재완료"]
["원자력발전소 재료 요건분석 및 선정 기술개발","Development of Material Requirements Analysis and Selection of Nuclear Power Plants","원자력발전소 재료 요건분석 및 선정 기술개발 현황.pdf","2020.10.23","2020.11.18","논문","국내학술발표","42684","김경수","전력기술원","신사업연구실","서혁기(43552  D4800),윤훈(37375  D4800)","국내","KPVP 2020년도 연차학술대회","[발표신청서] 본부장 결재완료"]
["해외 수출 원전 격납건물 구조건전성시험 사례","Structural Integrity Test Case of Reactor Containment Building","해외 수출 원전 격납건물 구조건전성시험 사례(한국전력기술).hwp","2020.10.22","2020.11.18","논문","국내학술발표","50349","연지웅","원자력본부","토건환경기술실","강주형(36963  D4D00),김창규(29592  D4600)","국내","KPVP 2020년도 연차학술대회","[발표신청서] 본부장 결재완료"]
["SMART를 위한 원자로상부구조물집합체 설계 개발","Development of Reactor Head Structure Assembly for the SMART","KPVP 요약논문.hwp","2020.10.22","2020.11.18","논문","국내학술발표","42249","최우철","원자로설계개발단","기계설계그룹","이대희(32293  F3B00),이송규(32455  F3J00)","국내","한국압력기기공학회","[발표신청서] 본부장 결재완료"]
["불규칙 난류하중에 대한 노심지지배럴 응답해석 민감도 분석","Sensitivity Study of Core Support Barrel Response to Random Turbulence Loads","KPVP 요약논문_남궁연재.hwp","2020.10.22","2020.11.18","논문","국내학술발표","40562","남궁연재","원자로설계개발단","기계설계그룹","이장원(43066  F3J00),황정기(33353  F3B00)","국내","한국압력기기공학회(KPVP)","[발표신청서] 본부장 결재완료"]
["ASME Section XI Appendix L 결함허용성평가 코드 제정 및 개정 현황","Status on the Publication and Revision for Flaw Tolerance Evaluation of ASME Section XI, Appendix L","ASME Section XI Appendix L 결함허용성평가 코드 제개정 현황_박홍선.hwp","2020.10.22","2020.11.18","논문","국내학술발표","42987","박홍선","원자로설계개발단","기계설계그룹","이대희(32293  F3B00),황정기(33353  F3B00)","국내","KPVP 2020년도 연차학술대회","[발표신청서] 본부장 결재완료"]
["표준형원전 설계기준초과지진 대응 기술개발 현황","Technology Development Status for Response to beyond Design basis Earthquake of Korea Standard NPP","KPVP 2020 설계기준초과지진 논문.hwp","2020.10.20","2020.11.18","논문","국내학술발표","20333","이영석","전력기술원","원자력연구실","김도연(41231  D4D00),김재희(15667  A8400)","국내","한국압력기기공학회","[발표신청서] 본부장 결재완료"]
["BNPP 피로감시시스템 개발 및 운영 현황","Development and Operation Experience of Fatigue Monitoring System for BNPP","KPVP 2020 - 피로감시.docx","2020.10.20","2020.11.18","논문","국내학술발표","43878","김연정","원자로설계개발단","기계설계그룹","이대희(32293  F3B00),황정기(33353  F3B00)","국내","KPVP 2020년도 연차학술대회","[발표신청서] 본부장 결재완료"]
["안전등급1 충전배관 재료변경에 따른 환경피로해석","Environmental Fatigue Analysis Considering material change on Safety Class 1 Charging Inlet Piping","안전등급1 충전배관 재료변경에 따른 환경피로해석.pdf","2020.10.15","2020.11.18","논문","국내학술발표","47028","이대건","원자력본부","국내건설사업그룹","문철진(40592  D4600),박승연(39923  D4400)","국내","KPVP 2020년도 연차학술대회","[발표신청서] 본부장 결재완료"]
["영구자석 매입 형 제어봉구동장치에 대한 타당성 연구","Feasibility Study on the Interior Permanent Magnet CEDM","Feasibility Study on the Interior Permanent Magnet CEDM.pdf","2020.10.07","2020.11.18","논문","국내학술발표","50451","이원호","원자로설계개발단","기계설계그룹","이대희(32293  F3B00),이병진(32344  F3J00)","국내","KPVP 2020년도 연차학술대회","[발표신청서] 본부장 결재완료"]
["원자로 내부구조물 부속기기의 건전성평가 체계 구축","Integrity Evaluation Framework for Reactor Vessel Internal Sub-components","KPVP 요약논문 (한전기술 김현수).hwp","2020.10.26","2020.11.19","논문","국내학술발표","34348","김현수","원자력본부","PSA&PSR사업그룹","남일권(34355  D4600),오영진(38317  A8200)","국내","K-PVP 학술대회","[발표신청서] 본부장 결재완료"]
["ASME Sec. Ⅲ NC/ND-3600 기반 신규 내진설계요건 개정안","Proposal to Revise ASME Sec. III NC/ND-3600-Based New Seismic Rules","KPVP 요약논문_ASME Sec. III NC_ND-3600 기반 신규 내진설계요건 개정안_남일권.docx","2020.10.22","2020.11.19","논문","국내학술발표","34355","남일권","원자력본부","해외사업그룹","김현수(34348  D4800),박상윤(43929  D4B00)","국내","K-PVP 학술대회","[발표신청서] 본부장 결재완료"]
["원전 구상흑연주철 매설배관에서의 부식억제를 위한 텅스테이트 및 에탄올아민의 부동태 효과","The Effect of Tungstate and Ethanolamines added in tap water on Corrosion Inhibition of Ductile Cast Iron Pipe for Nuclear Power Plants","(2020-11-17) metals-991705.docx","2020.11.17","2020.11.25","논문","SCI-E저널","29946","임부택","원자력본부","PSA&PSR사업그룹","박진석(26933  D4800),황경모(24584  D4800)","해외","Metals","[발표신청서] 본부장 결재완료"]
["가압경수로형 원전에서의 정상운전시 기체형 Carbon-14의 선량저감방안에 관한 고찰","Study on Method of Dose Reduction of Gaseous Carbon-14 During Normal Operation at a Pressuried Water Reactor","2020 추계 방사선방어학회_논문.pdf","2020.10.29","2020.11.26","논문","국내학술발표","43575","이교민","원자력본부","원자력기술실","송덕빈(30194  D4500),이여종(20865  D4500)","국내","추계 방사선방어학회 학술발표회 논문집","[발표신청서] 본부장 결재완료"]
["사용후핵연료 저장용기(OASIS-STO)의 공기 유입로 선량률 저감을 위한 방사선 차폐 해석","Radiation Shielding Evaluation for Spent Fuel Storage Cask (OASIS-STO model) to Reduce Dose Rate at Air Inlet","2020추계 방사선방어학회 논문_초안_이태경.hwp","2020.10.23","2020.11.26","논문","국내학술발표","47146","이태경","원자로설계개발단","안전해석그룹","김형헌(31409  F3D00),안준기(32108  F3J00)","국내","대한방사선방어학회","[발표신청서] 본부장 결재완료"]
["DORT/BUGLE-B7 수송해석 코드 체계의 감마 열생성률 저평가 원인분석","Analysis of Underestimation of Gamma Heating Rate in DORT/BUGLE-B7 Transport Code System","2020추계 방사선방어학회 논문_배건영.pdf","2020.10.22","2020.11.26","논문","국내학술발표","48803","배건영","원자로설계개발단","안전해석그룹","김형헌(31409  F3D00),서종태(31897  F3J00)","국내","대한방사선방어학회 추계학술발표회","[발표신청서] 본부장 결재완료"]
["MAVRIC 수송해석 코드의 원자로 고속 중성자속 계산 바이어스 및 불확실도 평가","Bias and Uncertainty Evaluation of MAVRIC Transport Code for Fast Neutron Flux Claculation in the Nuclear Reactor","논문-Mavric 수송해석코드의 고속중성자속 계산 불확실도 및 Bias 평가_for Review.hwp","2020.10.06","2020.11.26","논문","국내학술발표","31247","김용일","원자로설계개발단","안전해석그룹","김형헌(31409  F3D00),안준기(32108  F3J00)","국내","대한방사선방어학회 추계학술대회","[발표신청서] 본부장 결재완료"]
["핵연료취급기기의 취급경로 및 연동설계","Fuel Handling Process and Interlock Design of Fuel Handling Equipment","2020 추계 방폐학회 제출용_장상균_201006.pdf","2020.12.01","2020.12.10","논문","국내학술발표","32691","장상균","원자로설계개발단","기계설계그룹","김현민(31395  F3B00),이대희(32293  F3B00)","국내","한국방사성폐기물학회","[발표신청서] 본부장 결재완료"]
["이송캐스크(OASIS-HC)와 저장캐스크(OASIS-STO)의 설계 특성","Design Features of the Transfer Cask(OASIS-HC) and Storage Cask(OASIS-STO)","논문_2020추계방사성폐기물학회_이성규_Rev.01.docx","2020.12.01","2020.12.10","논문","국내학술발표","51541","이성규","원자로설계개발단","기계설계그룹","김현민(31395  F3B00),이병진(32344  F3J00)","국내","한국방사성폐기물학회(2020 추계)","[발표신청서] 본부장 결재완료"]
["사업초기  중량물기기 설치 및 해체를 위한 시공성 고찰","Constructability Review Considering Installation and Dismantlng of Heavy Equipment at the Early Phase of the Project","2020_방폐학회(추계논문)_중량물중심_201008.docx","2020.12.02","2020.12.10","논문","국내학술지","34871","이준희","원자력본부","사업관리기술실","양명덕(19319  D4700),홍순원(24952  D4400)","국내","한국방사성폐기물학회 추계학술발표회","[발표신청서] 본부장 결재대기"]
["한계하중법을 이용한 소구경 배관의 양단파단 평가","Double Ended Guillotine Break Evaluation of Small Pipeline by Considering Limit Load Method","한계하중법을 이용한 소구경배관의 배관파단해석.pdf","2020.10.22","2020.12.16","논문","국내학술발표","53441","김승현","원자로설계개발단","기계설계그룹","이대희(32293  F3B00),황정기(33353  F3B00)","국내","대한기계학회 20202년도 학술대회","[발표신청서] 본부장 결재완료"]
["ASME Section XI에 따른 결함 허용성 평가 사례 연구","Case Study on the Flaw Tolerance Evaluation of ASME Section XI","ASME Section XI에 따른 결함 허용성 평가 사례 연구_박홍선.pdf","2020.10.22","2020.12.16","논문","국내학술발표","42987","박홍선","원자로설계개발단","기계설계그룹","이대희(32293  F3B00),황정기(33353  F3B00)","국내","2020년도 대한기계학회 학술대회","[발표신청서] 본부장 결재완료"]
["APR1400 원자로 상부헤드에서의 정상운전 불규칙 진동응답 구조해석","Random Vibration Analysis for Random Excitation at APR1400 Reactor Vessel Closure Head in Normal Operating Condition","Random Vibration Analysis for Random Excitation at APR1400 RVCH during NOP_Jang.pdf","2020.10.22","2020.12.16","논문","국내학술발표","40999","장용태","원자로설계개발단","기계설계그룹","김현민(31395  F3B00),황정기(33353  F3B00)","국내","Transactions of the Korean Nuclear Society Autumn Meeting","[발표신청서] 본부장 결재완료"]
["사막에서의 조경 디자인(Landscape Design)","Landscape Design in the Desert","사막에서의 조경 디자인(Landscape Design)_1차0909.hwp","2020.12.08","2020.12.31","논문","사내전력기술지","28495","양선심","원자력본부","해외사업그룹","김동일(25223  D4400),우안식(38981  D4D00)","사내","사내전력기술지","[발표신청서] 본부장 결재완료"]
["데이터분석 기반의 설계요건 형상관리 검증 방법론 고찰","A Review of Validation Methodology of Configuration Management for Design Requirements Based on Data Analysis","데이터분석 기반의 설계요건 형상관리 검증 방법론 고찰.hwp","2020.12.08","2020.12.31","논문","사내전력기술지","41948","유재석","원자력본부","국내건설사업그룹","김회명(39865  D4400),손영주(43966  D4400)","사내","사내전력기술지","[발표신청서] 본부장 결재완료"]
["바이오매스 및 고형 폐기물의 열분해 기술 현황","The Trend of Pyrolysis Technology for Biomass and Solid Waste","논문_바이오매스 및 고형 폐기물의 열분해 기술 현황_201116.hwp","2020.12.02","2020.12.31","논문","사내전력기술지","43036","이승현","에너지신사업본부","건설사업그룹","박이선(42964  E4F00),한진(30592  E4I00)","사내","전력기술","[발표신청서] 본부장 결재완료"]
["소형원전을 위한 액체방사성폐기물처리설비 패키지 최적화","Optimization of Liquid Radwaste Treatmant Module Package for Downsized Nuclear Power Plant","소형원전을 위한 액체방사성폐기물처리설비 패키지 최적화.hwp","2020.12.02","2020.12.31","논문","사내전력기술지","52337","김의로","원자력본부","미래성장신사업그룹","강상열(34723  D4900),문영태(26838  D4900)","사내","사내전력기술지","[발표신청서] 본부장 결재완료"]
["소수력 발전의 개념설계","Conceptual Design of Small Hydro-power Plant","소수력 발전의 개념설계_2차수정안.hwp","2020.12.02","2020.12.31","논문","사내전력기술지","44665","이종일","에너지신사업본부","화력O&M사업그룹(신사업)","김학용(22293  E4H00),한진(30592  E4I00)","사내","전력기술지","[발표신청서] 본부장 결재완료"]
["전력시스템 빅데이터를 이용한 재난대응 관리시스템 요소기술","Requisite Technologies for Disaster Response Management of Power Distribution Systems using Big Data","논문_전력시스템 빅데이터를 이용한 재난대응 관리시스템 요소기술.hwp","2020.12.02","2020.12.31","논문","사내전력기술지","43272","한승룡","전력기술원","디지털융합실","양현정(40303  A8200),이경석(49717  A8200)","사내","전력기술지","[발표신청서] 본부장 결재완료"]
["머신러닝 기반 원전 압력경계 기기 열화예측 연구방향 고찰","Approaches to Machine-Learning Based Aging Predictions for Pressure Boundary Component of Nuclear Power Plant","머신러닝 기반 원전 압력경계 기기 열화예측 연구방향 고찰.hwp","2020.12.01","2020.12.31","논문","사내전력기술지","38317","오영진","전력기술원","디지털융합실","김경수(42684  A8500),이남경(41254  A8200)","사내","전력기술지 (신기술동향)","[발표신청서] 본부장 결재완료"]
["급수가열기 배기량 유량지시 불량 원인 기술검토","Analyze flow measurement of feed water heater vent of Nuclear Power Plant","급수가열기 배기 유량지시 불량 기술검토서-0731-논문-2020.hwp","2020.12.01","2020.12.31","논문","사내전력기술지","25813","장철호","원자력본부","원전O＆M사업그룹","권대일(39747  D4400),이아람(37398  D4500)","사내","전력기술지","[발표신청서] 본부장 결재완료"]
["원안법 시행규칙 개정에 따른 예비안전성분석보고서 건설변경허가 관련 설계문서 처리 및 관리 방안","Processing and Management Plan of Design Document Related to Preliminary Safety Analysis Report Change Permit according to Revision of Enforcement Regulation of the Nuclear Safety Act","기술보고_20201109.pdf","2020.12.01","2020.12.31","논문","사내전력기술지","54237","조혜원","원자력본부","원자력기술실","손상배(27817  D4A00),유태조(26808  D4A00)","사내","전력기술지","[발표신청서] 본부장 결재완료"]
["복합화력발전소 건설간 냉각탑 건설 공사기간 고찰","Approaches to the Cooling Tower Construction Duration in Combined Thermal Power Plant Construtcion Projects","복합화력냉각탑1000MW표준공기_201012.hwp","2020.12.01","2020.12.31","논문","사내전력기술지","49111","이재연","원자력본부","사업관리기술실","권영석(21668  D4E00),박성규(34378  D4E00)","사내","전력기술지 2020년(동계)","[발표신청서] 본부장 결재완료"]
["APR1400의 MMIS 국산화 장비 적용에 따른 핵증기공급계통 제어계통 성능검증","Performance Validation of the NSSS Control System for the Application of Domestic MMIS Equipment to the APR1400","APR1400 고유 MMIS 성능검증.hwp","2020.11.30","2020.12.31","논문","사내전력기술지","32846","정시채","원자로설계개발단","안전해석그룹","손세도(31985  F3C00),최철진(33131  F3D00)","사내","사내 전력기술지","[발표신청서] 본부장 결재완료"]
["BIM 기반 APR1400 Indoor Navigation System 개발","Development of BIM based Indoor Navigation System for APR1400","BIM기반 APR1400 Indoor Navigation System 개발.hwp","2020.11.30","2020.12.31","논문","사내전력기술지","40606","박근영","전력기술원","디지털융합실","김민선(29194  A8300),서광락(29099  D4C00)","사내","전력기술지(기술보고)","[발표신청서] 본부장 결재완료"]
["가동원전 내 설계변경으로 인한 내진I등급 캐비넷의 내진평가방법에 대한 고찰","A Study on the Seismic Evaluation of Seismic Categroy I Cabinets due to Design Change in Operating Nuclear Power Plants","가동원전 내 설계변경으로 인한 캐비넷의 내진평가에 대한 고찰 전력기술지_최종.hwp","2020.11.30","2020.12.31","논문","사내전력기술지","49717","이경석","전력기술원","디지털융합실","정운기(42168  D4100),한승룡(43272  A8200)","사내","전력기술지","[발표신청서] 본부장 결재완료"]
["사고관리계획서의 인간공학 프로그램 적용 방법에 대한 고찰","The Application of Human Factors Engineering Program in the Accident Management Program","사고관리계획서의 인간공학 프로그램 적용 방법에 대한 고찰 - 3.hwp","2020.11.30","2020.12.31","논문","사내전력기술지","41201","황성환","원자력본부","전기계측기술실","강정석(37713  D4C00),하욱현(49696  D4600)","사내","전력기술지","[발표신청서] 본부장 결재완료"]
["가상현실기반 Tray 배치설계대안에 대한 체험적 정량화 분석 고찰","Approaches to Heuristic & Quantitative Analysis of Tray Layout Design Alternatives with Virtual Reality","2020 전력기술지 동계논문 -가상현실기반 Tray 배치설계에 대한 체험적 정량화 분석 고찰.hwp","2020.11.30","2020.12.31","논문","사내전력기술지","29099","서광락","원자력본부","전기계측기술실","김만우(28051  D4C00),박근영(40606  A8200)","사내","전력기술지","[발표신청서] 본부장 결재완료"]
["원전 MMIS 디지털 트윈 및 설계영향에 대한 고찰","Approaches to MMIS Digital Twin and Engineering Effects of Nuclear Power Plant","원전 MMIS 디지털 트윈과 설계영향 고장_20201123_03.hwp","2020.11.30","2020.12.31","논문","사내전력기술지","28051","김만우","원자력본부","전기계측기술실","김두호(36993  D4400),서광락(29099  D4C00)","사내","전력기술지","[발표신청서] 본부장 결재완료"]
["열화학공정을 이용한 잉여에너지 저장매질의 선정과 활용","Development of Energy Storage Process using Thermo-chemical Materials for Industrial Processes","전력기술지-열에너지저장공정-2020.pdf","2020.11.30","2020.12.31","논문","사내전력기술지","33751","김성호","원자로설계개발단","신기술사업그룹","손종주(32004  F3D00),이광원(34038  F3H00)","사내","전력기술지","[발표신청서] 본부장 결재완료"]
["원자력 관련시설 수리지질학적 특성 조사 및 부지 지하수 유동 평가","Investigation of Hydrogeologic Characterization and Evaluation of Groundwater Flow on Nuclear Facilities Site","전력기술지_2020 동계_원자력 관련시설 수리지질학적 특성 조사 및 부지 지하수 유동 평가_201126.hwp","2020.11.27","2020.12.31","논문","사내전력기술지","50134","노용우","원자력본부","토건환경기술실","이상선(25785  D4D00),이주현(49141  D4D00)","사내","전력기술지 기술논문","[발표신청서] 본부장 결재완료"]
["원전 케이블 트레이 적재율 설계관리 방안에 대한 고찰","A study on Design Process for Cable Tray Fill of Nuclear Power Plant","원전 케이블 트레이 적재율 설계관리 방안에 대한 고찰.hwp","2020.11.27","2020.12.31","논문","사내전력기술지","42175","정유철","원자력본부","국내건설사업그룹","이건호(22506  D4C00),장근욱(39111  D4400)","사내","2020 동계 전력기술지","[발표신청서] 본부장 결재완료"]
["해외원전 사업 설계공정표 개정 현황 분석 및 효율화 검토","The Review of the Current Status and Effective Method regarding the Revision of Engineering Schedule in Oversea Nuclear Power Plant Project","해외사업 공정표 개정 현황 분석 및 효율화 방안 검토.hwp","2020.11.26","2020.12.31","논문","사내전력기술지","44945","문형선","원자력본부","해외사업그룹","김기욱(41541  D4400),김동성(27854  D4600)","사내","(2020년 동계) 2020 전력기술","[발표신청서] 본부장 결재완료"]
["배관지지대 강성보강을 통한 발전소 비상디젤발전기 연료유계통 배관계의 진동저감","Vibration Reduction by Stiffness Reinforcement of Piping Support to Fuel Oil Piping System of Emergency Diesel Generator of Power Plants","배관지지대 강성보강을 통한 발전소 비상디젤발전기 연료유 배관계의 진동저감-감수용.hwp","2020.11.26","2020.12.31","논문","사내전력기술지","28907","원윤호","원자력본부","기계배관기술실","김회명(39865  D4400),문철진(40592  D4600)","사내","사내 전력기술지","[발표신청서] 본부장 결재완료"]
["유럽 기준을 적용한 Functional Requirement Analysis and Function Allocation 수행 방법론 및 계측제어 기능 범주화 방안에 대한 고찰","A Study on the Methodology for Performing Functional Requirement Analysis and Functional Allocation (FRAFA) and Categorization Method of Instrumentation and Control Functions Applying European Standards","유럽 기준을 적용한 FRAFA_Rev.1.hwp","2020.11.26","2020.12.31","논문","사내전력기술지","42899","김원욱","원자력본부","해외사업그룹","이진상(27602  D4600),조병수(24975  D4600)","사내","전력기술지","[발표신청서] 본부장 결재완료"]
["인버터 무효전력 부하에 대한 축전지 용량 고찰","Consideration on battery capacity for reactive power load of inverter","201123 인버터 무효전력 부하에 대한 축전지 용량고찰.hwp","2020.11.26","2020.12.31","논문","사내전력기술지","47345","조원균","원자력본부","해외사업그룹","이덕수(22543  D4C00),최원경(24052  D4600)","사내","전력기술지","[발표신청서] 본부장 결재완료"]
["채움벽이 발전소 부대건물 내진성능에 미치는 영향의 해석적 연구","The Study on the Influence of Masonry Infill Wall on the Seismic Performance of Power Plant Facility","201111_채움벽이 발전소 부대건물 내진성능에 미치는 영향의 해석적 연구.pdf","2020.11.26","2020.12.31","논문","사내전력기술지","45563","조가연","에너지신사업본부","건설사업그룹","방창국(24267  E4F00),백승우(21897  E4F00),윤방열(39009  E4F00)","사내","전력기술","[발표신청서] 본부장 결재완료"]
["세 방향 동시 가진시 비례감쇠행렬 산정 및 KIESSI-TD 프로그램","Methodology for the proportional damping matrix under simultaneously three-directional excitations and KIESSI-TD Program","전력기술지논문(서춘교)_R1.hwp","2020.11.26","2020.12.31","논문","사내전력기술지","42351","서춘교","전력기술원","원자력연구실","김도연(41231  D4D00),한승룡(43272  A8200)","사내","전력기술지 2020하반기","[발표신청서] 본부장 결재완료"]
["동작책무에 따른 납축전지 검증기술에 대한 고찰","Approaches to Lead-Acid Storage Battery Qualification in terms of the Duty Cycle in Nuclear Power Plants","논문 - Duty Cycle에 따른 Battery 검증기술에 대한 고찰_0.hwp","2020.11.26","2020.12.31","논문","사내전력기술지","30053","김상은","원자력본부","원전안전센터","권영만(21652  D4100),윤재형(29023  D4400)","사내","전력기술지","[발표신청서] 본부장 결재완료"]
["고압 지중선로 및 전력용 변압기의 개폐 과도현상 해석","Analysis of switching transients of high-voltage underground cables and power transformers","고압 지중선로 및 전력용 변압기 개폐 과도현상 해석.hwp","2020.11.26","2020.12.31","논문","사내전력기술지","25924","강인수","원자력본부","전기계측기술실","나춘수(37789  D4C00),유승윤(25452  D4C00)","사내","전력기술 2020년 동계","[발표신청서] 본부장 결재완료"]
["가상현실 기반 원자력 비상운전절차 훈련시스템 구축방안 연구","Development of Training Contents for Emergency Operating Procedure of Nuclear Power Plant with Virtual Reality","가상현실기술 기반 원자력 비상절차 훈련시스템 구축방안 연구_R1.hwp","2020.11.26","2020.12.31","논문","사내전력기술지","40606","박근영","전력기술원","디지털융합실","김민선(29194  A8300),이진상(27602  D4600)","사내","전력기술지(기술보고)","[발표신청서] 본부장 결재완료"]
["신규 석탄화력의 기준 투자비 산정","Benchmark Cost Estimation of a Typical Coal Power Plant","논문_신규 석탄발전기의 기준 투자비 산정_사내감수용.hwp","2020.11.26","2020.12.31","논문","사내전력기술지","26595","김민철","원자력본부","사업관리기술실","김형석(17123  D4E00),박기조(25001  D4E00)","사내","전력기술지","[발표신청서] 본부장 결재완료"]
["기계학습 및 개방형 프로그램을 이용한 송배전 선로 부하량 예측모델","A Study on a Power Line Loading Prediction Model developed by using Machine Learning and Open Source Program, PandaPower","개방형 전력계통 모델 및 해석프로그램 기술동향_Rev1.1.hwp","2020.11.25","2020.12.31","논문","사내전력기술지","37789","나춘수","원자력본부","전기계측기술실","김원삼(27403  D4C00),이건호(22506  D4C00)","사내","사내전력기술지 (동계)","[발표신청서] 본부장 결재완료"]
["극한재해시 공조계통 상실에 따른 터빈구동 보조급수 펌프실 온도 분석","Analysis of Temperature in Turbine Driven Auxiliary Feedwater Pump Room for Loss of HVAC System in the event of External Hazard","논문.hwp","2020.11.25","2020.12.31","논문","사내전력기술지","54103","이승진","원자력본부","원전O＆M사업그룹","김우식(37766  D4500),정성안(30252  D4500)","사내","전력기술지 (기술논문)","[발표신청서] 본부장 결재완료"]
["신한울 1,2호기 방사선비상발령 해수위감시 고찰","Approaches to Seawater Level Monitoring for Radiological Emergency for Shin-Hanul Units 1 & 2","신한울 1,2호기 방사선비상발령 해수위감시 고찰.hwp","2020.11.25","2020.12.31","논문","사내전력기술지","46933","예우","원자력본부","국내건설사업그룹","안병열(29127  D4400),주춘영(24207  D4400)","사내","전력기술지","[발표신청서] 본부장 결재완료"]
["국내 원전의 미국 진출 경쟁력 분석","A Study on the Competitiveness of Korean NPP in the U.S.","20201123_국내원전 미국진출 경쟁력분석.hwp","2020.11.24","2020.12.31","논문","사내전력기술지","46815","박종규","원자력본부","사업관리기술실","강인철(40326  D4E00),박선응(40636  D4E00)","사내","2020년 동계전력기술지(실무해설)","[발표신청서] 본부장 결재완료"]
["복합화력발전소의 대기환경 신기술 동향","New Technology Trend of Air Pollution from Combined Cycle Power Plant","복합화력발전소의 대기환경 신기술 동향.hwp","2020.11.24","2020.12.31","논문","사내전력기술지","36882","조성필","에너지신사업본부","건설사업그룹","이영일(29858  E4H00),이준석(26741  E4H00)","사내","전력기술지","[발표신청서] 본부장 결재완료"]
["안전필수 등급 디스플레이 시스템 설계","Design of Safety Display System in Nuclear Power Plant","안전필수등급_디스플레이_설계.hwp","2020.11.24","2020.12.31","논문","사내전력기술지","47322","조성은","원자로설계개발단","계측제어설계그룹","백승민(33878  F3C00),손세도(31985  F3C00)","사내","전력기술지(기술논문)","[발표신청서] 본부장 결재완료"]
["중대사고관리지침서(SAMG)의 효율적 운영을 위한 지원 프로그램 개발 방안","A Study on the Development of Support Program for the Efficient Operation of SAMG","(제출) 중대사고관리지침서(SAMG)의 효율적 운영을 위한 지원 프로그램 개발 방안.hwp","2020.11.24","2020.12.31","논문","사내전력기술지","52506","이대형","전력기술원","원자력연구실","오영진(38317  A8200),조성민(37942  D4A00)","사내","전력기술지","[발표신청서] 본부장 결재완료"]
["소형원자로(SMR) 개발 동향 및 현안","Trend and Issues on the Small Modular Reactor(SMR) Development","SMR 개발동향-수정.hwp","2020.11.23","2020.12.31","논문","사내전력기술지","26063","이규복","전력기술원","원자력연구실","김길정(25024  A8400),장각수(20349  A8400)","사내","전력기술지","[발표신청서] 본부장 결재완료"]
["냉각탑 적용 터빈건물 기기배치 연구","Equipment Arrangement of Turbine Generator Building for Cooling Tower","동계전력기술지_냉각탑적용터빈건물기기배치연구_제출용_201110.hwp","2020.11.23","2020.12.31","논문","사내전력기술지","49999","김기열","원자력본부","해외사업그룹","박창민(39946  D4600),배인근(25859  D4B00)","사내","전력기술지(기술보고)","[발표신청서] 본부장 결재완료"]
["정지냉각펌프와 원자로건물살수펌프의 상호 대체 운전 가능성 검증 방안","Verification Test for the Shutdown Cooling Pump (SCP) and Containment Spray Pump (CSP) Functionally Interchangeability","정지냉각펌프와 원자로건물살수펌프와의 상호 대체 운전 가능성 검증 방안.hwp","2020.11.23","2020.12.31","논문","사내전력기술지","51372","신태우","원자력본부","해외사업그룹","박평원(37824  D4400),오대근(44378  D4500)","사내","전력기술지","[발표신청서] 본부장 결재완료"]
["수화력 발전설비 정착부 내진성능평가 기준 소개","Introduction to Seismic Performance Evaluation Critreia of Hydraulic & Coal Power Plant","논문_기술기고_발전소 설비정착부 내진성능기준_201110.hwp","2020.11.20","2020.12.31","논문","사내전력기술지","21541","정상균","에너지신사업본부","건설사업그룹","윤방열(39009  E4F00),진현균(34577  E4H00)","사내","전력기술지","[발표신청서] 본부장 결재완료"]
["100MW급 화력발전소 고압 터빈 바이패스 밸브 용량 계산에 대한 고찰","A study on capacity calculation of the high pressure turbine bypass valve for a 100MW fossil power plant","전력기술지 동계논문_(감수요청_2020.11.12)_윤창선.hwpx","2020.11.20","2020.12.31","논문","사내전력기술지","36461","윤창선","에너지신사업본부","건설사업그룹","반두현(26639  E4F00),오흥일(36424  E4H00)","사내","전력기술지","[발표신청서] 본부장 결재완료"]
["ASME Code NB-3200/NB-3600 비교 및 검토","Comparision and Review of ASME Code NB-3200 and NB-3600","ASME NB-3200NB-3600 비교 및 검토-감수용.pdf","2020.11.20","2020.12.31","논문","사내전력기술지","30009","박정수","원자로설계개발단","기계설계그룹","이대희(32293  F3B00),황정기(33353  F3B00)","사내","한국전력기술지","[발표신청서] 본부장 결재완료"]
["광역손상 사고시 원자로공동 충수 전략 검토","Review of Strategy of Flooding the Reactor Cavity in LOLA","전력기술-광역손상 사고시 원자로공동 충수 전략 검토.hwp","2020.11.19","2020.12.31","논문","사내전력기술지","37824","박평원","원자력본부","국내건설사업그룹","강진철(40333  D4A00),임찬주(43714  D4400)","사내","전력기술지","[발표신청서] 본부장 결재완료"]
["ITER Hot Cell Complex 설계현황 및 사업개발방안 고찰","Introduction of Design Status of ITER Hot Cell Complex and Study on Business Development Planning","2020 전력기술지 논문(ITER Hot Cell Complex 설계현황 및 사업개발방안 고찰).hwp","2020.11.19","2020.12.31","논문","사내전력기술지","36255","나한정","원자력본부","해외사업그룹","윤재화(37352  D4600),조종연(43568  D4600)","사내","전력기술지","[발표신청서] 본부장 결재완료"]
["해체 관련 국내· 미국 기술기준 및 규정 검토","A Study on the Codes and Standards of Domestic and United States of America for Decommissioning","동계논문(작성용)-최종본_김유환(수정본).hwp","2020.11.19","2020.12.31","논문","사내전력기술지","34302","김유환","원자로설계개발단","원자로안전점검실","고한준(33707  F3I00),신길동(32034  F3I00)","사내","전력기술지","[발표신청서] 본부장 결재완료"]
["원전 내장형디지털소자에 대한 소프트웨어 확인 및 검증","Software Verification & Validation for Embedded Digital Device (EDD) of Nuclear Power Plant","2020 동계 전력기술지 기술논문 초안 - 이승하.hwp","2020.11.18","2020.12.31","논문","사내전력기술지","50865","이승하","원자력본부","미래성장신사업그룹","강인수(20208  D4900),김기형(28428  D4900)","사내","동계 전력기술지","[발표신청서] 본부장 결재완료"]
["아이트레킹 시스템을 활용한 운전원의 정량적 직무부하 평가방법에 대한 연구","A Study on the Quantitative Workload Assessment Method for Operator Using Eye-tracking System","논문.hwp","2020.11.18","2020.12.31","논문","사내전력기술지","49696","하욱현","원자력본부","해외사업그룹","강정석(37713  D4C00),조병수(24975  D4600)","사내","전력기술지","[발표신청서] 본부장 결재완료"]
["액화공기에너지저장(LAES)의 액화공정 모델링 및 해석","Modeling and Analysis of the Air Liquefaction Process of LAES","전력기술지_액화공기에너지저장(LAES)의 액화공정 모델링 및 해석 - 동계20201116.hwp","2020.11.18","2020.12.31","논문","사내전력기술지","40666","박종민","전력기술원","신사업연구실","김대복(21587  A8500),조성필(36882  E4H00)","사내","전력기술지(기술논문)","[발표신청서] 본부장 결재완료"]
["피동형원전 안전계통 측면의 제한적인 비냉각재상실(Non-LOCA) 설계기준사고 평가","Analysis on Non-LOCA Design Basis Events for the Passive Safety System","피동형원전 안전계통 측면의 제한적인 비냉각재상실 설계기준사고 평가.hwp","2020.11.17","2020.12.31","논문","사내전력기술지","49039","이민석","원자로설계개발단","안전해석그룹","최철진(33131  F3D00),최한림(35024  F3J00)","사내","사내전력기술지","[발표신청서] 본부장 결재완료"]
["부착식 텐던을 도입한 원자로건물의 가동중검사 절차","In-Service Inspection Procedures of Containment with Bonded Tendons","논문_부착식텐던 가동중검사 절차_최종.hwp","2020.11.13","2020.12.31","논문","사내전력기술지","29592","김창규","원자력본부","해외사업그룹","김봉래(42728  D4D00),안성문(38967  D4500)","사내","전력기술지 (기술논문)","[발표신청서] 본부장 결재완료"]
["원전 배관 열팽창 시험 변위의 불일치 응답 조정 및 시정조치 방법","Reconciliation and Corrective Action for Discrepant Response to Piping Thermal Expansion Tested-Movement of NPP","[감수용] 전력기술지_2020 동계_문철진_원전 배관 열팽창 시험 변위의 불일치 응답 조정 및 시정조치 방법_20201112.hwp","2020.11.12","2020.12.31","논문","사내전력기술지","40592","문철진","원자력본부","해외사업그룹","김회명(39865  D4400),이연태(40895  D4500)","사내","전력기술지 (실무해설)","[발표신청서] 본부장 결재완료"]
["NUREG/CR-7114 방법론 적용 건설원전 정지/저출력 화재 PRA","Low Power Shutdown Fire PRA for Plant under Construction Based on NUREG/CR-7114","NUREG_CR-7114 적용 건설원전 정지저출력 화재 PSA 분석-회사제출-R1-F1.hwp","2020.11.12","2020.12.31","논문","사내전력기술지","34915","김성현","원자력본부","PSA&PSR사업그룹","김동규(35188  D4800),나두완(50858  D4800)","사내","전력기술지","[발표신청서] 본부장 결재완료"]
["원자력발전소 설계변경 시 시뮬레이터 반영 고려사항","Description the Type of Design-Modification of Nuclear Power Plant be applied to a Simulator","원자력발전소 설계변경 시 시뮬레이터 반영 고려사항.hwp","2020.11.12","2020.12.31","논문","사내전력기술지","37294","심우형","원자력본부","원전O＆M사업그룹","전남율(50532  D4500),조희구(30805  D4500)","사내","전력기술지(실무해설)","[발표신청서] 본부장 결재완료"]
["사업초기 중량물 설치 및 해체를 고려한 시공성 검토","Constructability Review Considering Installation and Dismantling of Heavy Equipment in the Early Phase of the Project","사업초기 중량물 설치 및 해체를 고려한 시공성 검토_201111.hwp","2020.11.11","2020.12.31","논문","사내전력기술지","55223","고은애","원자력본부","미래성장신사업그룹","임위동(24392  D4900),정혁(25674  D4900)","사내","2020년 동계 전력기술지","[발표신청서] 본부장 결재완료"]
["심층신경망을 활용한 태양광발전 예측 고찰","Study on Prediction of Solar Photovoltaic Power Generation using Deep Neural Network","심층신경망을 이용한 태양광발전예측 알고리즘.hwp","2020.11.09","2020.12.31","논문","사내전력기술지","24068","최기열","원자력본부","전기계측기술실","김원삼(27403  D4C00),서광락(29099  D4C00)","사내","전력기술","[발표신청서] 본부장 결재완료"]
["EPRI Cyber Security Technical Assessment Methodology 소개","Introduction to EPRI Cyber Security Technical Assessment Methodology","EPRI TAM 소개.docx","2020.11.06","2020.12.31","논문","사내전력기술지","41055","최윤혁","원자력본부","전기계측기술실","이덕수(22543  D4C00),조병수(24975  D4600)","사내","전력기술지","[발표신청서] 본부장 결재완료"]
["풍력사업에서 위성데이터 활용 검토를 위한 유효성 분석","Validation Anaylsis for Application Review of Satellite Dataset in Wind Project","논문) 위성데이터의 직접 활용 가능성 검토를 위한 유효성 분석_최종.docx","2020.11.05","2020.12.31","논문","사내전력기술지","44968","성원경","에너지신사업본부","신재생사업그룹","김광순(24281  E4G00),이치섭(20414  E4F00)","사내","사내전력기술지","[발표신청서] 본부장 결재완료"]
["국내 기준용량가격 산정기준 검토","Review on Improving Estimation Standard of Reference Capacity Price in the Korean Electricity Market","국내 기준용량가격 산정기준 개선방안_201029.hwp","2020.11.05","2020.12.31","논문","사내전력기술지","46727","나무정","원자력본부","사업관리기술실","오명수(43996  D4E00),정영렬(28921  A8000)","사내","2020년 동계 전력기술지(실무해설)","[발표신청서] 본부장 결재완료"]
["화학체적계통 배관의 재료변경에 따른 환경피로평가","Environmental fatigue evaluation of Chemical Volume System Piping by material change","CV계통 분지배관의 재료변경에 따른 환경피로해석.hwp","2020.11.05","2020.12.31","논문","사내전력기술지","47028","이대건","원자력본부","국내건설사업그룹","박승연(39923  D4400),허영훈(55195  D4400)","사내","전력기술지","[발표신청서] 본부장 결재완료"]
["응회암 분포지역에서의 암반 탄성파 속도 상관성 분석","Seismic Velocity of Rock Mass in Tuff","전력기술지_2020년 추계_rev1.hwp","2020.11.05","2020.12.31","논문","사내전력기술지","49141","이주현","원자력본부","토건환경기술실","공민경(50777  D4D00),임성빈(43117  D4D00)","사내","전력기술지","[발표신청서] 본부장 결재완료"]
["발전소 DEAD END 형식 현장전송기 설치용 도압관(TUBE/PIPE) 누설/동결 감지 및 방지 시스템","Instrument Pipe/Tube Leakage/Freezing Monitoring/Prevention System of Dead-end Type Field Transmitters in Power Plant","2020_발전소 DEAD END 형식 현장전송기 설치용 도압관(TUBEPIPE) 누설동결 감지 및 방지 시스템.hwp","2020.10.21","2020.12.31","논문","사내전력기술지","36424","오흥일","에너지신사업본부","건설사업그룹","백승국(44193  E4F00),윤승원(54022  E4H00)","사내","전력기술","[발표신청서] 본부장 결재완료"]
[]
[{"$nulls":8},"원자력본부",{"$f":"COUNTIF(I$2:I$164,I210)","v":0},7]
[{"$nulls":8},"미래전력기술연구소",{"$f":"COUNTIF(I$2:I$164,I211)","v":0},4]
[{"$nulls":8},"원자로설계개발단",{"$f":"COUNTIF(I$2:I$164,I212)","v":0},21]
[{"$nulls":8},"에너지신사업본부",{"$f":"COUNTIF(I$2:I$164,I213)","v":0},2]
[{"$nulls":8},"경영관리본부",{"$f":"COUNTIF(I$2:I$164,I214)","v":0}]
[{"$nulls":9},{"$f":"SUM(J210:J214)","v":0},{"$f":"SUM(K210:K214)","v":34}]
{"$rows_empty":12}
[{"$nulls":9},"미래전략연구소","원자력연구실"]
[{"$nulls":9},"미래전략연구소","디지털융합실"]
[{"$nulls":9},"미래전략연구소","신사업연구실"]
[{"$nulls":9},"에너지신사업본부","화력O&M사업그룹(신사업)"]
[{"$nulls":9},"에너지신사업본부","건설사업그룹"]
[{"$nulls":9},"에너지신사업본부","기계배관환경기술실"]
[{"$nulls":9},"에너지신사업본부","신재생사업그룹"]
[{"$nulls":9},"에너지신사업본부","신사업개발처"]
[{"$nulls":9},"원자력본부","PSA&PSR사업그룹"]
[{"$nulls":9},"원자력본부","원전안전센터"]
[{"$nulls":9},"원자력본부","기계배관기술실"]
[{"$nulls":9},"원자력본부","전기계측기술실"]
[{"$nulls":9},"원자력본부","토건환경기술실"]
[{"$nulls":9},"원자력본부","원전O＆M사업그룹"]
[{"$nulls":9},"원자력본부","사후관리사업그룹"]
[{"$nulls":9},"원자력본부","해외사업그룹"]
[{"$nulls":9},"원자력본부","미래성장신사업그룹"]
[{"$nulls":9},"원자력본부","국내건설사업그룹"]
[{"$nulls":9},"원자력본부","원자력기술실"]
[{"$nulls":9},"원자력본부","사업관리기술실"]
[{"$nulls":9},"원자로설계개발단","안전해석그룹"]
[{"$nulls":9},"원자로설계개발단","유체계통설계그룹"]
[{"$nulls":9},"원자로설계개발단","계측제어설계그룹"]
[{"$nulls":9},"원자로설계개발단","기계설계그룹"]
[{"$nulls":9},"원자로설계개발단","신기술사업그룹"]
[{"$nulls":9},"원자로설계개발단","원자로안전점검실"]
[{"$nulls":9},"전력기술원","원자력연구실"]
[{"$nulls":9},"전력기술원","신사업연구실"]
[{"$nulls":9},"전력기술원","디지털융합실"]